Organisation Name,Organisation Code,Effective Date,Directorate,Service (Sercop),Sercop URI,Supplier Name,Purpose of Spend,Type,Transaction No.,Seq No.,Payment Date,Net Amount,Irrecoverable VAT,Merchant Category,P-Card Tran,Contract
Wakefield MDC,E08000036,30/09/2015,BUSINESS,A,Net (Surplus) / Deficit of Trading Operations,COUNTRY BASKETS,Advertising,Revenue,160757,88,17/09/2015,45.52,Nil,FLORIST SUPPLIES/NURSERY STOCK & FLOWERS,GPC,Not Yet Available
Wakefield MDC,E08000036,30/09/2015,BUSINESS,A,Net (Surplus) / Deficit of Trading Operations,FACEBOOK,Advertising,Revenue,160744,624,16/07/2015,0.68,Nil,RECREATION SERVICES (NOT ELSEWHERE CLASSIFIED),GPC,Not Yet Available
Wakefield MDC,E08000036,30/09/2015,BUSINESS,A,Net (Surplus) / Deficit of Trading Operations,FACEBOOK,Advertising,Revenue,160744,683,16/07/2015,0.68,Nil,RECREATION SERVICES (NOT ELSEWHERE CLASSIFIED),GPC,Not Yet Available
Wakefield MDC,E08000036,30/09/2015,BUSINESS,A,Net (Surplus) / Deficit of Trading Operations,FACEBOOK,Advertising,Revenue,160744,821,16/07/2015,10.37,Nil,ADVERTISING SERVICES,GPC,Not Yet Available
Wakefield MDC,E08000036,30/09/2015,BUSINESS,A,Net (Surplus) / Deficit of Trading Operations,FACEBOOK,Advertising,Revenue,160744,773,16/07/2015,17.43,Nil,ADVERTISING SERVICES,GPC,Not Yet Available
Wakefield MDC,E08000036,30/09/2015,BUSINESS,A,Net (Surplus) / Deficit of Trading Operations,FACEBOOK,Advertising,Revenue,160744,644,16/07/2015,18.00,Nil,ADVERTISING SERVICES,GPC,Not Yet Available
Wakefield MDC,E08000036,30/09/2015,BUSINESS,A,Net (Surplus) / Deficit of Trading Operations,FACEBOOK,Advertising,Revenue,160744,645,16/07/2015,18.00,Nil,ADVERTISING SERVICES,GPC,Not Yet Available
Wakefield MDC,E08000036,30/09/2015,BUSINESS,A,Net (Surplus) / Deficit of Trading Operations,FACEBOOK,Advertising,Revenue,160744,684,16/07/2015,18.00,Nil,ADVERTISING SERVICES,GPC,Not Yet Available
Wakefield MDC,E08000036,30/09/2015,BUSINESS,A,Net (Surplus) / Deficit of Trading Operations,FACEBOOK,Advertising,Revenue,160744,760,16/07/2015,18.00,Nil,ADVERTISING SERVICES,GPC,Not Yet Available
Wakefield MDC,E08000036,30/09/2015,BUSINESS,A,Net (Surplus) / Deficit of Trading Operations,FACEBOOK,Advertising,Revenue,160744,599,16/07/2015,19.53,Nil,ADVERTISING SERVICES,GPC,Not Yet Available
Wakefield MDC,E08000036,30/09/2015,BUSINESS,A,Net (Surplus) / Deficit of Trading Operations,FACEBOOK,Advertising,Revenue,160744,646,16/07/2015,24.40,Nil,ADVERTISING SERVICES,GPC,Not Yet Available
Wakefield MDC,E08000036,30/09/2015,BUSINESS,A,Net (Surplus) / Deficit of Trading Operations,FACEBOOK,Advertising,Revenue,160754,90,11/09/2015,24.40,Nil,ADVERTISING SERVICES,GPC,Not Yet Available
Wakefield MDC,E08000036,30/09/2015,BUSINESS,A,Net (Surplus) / Deficit of Trading Operations,FACEBOOK,Advertising,Revenue,160744,722,16/07/2015,25.23,Nil,ADVERTISING SERVICES,GPC,Not Yet Available
Wakefield MDC,E08000036,30/09/2015,BUSINESS,A,Net (Surplus) / Deficit of Trading Operations,FACEBOOK,Advertising,Revenue,160744,564,16/07/2015,57.43,Nil,ADVERTISING SERVICES,GPC,Not Yet Available
Wakefield MDC,E08000036,30/09/2015,BUSINESS,A,Net (Surplus) / Deficit of Trading Operations,FACEBOOK,Advertising,Revenue,160746,523,10/08/2015,69.00,Nil,ADVERTISING SERVICES,GPC,Not Yet Available
Wakefield MDC,E08000036,30/09/2015,BUSINESS,A,Net (Surplus) / Deficit of Trading Operations,FACEBOOK,Advertising,Revenue,160746,522,10/08/2015,131.05,Nil,ADVERTISING SERVICES,GPC,Not Yet Available
Wakefield MDC,E08000036,30/09/2015,BUSINESS,A,Net (Surplus) / Deficit of Trading Operations,FACEBOOK,Advertising,Revenue,160746,527,10/08/2015,179.50,Nil,ADVERTISING SERVICES,GPC,Not Yet Available
Wakefield MDC,E08000036,30/09/2015,BUSINESS,A,Net (Surplus) / Deficit of Trading Operations,GOOGLE ADWS,Advertising,Revenue,160744,2022,16/07/2015,94.33,Nil,DIRECT MARKETING - CONTINUITY/SUBSCRIPTION MERCHANT,GPC,Not Yet Available
Wakefield MDC,E08000036,30/09/2015,BUSINESS,A,Net (Surplus) / Deficit of Trading Operations,GOOGLE ADWS,Advertising,Revenue,160744,2032,16/07/2015,124.11,Nil,DIRECT MARKETING - CONTINUITY/SUBSCRIPTION MERCHANT,GPC,Not Yet Available
Wakefield MDC,E08000036,30/09/2015,BUSINESS,A,Net (Surplus) / Deficit of Trading Operations,GOOGLE ADWS,Advertising,Revenue,160744,2021,16/07/2015,313.16,Nil,DIRECT MARKETING - CONTINUITY/SUBSCRIPTION MERCHANT,GPC,Not Yet Available
Wakefield MDC,E08000036,30/09/2015,BUSINESS,A,Net (Surplus) / Deficit of Trading Operations,JOHNSTON PRESS NORTH,Advertising,Revenue,160759,653,23/09/2015,60.00,Nil,NEWS DEALERS AND NEWS STANDS,GPC,Not Yet Available
Wakefield MDC,E08000036,30/09/2015,BUSINESS,A,Net (Surplus) / Deficit of Trading Operations,NEWS INC,Advertising,Revenue,160744,4078,16/07/2015,31.21,Nil,RECORD STORES,GPC,Not Yet Available
Wakefield MDC,E08000036,30/09/2015,CHILDYOU,4,Children's and Education Services,FACEBOOK,Advertising,Revenue,160744,724,16/07/2015,13.03,Nil,ADVERTISING SERVICES,GPC,Not Yet Available
Wakefield MDC,E08000036,30/09/2015,CHILDYOU,4,Children's and Education Services,FACEBOOK,Advertising,Revenue,160744,623,16/07/2015,18.00,Nil,ADVERTISING SERVICES,GPC,Not Yet Available
Wakefield MDC,E08000036,30/09/2015,CHILDYOU,4,Children's and Education Services,FACEBOOK,Advertising,Revenue,160744,723,16/07/2015,18.00,Nil,ADVERTISING SERVICES,GPC,Not Yet Available
Wakefield MDC,E08000036,30/09/2015,CHILDYOU,4,Children's and Education Services,FACEBOOK,Advertising,Revenue,160744,775,16/07/2015,18.00,Nil,ADVERTISING SERVICES,GPC,Not Yet Available
Wakefield MDC,E08000036,30/09/2015,CHILDYOU,4,Children's and Education Services,FACEBOOK,Advertising,Revenue,160744,822,16/07/2015,18.00,Nil,ADVERTISING SERVICES,GPC,Not Yet Available
Wakefield MDC,E08000036,30/09/2015,CHILDYOU,4,Children's and Education Services,FACEBOOK,Advertising,Revenue,160744,563,16/07/2015,18.36,Nil,ADVERTISING SERVICES,GPC,Not Yet Available
Wakefield MDC,E08000036,30/09/2015,CHILDYOU,4,Children's and Education Services,FACEBOOK,Advertising,Revenue,160744,565,16/07/2015,18.40,Nil,ADVERTISING SERVICES,GPC,Not Yet Available
Wakefield MDC,E08000036,30/09/2015,CHILDYOU,4,Children's and Education Services,FACEBOOK,Advertising,Revenue,160744,834,16/07/2015,18.70,Nil,ADVERTISING SERVICES,GPC,Not Yet Available
Wakefield MDC,E08000036,30/09/2015,CHILDYOU,4,Children's and Education Services,FACEBOOK,Advertising,Revenue,160744,625,16/07/2015,18.80,Nil,ADVERTISING SERVICES,GPC,Not Yet Available
Wakefield MDC,E08000036,30/09/2015,CHILDYOU,4,Children's and Education Services,FACEBOOK,Advertising,Revenue,160744,774,16/07/2015,19.07,Nil,ADVERTISING SERVICES,GPC,Not Yet Available
Wakefield MDC,E08000036,30/09/2015,CHILDYOU,4,Children's and Education Services,FACEBOOK,Advertising,Revenue,160744,759,16/07/2015,19.09,Nil,ADVERTISING SERVICES,GPC,Not Yet Available
Wakefield MDC,E08000036,30/09/2015,CHILDYOU,4,Children's and Education Services,FACEBOOK,Advertising,Revenue,160744,600,16/07/2015,19.30,Nil,ADVERTISING SERVICES,GPC,Not Yet Available
Wakefield MDC,E08000036,30/09/2015,CHILDYOU,4,Children's and Education Services,FACEBOOK,Advertising,Revenue,160744,823,16/07/2015,19.31,Nil,ADVERTISING SERVICES,GPC,Not Yet Available
Wakefield MDC,E08000036,30/09/2015,CHILDYOU,4,Children's and Education Services,FACEBOOK,Advertising,Revenue,160744,833,16/07/2015,19.38,Nil,ADVERTISING SERVICES,GPC,Not Yet Available
Wakefield MDC,E08000036,30/09/2015,CHILDYOU,4,Children's and Education Services,FACEBOOK,Advertising,Revenue,160744,601,16/07/2015,19.74,Nil,ADVERTISING SERVICES,GPC,Not Yet Available
Wakefield MDC,E08000036,30/09/2015,CHILDYOU,4,Children's and Education Services,FACEBOOK,Advertising,Revenue,160744,685,16/07/2015,20.09,Nil,ADVERTISING SERVICES,GPC,Not Yet Available
Wakefield MDC,E08000036,30/09/2015,CHILDYOU,4,Children's and Education Services,FACEBOOK,Advertising,Revenue,160744,758,16/07/2015,23.80,Nil,ADVERTISING SERVICES,GPC,Not Yet Available
Wakefield MDC,E08000036,30/09/2015,CHILDYOU,4,Children's and Education Services,GOOGLE ADWS,Advertising,Revenue,160744,2033,16/07/2015,7.67,Nil,DIRECT MARKETING - CONTINUITY/SUBSCRIPTION MERCHANT,GPC,Not Yet Available
Wakefield MDC,E08000036,30/09/2015,CHILDYOU,4,Children's and Education Services,SKRENVATO,Advertising,Revenue,160745,2271,29/07/2015,39.63,Nil,PROFESSIONAL SERVICES-NOT ELSEWHERE CLASSIFIED,GPC,Not Yet Available
Wakefield MDC,E08000036,30/09/2015,REGENCULT,L,Cultural and Related Services,DATA NORTHERN LTD,Advertising,Revenue,160746,225,10/08/2015,84.26,Nil,BOOK STORES,GPC,Not Yet Available
Wakefield MDC,E08000036,30/09/2015,REGENCULT,N,Planning Services,JOHNSTON PRESS NORTH,Advertising,Revenue,160744,399,16/07/2015,66.00,Nil,NEWS DEALERS AND NEWS STANDS,GPC,Not Yet Available
Wakefield MDC,E08000036,30/09/2015,CHILDYOU,4,Children's and Education Services,BARNSLEY REGISTER,Assistance To Families (Section 34),Revenue,160745,97,29/07/2015,8.52,Nil,GOVERNMENT SERVICES-NOT ELSEWHERE CLASSIFIED,GPC,Not Yet Available
Wakefield MDC,E08000036,30/09/2015,CHILDYOU,4,Children's and Education Services,CITILODGE,Assistance To Families (Section 34),Revenue,160744,4044,16/07/2015,74.00,Nil,HOTELS & ACCOMMODATION,GPC,Not Yet Available
Wakefield MDC,E08000036,30/09/2015,CHILDYOU,4,Children's and Education Services,CITILODGE,Assistance To Families (Section 34),Revenue,160744,4072,16/07/2015,74.00,Nil,HOTELS & ACCOMMODATION,GPC,Not Yet Available
Wakefield MDC,E08000036,30/09/2015,CHILDYOU,4,Children's and Education Services,EAST MIDLANDS TRAINS,Assistance To Families (Section 34),Revenue,160748,460,18/08/2015,44.30,Nil,PASSENGER RAILWAYS,GPC,Not Yet Available
Wakefield MDC,E08000036,30/09/2015,CHILDYOU,4,Children's and Education Services,FTPE WEBTIS 1,Assistance To Families (Section 34),Revenue,160744,1009,16/07/2015,144.00,Nil,PASSENGER RAILWAYS,GPC,Not Yet Available
Wakefield MDC,E08000036,30/09/2015,CHILDYOU,4,Children's and Education Services,FTPE WEBTIS 1,Assistance To Families (Section 34),Revenue,160744,1043,16/07/2015,150.00,Nil,PASSENGER RAILWAYS,GPC,Not Yet Available
Wakefield MDC,E08000036,30/09/2015,CHILDYOU,4,Children's and Education Services,FTPE WEBTIS 1,Assistance To Families (Section 34),Revenue,160748,534,18/08/2015,39.40,Nil,PASSENGER RAILWAYS,GPC,Not Yet Available
Wakefield MDC,E08000036,30/09/2015,CHILDYOU,4,Children's and Education Services,FTPE WEBTIS 1,Assistance To Families (Section 34),Revenue,160748,533,18/08/2015,44.60,Nil,PASSENGER RAILWAYS,GPC,Not Yet Available
Wakefield MDC,E08000036,30/09/2015,CHILDYOU,4,Children's and Education Services,FTPE WEBTIS 1,Assistance To Families (Section 34),Revenue,160748,532,18/08/2015,197.00,Nil,PASSENGER RAILWAYS,GPC,Not Yet Available
Wakefield MDC,E08000036,30/09/2015,CHILDYOU,4,Children's and Education Services,JET2,Assistance To Families (Section 34),Revenue,160750,209,01/09/2015,102.50,Nil,AIR CARRIERS AIRLINES-NOT ELSEWHERE CLASSIFIED,GPC,Not Yet Available
Wakefield MDC,E08000036,30/09/2015,CHILDYOU,4,Children's and Education Services,LCC,Assistance To Families (Section 34),Revenue,160745,111,29/07/2015,20.00,Nil,GOVERNMENT SERVICES-NOT ELSEWHERE CLASSIFIED,GPC,Not Yet Available
Wakefield MDC,E08000036,30/09/2015,CHILDYOU,4,Children's and Education Services,PREMIER INN,Assistance To Families (Section 34),Revenue,160753,1492,09/09/2015,-14.58,Nil,HOTELS & ACCOMMODATION,GPC,Not Yet Available
Wakefield MDC,E08000036,30/09/2015,CHILDYOU,4,Children's and Education Services,PREMIER INN,Assistance To Families (Section 34),Revenue,160753,1487,09/09/2015,57.92,Nil,HOTELS & ACCOMMODATION,GPC,Not Yet Available
Wakefield MDC,E08000036,30/09/2015,CHILDYOU,4,Children's and Education Services,PREMIER INN,Assistance To Families (Section 34),Revenue,160748,491,18/08/2015,15.24,Nil,HOTELS & ACCOMMODATION,GPC,Not Yet Available
Wakefield MDC,E08000036,30/09/2015,CHILDYOU,4,Children's and Education Services,PREMIER INN,Assistance To Families (Section 34),Revenue,160766,466,02/10/2015,105.99,Nil,HOTELS & ACCOMMODATION,GPC,Not Yet Available
Wakefield MDC,E08000036,30/09/2015,CHILDYOU,4,Children's and Education Services,PREMIER INN,Assistance To Families (Section 34),Revenue,160748,481,18/08/2015,117.75,Nil,HOTELS & ACCOMMODATION,GPC,Not Yet Available
Wakefield MDC,E08000036,30/09/2015,CHILDYOU,4,Children's and Education Services,RYANAIR,Assistance To Families (Section 34),Revenue,160745,2081,29/07/2015,632.66,Nil,AIRLINES AND AIR CARRIERS - NOT ELSEWHERE CLASSIFIED,GPC,Not Yet Available
Wakefield MDC,E08000036,30/09/2015,CHILDYOU,4,Children's and Education Services,THE STATION HOTEL,Assistance To Families (Section 34),Revenue,160751,532,04/09/2015,185.90,Nil,HOTELS & ACCOMMODATION,GPC,Not Yet Available
Wakefield MDC,E08000036,30/09/2015,CHILDYOU,4,Children's and Education Services,TICK TOCK UNLOCK,Assistance To Families (Section 34),Revenue,160754,85,11/09/2015,60.00,Nil,ADVERTISING SERVICES,GPC,Not Yet Available
Wakefield MDC,E08000036,30/09/2015,CHILDYOU,4,Children's and Education Services,TRAINLINE,Assistance To Families (Section 34),Revenue,160750,119,01/09/2015,49.27,Nil,PASSENGER RAILWAYS,GPC,Not Yet Available
Wakefield MDC,E08000036,30/09/2015,CHILDYOU,4,Children's and Education Services,TRAINLINE,Assistance To Families (Section 34),Revenue,160746,1110,10/08/2015,49.27,Nil,PASSENGER RAILWAYS,GPC,Not Yet Available
Wakefield MDC,E08000036,30/09/2015,CHILDYOU,4,Children's and Education Services,TRAINLINE,Assistance To Families (Section 34),Revenue,160748,488,18/08/2015,66.50,Nil,PASSENGER RAILWAYS,GPC,Not Yet Available
Wakefield MDC,E08000036,30/09/2015,CHILDYOU,4,Children's and Education Services,TRAINLINE,Assistance To Families (Section 34),Revenue,160750,246,01/09/2015,118.07,Nil,PASSENGER RAILWAYS,GPC,Not Yet Available
Wakefield MDC,E08000036,30/09/2015,CHILDYOU,4,Children's and Education Services,TRAINLINE,Assistance To Families (Section 34),Revenue,160748,476,18/08/2015,139.23,Nil,PASSENGER RAILWAYS,GPC,Not Yet Available
Wakefield MDC,E08000036,30/09/2015,CHILDYOU,4,Children's and Education Services,TRAINLINE,Assistance To Families (Section 34),Revenue,160759,1123,23/09/2015,48.53,Nil,PASSENGER RAILWAYS,GPC,Not Yet Available
Wakefield MDC,E08000036,30/09/2015,CHILDYOU,4,Children's and Education Services,TRAINLINE,Assistance To Families (Section 34),Revenue,160750,126,01/09/2015,49.27,Nil,PASSENGER RAILWAYS,GPC,Not Yet Available
Wakefield MDC,E08000036,30/09/2015,CHILDYOU,4,Children's and Education Services,TRAINLINE,Assistance To Families (Section 34),Revenue,160750,110,01/09/2015,49.27,Nil,PASSENGER RAILWAYS,GPC,Not Yet Available
Wakefield MDC,E08000036,30/09/2015,CHILDYOU,4,Children's and Education Services,TRAINLINE,Assistance To Families (Section 34),Revenue,160745,2048,29/07/2015,120.87,Nil,PASSENGER RAILWAYS,GPC,Not Yet Available
Wakefield MDC,E08000036,30/09/2015,CHILDYOU,4,Children's and Education Services,TRAINLINE,Assistance To Families (Section 34),Revenue,160750,114,01/09/2015,138.62,Nil,PASSENGER RAILWAYS,GPC,Not Yet Available
Wakefield MDC,E08000036,30/09/2015,CHILDYOU,4,Children's and Education Services,TRAINLINE,Assistance To Families (Section 34),Revenue,160745,2073,29/07/2015,192.58,Nil,PASSENGER RAILWAYS,GPC,Not Yet Available
Wakefield MDC,E08000036,30/09/2015,CHILDYOU,4,Children's and Education Services,TRAINLINE,Assistance To Families (Section 34),Revenue,160750,128,01/09/2015,241.23,Nil,PASSENGER RAILWAYS,GPC,Not Yet Available
Wakefield MDC,E08000036,30/09/2015,CHILDYOU,4,Children's and Education Services,TRAINLINE,Assistance To Families (Section 34),Revenue,160750,127,01/09/2015,296.51,Nil,PASSENGER RAILWAYS,GPC,Not Yet Available
Wakefield MDC,E08000036,30/09/2015,CHILDYOU,4,Children's and Education Services,VIRGIN TRAINS,Assistance To Families (Section 34),Revenue,160766,463,02/10/2015,45.70,Nil,PASSENGER RAILWAYS,GPC,Not Yet Available
Wakefield MDC,E08000036,30/09/2015,CHILDYOU,4,Children's and Education Services,VIRGIN TRAINS,Assistance To Families (Section 34),Revenue,160766,490,02/10/2015,87.50,Nil,PASSENGER RAILWAYS,GPC,Not Yet Available
Wakefield MDC,E08000036,30/09/2015,CHILDYOU,4,Children's and Education Services,VIRGIN TRAINS ,Assistance To Families (Section 34),Revenue,160748,75,18/08/2015,31.90,Nil,PASSENGER RAILWAYS,GPC,Not Yet Available
Wakefield MDC,E08000036,30/09/2015,CHILDYOU,4,Children's and Education Services,VIRGIN TRAINS ,Assistance To Families (Section 34),Revenue,160764,43,01/10/2015,37.40,Nil,PASSENGER RAILWAYS,GPC,Not Yet Available
Wakefield MDC,E08000036,30/09/2015,CHILDYOU,4,Children's and Education Services,VIRGIN TRAINS ,Assistance To Families (Section 34),Revenue,160746,547,10/08/2015,46.80,Nil,PASSENGER RAILWAYS,GPC,Not Yet Available
Wakefield MDC,E08000036,30/09/2015,CHILDYOU,4,Children's and Education Services,VIRGIN TRAINS ,Assistance To Families (Section 34),Revenue,160748,80,18/08/2015,46.80,Nil,PASSENGER RAILWAYS,GPC,Not Yet Available
Wakefield MDC,E08000036,30/09/2015,CHILDYOU,4,Children's and Education Services,VIRGIN TRAINS ,Assistance To Families (Section 34),Revenue,160748,78,18/08/2015,62.80,Nil,PASSENGER RAILWAYS,GPC,Not Yet Available
Wakefield MDC,E08000036,30/09/2015,CHILDYOU,4,Children's and Education Services,VIRGIN TRAINS ,Assistance To Families (Section 34),Revenue,160744,632,16/07/2015,68.20,Nil,PASSENGER RAILWAYS,GPC,Not Yet Available
Wakefield MDC,E08000036,30/09/2015,CHILDYOU,4,Children's and Education Services,VIRGIN TRAINS ,Assistance To Families (Section 34),Revenue,160744,633,16/07/2015,68.20,Nil,PASSENGER RAILWAYS,GPC,Not Yet Available
Wakefield MDC,E08000036,30/09/2015,CHILDYOU,4,Children's and Education Services,VIRGIN TRAINS ,Assistance To Families (Section 34),Revenue,160748,84,18/08/2015,68.20,Nil,PASSENGER RAILWAYS,GPC,Not Yet Available
Wakefield MDC,E08000036,30/09/2015,CHILDYOU,4,Children's and Education Services,VIRGIN TRAINS ,Assistance To Families (Section 34),Revenue,160748,82,18/08/2015,69.60,Nil,PASSENGER RAILWAYS,GPC,Not Yet Available
Wakefield MDC,E08000036,30/09/2015,CHILDYOU,4,Children's and Education Services,VIRGIN TRAINS ,Assistance To Families (Section 34),Revenue,160748,77,18/08/2015,97.90,Nil,PASSENGER RAILWAYS,GPC,Not Yet Available
Wakefield MDC,E08000036,30/09/2015,CHILDYOU,4,Children's and Education Services,VIRGIN TRAINS ,Assistance To Families (Section 34),Revenue,160748,81,18/08/2015,129.80,Nil,PASSENGER RAILWAYS,GPC,Not Yet Available
Wakefield MDC,E08000036,30/09/2015,CHILDYOU,4,Children's and Education Services,VIRGIN TRAINS ,Assistance To Families (Section 34),Revenue,160748,832,18/08/2015,32.90,Nil,PASSENGER RAILWAYS,GPC,Not Yet Available
Wakefield MDC,E08000036,30/09/2015,CHILDYOU,4,Children's and Education Services,VIRGIN TRAINS ,Assistance To Families (Section 34),Revenue,160748,831,18/08/2015,46.35,Nil,PASSENGER RAILWAYS,GPC,Not Yet Available
Wakefield MDC,E08000036,30/09/2015,CHILDYOU,4,Children's and Education Services,VIRGIN TRAINS ,Assistance To Families (Section 34),Revenue,160748,495,18/08/2015,314.50,Nil,PASSENGER RAILWAYS,GPC,Not Yet Available
Wakefield MDC,E08000036,30/09/2015,CHILDYOU,4,Children's and Education Services,VIRGIN TRAINS ,Assistance To Families (Section 34),Revenue,160748,828,18/08/2015,29.95,Nil,PASSENGER RAILWAYS,GPC,Not Yet Available
Wakefield MDC,E08000036,30/09/2015,CHILDYOU,4,Children's and Education Services,VIRGIN TRAINS ,Assistance To Families (Section 34),Revenue,160748,829,18/08/2015,23.30,Nil,PASSENGER RAILWAYS,GPC,Not Yet Available
Wakefield MDC,E08000036,30/09/2015,CHILDYOU,4,Children's and Education Services,VIRGIN TRAINS ,Assistance To Families (Section 34),Revenue,160751,344,04/09/2015,63.40,Nil,PASSENGER RAILWAYS,GPC,Not Yet Available
Wakefield MDC,E08000036,30/09/2015,CHILDYOU,4,Children's and Education Services,ARRIVA,Beneficiary Payments (Other Agencies),Revenue,160766,471,02/10/2015,165.00,Nil,BUS LINES,GPC,Not Yet Available
Wakefield MDC,E08000036,30/09/2015,CHILDYOU,4,Children's and Education Services,ARGOS LTD,Birthday Allowance,Revenue,160745,1372,29/07/2015,90.24,Nil,DISCOUNT STORES,GPC,Not Yet Available
Wakefield MDC,E08000036,30/09/2015,CHILDYOU,4,Children's and Education Services,SPACEKRAFT,Birthday Allowance,Revenue,160751,339,04/09/2015,54.06,Nil,DIRECT MARKETING - CONTINUITY/SUBSCRIPTION MERCHANT,GPC,Not Yet Available
Wakefield MDC,E08000036,30/09/2015,ADULTS,7,Adult Social Care,AMAZON,Books & Other Publications,Revenue,160744,886,16/07/2015,14.50,Nil,BOOK STORES,GPC,Not Yet Available
Wakefield MDC,E08000036,30/09/2015,ADULTS,7,Adult Social Care,AMAZON,Books & Other Publications,Revenue,160744,3661,16/07/2015,19.50,Nil,DIRECT MARKETING-OTHER DIRECT MARKETERS/NOT ELSEW.,GPC,Not Yet Available
Wakefield MDC,E08000036,30/09/2015,ADULTS,7,Adult Social Care,AMAZON,Books & Other Publications,Revenue,160744,453,16/07/2015,114.85,Nil,BOOK STORES,GPC,Not Yet Available
Wakefield MDC,E08000036,30/09/2015,ADULTS,7,Adult Social Care,AMAZON,Books & Other Publications,Revenue,160748,544,18/08/2015,121.56,Nil,DIRECT MARKETING-OTHER DIRECT MARKETERS/NOT ELSEW.,GPC,Not Yet Available
Wakefield MDC,E08000036,30/09/2015,ADULTS,6,Housing Services,CITIZENS ADVICE,Books & Other Publications,Revenue,160744,4073,16/07/2015,46.00,Nil,CHARITABLE/SOCIAL SERVICE ORGS,GPC,Not Yet Available
Wakefield MDC,E08000036,30/09/2015,ADULTS,7,Adult Social Care,STATIONERY OFFICE BOOK,Books & Other Publications,Revenue,160744,2950,16/07/2015,473.00,Nil,DIRECT MARKETING - CATALOG MERCHANT,GPC,Not Yet Available
Wakefield MDC,E08000036,30/09/2015,ADULTS,7,Adult Social Care,THOMSON REUTERS,Books & Other Publications,Revenue,160744,192,16/07/2015,237.00,Nil,PROFESSIONAL SERVICES-NOT ELSEWHERE CLASSIFIED,GPC,Not Yet Available
Wakefield MDC,E08000036,30/09/2015,ADULTS,7,Adult Social Care,THOMSON REUTERS,Books & Other Publications,Revenue,160744,193,16/07/2015,885.00,Nil,PROFESSIONAL SERVICES-NOT ELSEWHERE CLASSIFIED,GPC,Not Yet Available
Wakefield MDC,E08000036,30/09/2015,BUSINESS,6,Housing Services,AMAZON,Books & Other Publications,Revenue,160744,3636,16/07/2015,91.75,Nil,DIRECT MARKETING-OTHER DIRECT MARKETERS/NOT ELSEW.,GPC,Not Yet Available
Wakefield MDC,E08000036,30/09/2015,BUSINESS,A,Net (Surplus) / Deficit of Trading Operations,AMAZON,Books & Other Publications,Revenue,160744,4867,16/07/2015,19.20,Nil,BOOK STORES,GPC,Not Yet Available
Wakefield MDC,E08000036,30/09/2015,BUSINESS,A,Net (Surplus) / Deficit of Trading Operations,JBPM ONLINE LTD,Books & Other Publications,Revenue,160759,891,23/09/2015,207.19,Nil,MISCELLANEOUS PUBLISHING AND PRINTING,GPC,Not Yet Available
Wakefield MDC,E08000036,30/09/2015,CHILDYOU,4,Children's and Education Services,AMAZON,Books & Other Publications,Revenue,160757,219,17/09/2015,48.08,Nil,DIRECT MARKETING-OTHER DIRECT MARKETERS/NOT ELSEW.,GPC,Not Yet Available
Wakefield MDC,E08000036,30/09/2015,CHILDYOU,4,Children's and Education Services,AMAZON,Books & Other Publications,Revenue,160751,4,04/09/2015,43.10,Nil,DIRECT MARKETING-OTHER DIRECT MARKETERS/NOT ELSEW.,GPC,Not Yet Available
Wakefield MDC,E08000036,30/09/2015,CHILDYOU,4,Children's and Education Services,AMAZON,Books & Other Publications,Revenue,160751,5,04/09/2015,43.10,Nil,DIRECT MARKETING-OTHER DIRECT MARKETERS/NOT ELSEW.,GPC,Not Yet Available
Wakefield MDC,E08000036,30/09/2015,CHILDYOU,4,Children's and Education Services,AMAZON,Books & Other Publications,Revenue,160744,2833,16/07/2015,21.55,Nil,DIRECT MARKETING-OTHER DIRECT MARKETERS/NOT ELSEW.,GPC,Not Yet Available
Wakefield MDC,E08000036,30/09/2015,CHILDYOU,4,Children's and Education Services,AMAZON,Books & Other Publications,Revenue,160754,59,11/09/2015,61.80,Nil,BOOK STORES,GPC,Not Yet Available
Wakefield MDC,E08000036,30/09/2015,REGENCULT,N,Planning Services,AMAZON,Books & Other Publications,Revenue,160744,3786,16/07/2015,15.81,Nil,BOOK STORES,GPC,Not Yet Available
Wakefield MDC,E08000036,30/09/2015,BUSINESS,A,Net (Surplus) / Deficit of Trading Operations,AGPC HYGIENE,Building Materials,Revenue,160759,468,23/09/2015,58.50,Nil,CLEANING AND MAINTENANCE JANITORIAL SERVICES,GPC,Not Yet Available
Wakefield MDC,E08000036,30/09/2015,BUSINESS,A,Net (Surplus) / Deficit of Trading Operations,AGPC HYGIENE,Building Materials,Revenue,160766,765,02/10/2015,155.82,Nil,CLEANING AND MAINTENANCE JANITORIAL SERVICES,GPC,Not Yet Available
Wakefield MDC,E08000036,30/09/2015,BUSINESS,A,Net (Surplus) / Deficit of Trading Operations,AJH PUMP SUPPLY & REPA,Building Materials,Revenue,160759,124,23/09/2015,88.00,Nil,ELECTRICAL PARTS AND EQUIPMENT,GPC,Not Yet Available
Wakefield MDC,E08000036,30/09/2015,BUSINESS,A,Net (Surplus) / Deficit of Trading Operations,ALLGAS (WAKEFIELD) LTD,Building Materials,Revenue,160745,722,29/07/2015,0.99,Nil,PLUMBING AND HEATING EQUIPMENT,GPC,Not Yet Available
Wakefield MDC,E08000036,30/09/2015,BUSINESS,A,Net (Surplus) / Deficit of Trading Operations,ALLGAS (WAKEFIELD) LTD,Building Materials,Revenue,160759,128,23/09/2015,7.16,Nil,PLUMBING AND HEATING EQUIPMENT,GPC,Not Yet Available
Wakefield MDC,E08000036,30/09/2015,BUSINESS,A,Net (Surplus) / Deficit of Trading Operations,ALLGAS (WAKEFIELD) LTD,Building Materials,Revenue,160755,251,16/09/2015,13.06,Nil,PLUMBING AND HEATING EQUIPMENT,GPC,Not Yet Available
Wakefield MDC,E08000036,30/09/2015,BUSINESS,A,Net (Surplus) / Deficit of Trading Operations,ALLGAS (WAKEFIELD) LTD,Building Materials,Revenue,160744,4616,16/07/2015,13.37,Nil,PLUMBING AND HEATING EQUIPMENT,GPC,Not Yet Available
Wakefield MDC,E08000036,30/09/2015,BUSINESS,A,Net (Surplus) / Deficit of Trading Operations,ALLGAS (WAKEFIELD) LTD,Building Materials,Revenue,160745,711,29/07/2015,15.90,Nil,PLUMBING AND HEATING EQUIPMENT,GPC,Not Yet Available
Wakefield MDC,E08000036,30/09/2015,BUSINESS,A,Net (Surplus) / Deficit of Trading Operations,ALLGAS (WAKEFIELD) LTD,Building Materials,Revenue,160759,235,23/09/2015,18.77,Nil,PLUMBING AND HEATING EQUIPMENT,GPC,Not Yet Available
Wakefield MDC,E08000036,30/09/2015,BUSINESS,A,Net (Surplus) / Deficit of Trading Operations,ALLGAS (WAKEFIELD) LTD,Building Materials,Revenue,160744,4608,16/07/2015,19.37,Nil,PLUMBING AND HEATING EQUIPMENT,GPC,Not Yet Available
Wakefield MDC,E08000036,30/09/2015,BUSINESS,A,Net (Surplus) / Deficit of Trading Operations,ALLGAS (WAKEFIELD) LTD,Building Materials,Revenue,160746,599,10/08/2015,20.63,Nil,PLUMBING AND HEATING EQUIPMENT,GPC,Not Yet Available
Wakefield MDC,E08000036,30/09/2015,BUSINESS,A,Net (Surplus) / Deficit of Trading Operations,ALLGAS (WAKEFIELD) LTD,Building Materials,Revenue,160745,719,29/07/2015,24.03,Nil,PLUMBING AND HEATING EQUIPMENT,GPC,Not Yet Available
Wakefield MDC,E08000036,30/09/2015,BUSINESS,A,Net (Surplus) / Deficit of Trading Operations,ALLGAS (WAKEFIELD) LTD,Building Materials,Revenue,160752,365,09/09/2015,25.65,Nil,PLUMBING AND HEATING EQUIPMENT,GPC,Not Yet Available
Wakefield MDC,E08000036,30/09/2015,BUSINESS,A,Net (Surplus) / Deficit of Trading Operations,ALLGAS (WAKEFIELD) LTD,Building Materials,Revenue,160746,861,10/08/2015,29.16,Nil,PLUMBING AND HEATING EQUIPMENT,GPC,Not Yet Available
Wakefield MDC,E08000036,30/09/2015,BUSINESS,A,Net (Surplus) / Deficit of Trading Operations,ALLGAS (WAKEFIELD) LTD,Building Materials,Revenue,160759,212,23/09/2015,34.46,Nil,PLUMBING AND HEATING EQUIPMENT,GPC,Not Yet Available
Wakefield MDC,E08000036,30/09/2015,BUSINESS,A,Net (Surplus) / Deficit of Trading Operations,ALLGAS (WAKEFIELD) LTD,Building Materials,Revenue,160759,230,23/09/2015,36.45,Nil,PLUMBING AND HEATING EQUIPMENT,GPC,Not Yet Available
Wakefield MDC,E08000036,30/09/2015,BUSINESS,A,Net (Surplus) / Deficit of Trading Operations,ALLGAS (WAKEFIELD) LTD,Building Materials,Revenue,160752,128,09/09/2015,43.68,Nil,PLUMBING AND HEATING EQUIPMENT,GPC,Not Yet Available
Wakefield MDC,E08000036,30/09/2015,BUSINESS,A,Net (Surplus) / Deficit of Trading Operations,ALLGAS (WAKEFIELD) LTD,Building Materials,Revenue,160759,922,23/09/2015,44.38,Nil,PLUMBING AND HEATING EQUIPMENT,GPC,Not Yet Available
Wakefield MDC,E08000036,30/09/2015,BUSINESS,A,Net (Surplus) / Deficit of Trading Operations,ALLGAS (WAKEFIELD) LTD,Building Materials,Revenue,160759,890,23/09/2015,45.23,Nil,PLUMBING AND HEATING EQUIPMENT,GPC,Not Yet Available
Wakefield MDC,E08000036,30/09/2015,BUSINESS,A,Net (Surplus) / Deficit of Trading Operations,ALLGAS (WAKEFIELD) LTD,Building Materials,Revenue,160744,4537,16/07/2015,48.60,Nil,PLUMBING AND HEATING EQUIPMENT,GPC,Not Yet Available
Wakefield MDC,E08000036,30/09/2015,BUSINESS,A,Net (Surplus) / Deficit of Trading Operations,ALLGAS (WAKEFIELD) LTD,Building Materials,Revenue,160759,1012,23/09/2015,48.94,Nil,PLUMBING AND HEATING EQUIPMENT,GPC,Not Yet Available
Wakefield MDC,E08000036,30/09/2015,BUSINESS,A,Net (Surplus) / Deficit of Trading Operations,ALLGAS (WAKEFIELD) LTD,Building Materials,Revenue,160752,159,09/09/2015,53.19,Nil,PLUMBING AND HEATING EQUIPMENT,GPC,Not Yet Available
Wakefield MDC,E08000036,30/09/2015,BUSINESS,A,Net (Surplus) / Deficit of Trading Operations,ALLGAS (WAKEFIELD) LTD,Building Materials,Revenue,160752,292,09/09/2015,55.58,Nil,PLUMBING AND HEATING EQUIPMENT,GPC,Not Yet Available
Wakefield MDC,E08000036,30/09/2015,BUSINESS,A,Net (Surplus) / Deficit of Trading Operations,ALLGAS (WAKEFIELD) LTD,Building Materials,Revenue,160759,184,23/09/2015,60.65,Nil,PLUMBING AND HEATING EQUIPMENT,GPC,Not Yet Available
Wakefield MDC,E08000036,30/09/2015,BUSINESS,A,Net (Surplus) / Deficit of Trading Operations,ALLGAS (WAKEFIELD) LTD,Building Materials,Revenue,160745,735,29/07/2015,63.58,Nil,PLUMBING AND HEATING EQUIPMENT,GPC,Not Yet Available
Wakefield MDC,E08000036,30/09/2015,BUSINESS,A,Net (Surplus) / Deficit of Trading Operations,ALLGAS (WAKEFIELD) LTD,Building Materials,Revenue,160759,77,23/09/2015,66.00,Nil,PLUMBING AND HEATING EQUIPMENT,GPC,Not Yet Available
Wakefield MDC,E08000036,30/09/2015,BUSINESS,A,Net (Surplus) / Deficit of Trading Operations,ALLGAS (WAKEFIELD) LTD,Building Materials,Revenue,160759,83,23/09/2015,69.53,Nil,PLUMBING AND HEATING EQUIPMENT,GPC,Not Yet Available
Wakefield MDC,E08000036,30/09/2015,BUSINESS,A,Net (Surplus) / Deficit of Trading Operations,ALLGAS (WAKEFIELD) LTD,Building Materials,Revenue,160746,856,10/08/2015,71.27,Nil,PLUMBING AND HEATING EQUIPMENT,GPC,Not Yet Available
Wakefield MDC,E08000036,30/09/2015,BUSINESS,A,Net (Surplus) / Deficit of Trading Operations,ALLGAS (WAKEFIELD) LTD,Building Materials,Revenue,160748,571,18/08/2015,72.75,Nil,PLUMBING AND HEATING EQUIPMENT,GPC,Not Yet Available
Wakefield MDC,E08000036,30/09/2015,BUSINESS,A,Net (Surplus) / Deficit of Trading Operations,ALLGAS (WAKEFIELD) LTD,Building Materials,Revenue,160744,4606,16/07/2015,91.87,Nil,PLUMBING AND HEATING EQUIPMENT,GPC,Not Yet Available
Wakefield MDC,E08000036,30/09/2015,BUSINESS,A,Net (Surplus) / Deficit of Trading Operations,ALLGAS (WAKEFIELD) LTD,Building Materials,Revenue,160755,249,16/09/2015,91.87,Nil,PLUMBING AND HEATING EQUIPMENT,GPC,Not Yet Available
Wakefield MDC,E08000036,30/09/2015,BUSINESS,A,Net (Surplus) / Deficit of Trading Operations,ALLGAS (WAKEFIELD) LTD,Building Materials,Revenue,160759,937,23/09/2015,95.18,Nil,PLUMBING AND HEATING EQUIPMENT,GPC,Not Yet Available
Wakefield MDC,E08000036,30/09/2015,BUSINESS,A,Net (Surplus) / Deficit of Trading Operations,ALLGAS (WAKEFIELD) LTD,Building Materials,Revenue,160752,287,09/09/2015,104.28,Nil,PLUMBING AND HEATING EQUIPMENT,GPC,Not Yet Available
Wakefield MDC,E08000036,30/09/2015,BUSINESS,A,Net (Surplus) / Deficit of Trading Operations,ALLGAS (WAKEFIELD) LTD,Building Materials,Revenue,160745,732,29/07/2015,128.12,Nil,PLUMBING AND HEATING EQUIPMENT,GPC,Not Yet Available
Wakefield MDC,E08000036,30/09/2015,BUSINESS,A,Net (Surplus) / Deficit of Trading Operations,ALLGAS (WAKEFIELD) LTD,Building Materials,Revenue,160752,381,09/09/2015,150.67,Nil,PLUMBING AND HEATING EQUIPMENT,GPC,Not Yet Available
Wakefield MDC,E08000036,30/09/2015,BUSINESS,A,Net (Surplus) / Deficit of Trading Operations,ALLGAS (WAKEFIELD) LTD,Building Materials,Revenue,160745,724,29/07/2015,150.67,Nil,PLUMBING AND HEATING EQUIPMENT,GPC,Not Yet Available
Wakefield MDC,E08000036,30/09/2015,BUSINESS,A,Net (Surplus) / Deficit of Trading Operations,ALLGAS (WAKEFIELD) LTD,Building Materials,Revenue,160744,4539,16/07/2015,173.88,Nil,PLUMBING AND HEATING EQUIPMENT,GPC,Not Yet Available
Wakefield MDC,E08000036,30/09/2015,BUSINESS,A,Net (Surplus) / Deficit of Trading Operations,ALLGAS (WAKEFIELD) LTD,Building Materials,Revenue,160759,545,23/09/2015,189.00,Nil,PLUMBING AND HEATING EQUIPMENT,GPC,Not Yet Available
Wakefield MDC,E08000036,30/09/2015,BUSINESS,A,Net (Surplus) / Deficit of Trading Operations,ALLGAS (WAKEFIELD) LTD,Building Materials,Revenue,160759,452,23/09/2015,189.00,Nil,PLUMBING AND HEATING EQUIPMENT,GPC,Not Yet Available
Wakefield MDC,E08000036,30/09/2015,BUSINESS,A,Net (Surplus) / Deficit of Trading Operations,AMWELL SYSTEMS LTD,Building Materials,Revenue,160752,265,09/09/2015,83.81,Nil,EQUIP/FURNITURE/HOME FURNSHNGS STRS (EXCPT APPL),GPC,Not Yet Available
Wakefield MDC,E08000036,30/09/2015,BUSINESS,A,Net (Surplus) / Deficit of Trading Operations,AMWELL SYSTEMS LTD,Building Materials,Revenue,160746,239,10/08/2015,4071.04,Nil,EQUIP/FURNITURE/HOME FURNSHNGS STRS (EXCPT APPL),GPC,Not Yet Available
Wakefield MDC,E08000036,30/09/2015,BUSINESS,A,Net (Surplus) / Deficit of Trading Operations,ANGLIA TOOL CENTRE,Building Materials,Revenue,160759,769,23/09/2015,60.38,Nil,BUILDING MATERIALS LUMBER STORES,GPC,Not Yet Available
Wakefield MDC,E08000036,30/09/2015,BUSINESS,A,Net (Surplus) / Deficit of Trading Operations,ANGLIA TOOL CENTRE,Building Materials,Revenue,160746,72,10/08/2015,118.72,Nil,LUMBER/BUILDING MATERIALS STORES,GPC,Not Yet Available
Wakefield MDC,E08000036,30/09/2015,BUSINESS,A,Net (Surplus) / Deficit of Trading Operations,ANGLIA TOOL CENTRE,Building Materials,Revenue,160752,311,09/09/2015,68.62,Nil,BUILDING MATERIALS LUMBER STORES,GPC,Not Yet Available
Wakefield MDC,E08000036,30/09/2015,BUSINESS,A,Net (Surplus) / Deficit of Trading Operations,ANGLIA TOOL CENTRE,Building Materials,Revenue,160759,781,23/09/2015,124.38,Nil,BUILDING MATERIALS LUMBER STORES,GPC,Not Yet Available
Wakefield MDC,E08000036,30/09/2015,BUSINESS,A,Net (Surplus) / Deficit of Trading Operations,ANGLIA TOOL CENTRE,Building Materials,Revenue,160746,253,10/08/2015,271.92,Nil,LUMBER/BUILDING MATERIALS STORES,GPC,Not Yet Available
Wakefield MDC,E08000036,30/09/2015,BUSINESS,A,Net (Surplus) / Deficit of Trading Operations,ASDA  STORES LTD,Building Materials,Revenue,160747,1242,10/08/2015,4.89,Nil,GROCERY STORES/SUPERMARKETS,GPC,Not Yet Available
Wakefield MDC,E08000036,30/09/2015,BUSINESS,A,Net (Surplus) / Deficit of Trading Operations,ASDA  STORES LTD,Building Materials,Revenue,160747,1437,10/08/2015,4.91,Nil,GROCERY STORES/SUPERMARKETS,GPC,Not Yet Available
Wakefield MDC,E08000036,30/09/2015,BUSINESS,A,Net (Surplus) / Deficit of Trading Operations,ASDA  STORES LTD,Building Materials,Revenue,160747,1277,10/08/2015,6.18,Nil,GROCERY STORES/SUPERMARKETS,GPC,Not Yet Available
Wakefield MDC,E08000036,30/09/2015,BUSINESS,A,Net (Surplus) / Deficit of Trading Operations,B & Q,Building Materials,Revenue,160745,2165,29/07/2015,1.67,Nil,LUMBER/BUILDING MATERIALS STORES,GPC,Not Yet Available
Wakefield MDC,E08000036,30/09/2015,BUSINESS,A,Net (Surplus) / Deficit of Trading Operations,B & Q,Building Materials,Revenue,160745,2176,29/07/2015,2.08,Nil,LUMBER/BUILDING MATERIALS STORES,GPC,Not Yet Available
Wakefield MDC,E08000036,30/09/2015,BUSINESS,A,Net (Surplus) / Deficit of Trading Operations,B & Q,Building Materials,Revenue,160745,2178,29/07/2015,2.08,Nil,LUMBER/BUILDING MATERIALS STORES,GPC,Not Yet Available
Wakefield MDC,E08000036,30/09/2015,BUSINESS,A,Net (Surplus) / Deficit of Trading Operations,B & Q,Building Materials,Revenue,160748,65,18/08/2015,3.34,Nil,LUMBER/BUILDING MATERIALS STORES,GPC,Not Yet Available
Wakefield MDC,E08000036,30/09/2015,BUSINESS,A,Net (Surplus) / Deficit of Trading Operations,B & Q,Building Materials,Revenue,160745,2154,29/07/2015,3.83,Nil,LUMBER/BUILDING MATERIALS STORES,GPC,Not Yet Available
Wakefield MDC,E08000036,30/09/2015,BUSINESS,A,Net (Surplus) / Deficit of Trading Operations,B & Q,Building Materials,Revenue,160759,1094,23/09/2015,4.32,Nil,LUMBER/BUILDING MATERIALS STORES,GPC,Not Yet Available
Wakefield MDC,E08000036,30/09/2015,BUSINESS,A,Net (Surplus) / Deficit of Trading Operations,B & Q,Building Materials,Revenue,160744,3128,16/07/2015,4.78,Nil,LUMBER/BUILDING MATERIALS STORES,GPC,Not Yet Available
Wakefield MDC,E08000036,30/09/2015,BUSINESS,A,Net (Surplus) / Deficit of Trading Operations,B & Q,Building Materials,Revenue,160759,677,23/09/2015,4.88,Nil,LUMBER/BUILDING MATERIALS STORES,GPC,Not Yet Available
Wakefield MDC,E08000036,30/09/2015,BUSINESS,A,Net (Surplus) / Deficit of Trading Operations,B & Q,Building Materials,Revenue,160752,369,09/09/2015,6.27,Nil,LUMBER/BUILDING MATERIALS STORES,GPC,Not Yet Available
Wakefield MDC,E08000036,30/09/2015,BUSINESS,A,Net (Surplus) / Deficit of Trading Operations,B & Q,Building Materials,Revenue,160759,713,23/09/2015,6.62,Nil,LUMBER/BUILDING MATERIALS STORES,GPC,Not Yet Available
Wakefield MDC,E08000036,30/09/2015,BUSINESS,A,Net (Surplus) / Deficit of Trading Operations,B & Q,Building Materials,Revenue,160748,61,18/08/2015,7.94,Nil,LUMBER/BUILDING MATERIALS STORES,GPC,Not Yet Available
Wakefield MDC,E08000036,30/09/2015,BUSINESS,A,Net (Surplus) / Deficit of Trading Operations,B & Q,Building Materials,Revenue,160745,2192,29/07/2015,10.01,Nil,LUMBER/BUILDING MATERIALS STORES,GPC,Not Yet Available
Wakefield MDC,E08000036,30/09/2015,BUSINESS,A,Net (Surplus) / Deficit of Trading Operations,B & Q,Building Materials,Revenue,160752,254,09/09/2015,23.43,Nil,LUMBER/BUILDING MATERIALS STORES,GPC,Not Yet Available
Wakefield MDC,E08000036,30/09/2015,BUSINESS,A,Net (Surplus) / Deficit of Trading Operations,B & Q,Building Materials,Revenue,160752,104,09/09/2015,42.07,Nil,LUMBER/BUILDING MATERIALS STORES,GPC,Not Yet Available
Wakefield MDC,E08000036,30/09/2015,BUSINESS,A,Net (Surplus) / Deficit of Trading Operations,B & Q,Building Materials,Revenue,160752,367,09/09/2015,55.42,Nil,LUMBER/BUILDING MATERIALS STORES,GPC,Not Yet Available
Wakefield MDC,E08000036,30/09/2015,BUSINESS,A,Net (Surplus) / Deficit of Trading Operations,B & Q,Building Materials,Revenue,160744,236,16/07/2015,6.67,Nil,LUMBER/BUILDING MATERIALS STORES,GPC,Not Yet Available
Wakefield MDC,E08000036,30/09/2015,BUSINESS,A,Net (Surplus) / Deficit of Trading Operations,B & Q,Building Materials,Revenue,160759,715,23/09/2015,13.02,Nil,LUMBER/BUILDING MATERIALS STORES,GPC,Not Yet Available
Wakefield MDC,E08000036,30/09/2015,BUSINESS,A,Net (Surplus) / Deficit of Trading Operations,B & Q,Building Materials,Revenue,160752,425,09/09/2015,18.93,Nil,LUMBER/BUILDING MATERIALS STORES,GPC,Not Yet Available
Wakefield MDC,E08000036,30/09/2015,BUSINESS,A,Net (Surplus) / Deficit of Trading Operations,B & Q,Building Materials,Revenue,160746,915,10/08/2015,4.36,Nil,LUMBER/BUILDING MATERIALS STORES,GPC,Not Yet Available
Wakefield MDC,E08000036,30/09/2015,BUSINESS,A,Net (Surplus) / Deficit of Trading Operations,B & Q,Building Materials,Revenue,160746,920,10/08/2015,4.36,Nil,LUMBER/BUILDING MATERIALS STORES,GPC,Not Yet Available
Wakefield MDC,E08000036,30/09/2015,BUSINESS,A,Net (Surplus) / Deficit of Trading Operations,B & Q,Building Materials,Revenue,160746,910,10/08/2015,4.36,Nil,LUMBER/BUILDING MATERIALS STORES,GPC,Not Yet Available
Wakefield MDC,E08000036,30/09/2015,BUSINESS,A,Net (Surplus) / Deficit of Trading Operations,B & Q,Building Materials,Revenue,160746,908,10/08/2015,4.36,Nil,LUMBER/BUILDING MATERIALS STORES,GPC,Not Yet Available
Wakefield MDC,E08000036,30/09/2015,BUSINESS,A,Net (Surplus) / Deficit of Trading Operations,B & Q,Building Materials,Revenue,160746,903,10/08/2015,8.33,Nil,LUMBER/BUILDING MATERIALS STORES,GPC,Not Yet Available
Wakefield MDC,E08000036,30/09/2015,BUSINESS,A,Net (Surplus) / Deficit of Trading Operations,B & Q,Building Materials,Revenue,160746,898,10/08/2015,8.35,Nil,LUMBER/BUILDING MATERIALS STORES,GPC,Not Yet Available
Wakefield MDC,E08000036,30/09/2015,BUSINESS,A,Net (Surplus) / Deficit of Trading Operations,B & Q,Building Materials,Revenue,160759,239,23/09/2015,14.17,Nil,LUMBER/BUILDING MATERIALS STORES,GPC,Not Yet Available
Wakefield MDC,E08000036,30/09/2015,BUSINESS,A,Net (Surplus) / Deficit of Trading Operations,BAPP INTERNATIONAL,Building Materials,Revenue,160759,1015,23/09/2015,136.40,Nil,INDUSTRIAL SUPPLIES NOT ELSEWHERE CLASSIFIED,GPC,Not Yet Available
Wakefield MDC,E08000036,30/09/2015,BUSINESS,A,Net (Surplus) / Deficit of Trading Operations,BMB BUILDBASE,Building Materials,Revenue,160746,296,10/08/2015,5.26,Nil,BUILDING MATERIALS LUMBER STORES,GPC,Not Yet Available
Wakefield MDC,E08000036,30/09/2015,BUSINESS,A,Net (Surplus) / Deficit of Trading Operations,BMB BUILDBASE,Building Materials,Revenue,160744,1222,16/07/2015,6.00,Nil,BUILDING MATERIALS LUMBER STORES,GPC,Not Yet Available
Wakefield MDC,E08000036,30/09/2015,BUSINESS,A,Net (Surplus) / Deficit of Trading Operations,BMB BUILDBASE,Building Materials,Revenue,160757,100,17/09/2015,6.80,Nil,BUILDING MATERIALS LUMBER STORES,GPC,Not Yet Available
Wakefield MDC,E08000036,30/09/2015,BUSINESS,A,Net (Surplus) / Deficit of Trading Operations,BMB BUILDBASE,Building Materials,Revenue,160752,307,09/09/2015,6.82,Nil,BUILDING MATERIALS LUMBER STORES,GPC,Not Yet Available
Wakefield MDC,E08000036,30/09/2015,BUSINESS,A,Net (Surplus) / Deficit of Trading Operations,BMB BUILDBASE,Building Materials,Revenue,160759,573,23/09/2015,7.95,Nil,BUILDING MATERIALS LUMBER STORES,GPC,Not Yet Available
Wakefield MDC,E08000036,30/09/2015,BUSINESS,A,Net (Surplus) / Deficit of Trading Operations,BMB BUILDBASE,Building Materials,Revenue,160745,2179,29/07/2015,9.46,Nil,BUILDING MATERIALS LUMBER STORES,GPC,Not Yet Available
Wakefield MDC,E08000036,30/09/2015,BUSINESS,A,Net (Surplus) / Deficit of Trading Operations,BMB BUILDBASE,Building Materials,Revenue,160746,288,10/08/2015,12.42,Nil,BUILDING MATERIALS LUMBER STORES,GPC,Not Yet Available
Wakefield MDC,E08000036,30/09/2015,BUSINESS,A,Net (Surplus) / Deficit of Trading Operations,BMB BUILDBASE,Building Materials,Revenue,160744,1220,16/07/2015,13.72,Nil,BUILDING MATERIALS LUMBER STORES,GPC,Not Yet Available
Wakefield MDC,E08000036,30/09/2015,BUSINESS,A,Net (Surplus) / Deficit of Trading Operations,BMB BUILDBASE,Building Materials,Revenue,160744,1245,16/07/2015,16.81,Nil,BUILDING MATERIALS LUMBER STORES,GPC,Not Yet Available
Wakefield MDC,E08000036,30/09/2015,BUSINESS,A,Net (Surplus) / Deficit of Trading Operations,BMB BUILDBASE,Building Materials,Revenue,160759,655,23/09/2015,17.79,Nil,BUILDING MATERIALS LUMBER STORES,GPC,Not Yet Available
Wakefield MDC,E08000036,30/09/2015,BUSINESS,A,Net (Surplus) / Deficit of Trading Operations,BMB BUILDBASE,Building Materials,Revenue,160745,1992,29/07/2015,18.05,Nil,BUILDING MATERIALS LUMBER STORES,GPC,Not Yet Available
Wakefield MDC,E08000036,30/09/2015,BUSINESS,A,Net (Surplus) / Deficit of Trading Operations,BMB BUILDBASE,Building Materials,Revenue,160746,1123,10/08/2015,18.43,Nil,BUILDING MATERIALS LUMBER STORES,GPC,Not Yet Available
Wakefield MDC,E08000036,30/09/2015,BUSINESS,A,Net (Surplus) / Deficit of Trading Operations,BMB BUILDBASE,Building Materials,Revenue,160755,,16/09/2015,19.81,Nil,BUILDING MATERIALS LUMBER STORES,GPC,Not Yet Available
Wakefield MDC,E08000036,30/09/2015,BUSINESS,A,Net (Surplus) / Deficit of Trading Operations,BMB BUILDBASE,Building Materials,Revenue,160759,190,23/09/2015,21.24,Nil,BUILDING MATERIALS LUMBER STORES,GPC,Not Yet Available
Wakefield MDC,E08000036,30/09/2015,BUSINESS,A,Net (Surplus) / Deficit of Trading Operations,BMB BUILDBASE,Building Materials,Revenue,160752,370,09/09/2015,21.96,Nil,BUILDING MATERIALS LUMBER STORES,GPC,Not Yet Available
Wakefield MDC,E08000036,30/09/2015,BUSINESS,A,Net (Surplus) / Deficit of Trading Operations,BMB BUILDBASE,Building Materials,Revenue,160744,1295,16/07/2015,25.01,Nil,BUILDING MATERIALS LUMBER STORES,GPC,Not Yet Available
Wakefield MDC,E08000036,30/09/2015,BUSINESS,A,Net (Surplus) / Deficit of Trading Operations,BMB BUILDBASE,Building Materials,Revenue,160752,308,09/09/2015,26.35,Nil,BUILDING MATERIALS LUMBER STORES,GPC,Not Yet Available
Wakefield MDC,E08000036,30/09/2015,BUSINESS,A,Net (Surplus) / Deficit of Trading Operations,BMB BUILDBASE,Building Materials,Revenue,160752,279,09/09/2015,30.23,Nil,BUILDING MATERIALS LUMBER STORES,GPC,Not Yet Available
Wakefield MDC,E08000036,30/09/2015,BUSINESS,A,Net (Surplus) / Deficit of Trading Operations,BMB BUILDBASE,Building Materials,Revenue,160746,1045,10/08/2015,31.15,Nil,BUILDING MATERIALS LUMBER STORES,GPC,Not Yet Available
Wakefield MDC,E08000036,30/09/2015,BUSINESS,A,Net (Surplus) / Deficit of Trading Operations,BMB BUILDBASE,Building Materials,Revenue,160759,439,23/09/2015,31.29,Nil,BUILDING MATERIALS LUMBER STORES,GPC,Not Yet Available
Wakefield MDC,E08000036,30/09/2015,BUSINESS,A,Net (Surplus) / Deficit of Trading Operations,BMB BUILDBASE,Building Materials,Revenue,160744,1297,16/07/2015,32.04,Nil,BUILDING MATERIALS LUMBER STORES,GPC,Not Yet Available
Wakefield MDC,E08000036,30/09/2015,BUSINESS,A,Net (Surplus) / Deficit of Trading Operations,BMB BUILDBASE,Building Materials,Revenue,160759,53,23/09/2015,33.00,Nil,BUILDING MATERIALS LUMBER STORES,GPC,Not Yet Available
Wakefield MDC,E08000036,30/09/2015,BUSINESS,A,Net (Surplus) / Deficit of Trading Operations,BMB BUILDBASE,Building Materials,Revenue,160759,56,23/09/2015,47.73,Nil,BUILDING MATERIALS LUMBER STORES,GPC,Not Yet Available
Wakefield MDC,E08000036,30/09/2015,BUSINESS,A,Net (Surplus) / Deficit of Trading Operations,BMB BUILDBASE,Building Materials,Revenue,160759,385,23/09/2015,50.00,Nil,BUILDING MATERIALS LUMBER STORES,GPC,Not Yet Available
Wakefield MDC,E08000036,30/09/2015,BUSINESS,A,Net (Surplus) / Deficit of Trading Operations,BMB BUILDBASE,Building Materials,Revenue,160759,240,23/09/2015,148.33,Nil,BUILDING MATERIALS LUMBER STORES,GPC,Not Yet Available
Wakefield MDC,E08000036,30/09/2015,BUSINESS,A,Net (Surplus) / Deficit of Trading Operations,BMB BUILDBASE,Building Materials,Revenue,160759,288,23/09/2015,166.67,Nil,BUILDING MATERIALS LUMBER STORES,GPC,Not Yet Available
Wakefield MDC,E08000036,30/09/2015,BUSINESS,A,Net (Surplus) / Deficit of Trading Operations,BMB BUILDBASE,Building Materials,Revenue,160745,1652,29/07/2015,2.95,Nil,BUILDING MATERIALS LUMBER STORES,GPC,Not Yet Available
Wakefield MDC,E08000036,30/09/2015,BUSINESS,A,Net (Surplus) / Deficit of Trading Operations,BSS GROUP PLC,Building Materials,Revenue,160745,745,29/07/2015,4.64,Nil,PLUMBING AND HEATING EQUIPMENT,GPC,Not Yet Available
Wakefield MDC,E08000036,30/09/2015,BUSINESS,A,Net (Surplus) / Deficit of Trading Operations,BSS GROUP PLC,Building Materials,Revenue,160745,814,29/07/2015,7.86,Nil,PLUMBING AND HEATING EQUIPMENT,GPC,Not Yet Available
Wakefield MDC,E08000036,30/09/2015,BUSINESS,A,Net (Surplus) / Deficit of Trading Operations,BSS GROUP PLC,Building Materials,Revenue,160745,764,29/07/2015,8.84,Nil,PLUMBING AND HEATING EQUIPMENT,GPC,Not Yet Available
Wakefield MDC,E08000036,30/09/2015,BUSINESS,A,Net (Surplus) / Deficit of Trading Operations,BSS GROUP PLC,Building Materials,Revenue,160745,788,29/07/2015,8.91,Nil,PLUMBING AND HEATING EQUIPMENT,GPC,Not Yet Available
Wakefield MDC,E08000036,30/09/2015,BUSINESS,A,Net (Surplus) / Deficit of Trading Operations,BSS GROUP PLC,Building Materials,Revenue,160745,812,29/07/2015,10.13,Nil,PLUMBING AND HEATING EQUIPMENT,GPC,Not Yet Available
Wakefield MDC,E08000036,30/09/2015,BUSINESS,A,Net (Surplus) / Deficit of Trading Operations,BSS GROUP PLC,Building Materials,Revenue,160745,801,29/07/2015,10.84,Nil,PLUMBING AND HEATING EQUIPMENT,GPC,Not Yet Available
Wakefield MDC,E08000036,30/09/2015,BUSINESS,A,Net (Surplus) / Deficit of Trading Operations,BSS GROUP PLC,Building Materials,Revenue,160745,766,29/07/2015,11.18,Nil,PLUMBING AND HEATING EQUIPMENT,GPC,Not Yet Available
Wakefield MDC,E08000036,30/09/2015,BUSINESS,A,Net (Surplus) / Deficit of Trading Operations,BSS GROUP PLC,Building Materials,Revenue,160745,777,29/07/2015,11.88,Nil,PLUMBING AND HEATING EQUIPMENT,GPC,Not Yet Available
Wakefield MDC,E08000036,30/09/2015,BUSINESS,A,Net (Surplus) / Deficit of Trading Operations,BSS GROUP PLC,Building Materials,Revenue,160745,790,29/07/2015,20.77,Nil,PLUMBING AND HEATING EQUIPMENT,GPC,Not Yet Available
Wakefield MDC,E08000036,30/09/2015,BUSINESS,A,Net (Surplus) / Deficit of Trading Operations,BSS GROUP PLC,Building Materials,Revenue,160745,743,29/07/2015,38.62,Nil,PLUMBING AND HEATING EQUIPMENT,GPC,Not Yet Available
Wakefield MDC,E08000036,30/09/2015,BUSINESS,A,Net (Surplus) / Deficit of Trading Operations,BSS GROUP PLC,Building Materials,Revenue,160745,825,29/07/2015,43.18,Nil,PLUMBING AND HEATING EQUIPMENT,GPC,Not Yet Available
Wakefield MDC,E08000036,30/09/2015,BUSINESS,A,Net (Surplus) / Deficit of Trading Operations,BSS GROUP PLC,Building Materials,Revenue,160745,756,29/07/2015,85.72,Nil,PLUMBING AND HEATING EQUIPMENT,GPC,Not Yet Available
Wakefield MDC,E08000036,30/09/2015,BUSINESS,A,Net (Surplus) / Deficit of Trading Operations,BSS LEEDS,Building Materials,Revenue,160759,957,23/09/2015,-2.76,Nil,PLUMBING AND HEATING EQUIPMENT,GPC,Not Yet Available
Wakefield MDC,E08000036,30/09/2015,BUSINESS,A,Net (Surplus) / Deficit of Trading Operations,BSS LEEDS,Building Materials,Revenue,160759,958,23/09/2015,16.56,Nil,PLUMBING AND HEATING EQUIPMENT,GPC,Not Yet Available
Wakefield MDC,E08000036,30/09/2015,BUSINESS,A,Net (Surplus) / Deficit of Trading Operations,BSS PTS WAKEFIELD,Building Materials,Revenue,160744,3104,16/07/2015,28.74,Nil,LUMBER/BUILDING MATERIALS STORES,GPC,Not Yet Available
Wakefield MDC,E08000036,30/09/2015,BUSINESS,A,Net (Surplus) / Deficit of Trading Operations,BSS PTS WAKEFIELD,Building Materials,Revenue,160744,3084,16/07/2015,29.42,Nil,LUMBER/BUILDING MATERIALS STORES,GPC,Not Yet Available
Wakefield MDC,E08000036,30/09/2015,BUSINESS,A,Net (Surplus) / Deficit of Trading Operations,BSS PTS WAKEFIELD,Building Materials,Revenue,160748,324,18/08/2015,70.16,Nil,LUMBER/BUILDING MATERIALS STORES,GPC,Not Yet Available
Wakefield MDC,E08000036,30/09/2015,BUSINESS,A,Net (Surplus) / Deficit of Trading Operations,BUILDBASE,Building Materials,Revenue,160752,186,09/09/2015,17.32,Nil,BUILDING MATERIALS LUMBER STORES,GPC,Not Yet Available
Wakefield MDC,E08000036,30/09/2015,BUSINESS,A,Net (Surplus) / Deficit of Trading Operations,BUILDBASE,Building Materials,Revenue,160752,227,09/09/2015,70.00,Nil,BUILDING MATERIALS LUMBER STORES,GPC,Not Yet Available
Wakefield MDC,E08000036,30/09/2015,BUSINESS,A,Net (Surplus) / Deficit of Trading Operations,BUILDBASE,Building Materials,Revenue,160752,209,09/09/2015,105.00,Nil,BUILDING MATERIALS LUMBER STORES,GPC,Not Yet Available
Wakefield MDC,E08000036,30/09/2015,BUSINESS,A,Net (Surplus) / Deficit of Trading Operations,BUILDBASE,Building Materials,Revenue,160752,158,09/09/2015,203.89,Nil,BUILDING MATERIALS LUMBER STORES,GPC,Not Yet Available
Wakefield MDC,E08000036,30/09/2015,BUSINESS,A,Net (Surplus) / Deficit of Trading Operations,BUY A PARCEL,Building Materials,Revenue,160746,241,10/08/2015,438.27,Nil,HOUSEHOLD APPLIANCE STORES,GPC,Not Yet Available
Wakefield MDC,E08000036,30/09/2015,BUSINESS,A,Net (Surplus) / Deficit of Trading Operations,CALDER SECURITY,Building Materials,Revenue,160766,807,02/10/2015,39.56,Nil,HARDWARE STORES,GPC,Not Yet Available
Wakefield MDC,E08000036,30/09/2015,BUSINESS,A,Net (Surplus) / Deficit of Trading Operations,CALDER SECURITY,Building Materials,Revenue,160747,1151,10/08/2015,208.37,Nil,HARDWARE STORES,GPC,Not Yet Available
Wakefield MDC,E08000036,30/09/2015,BUSINESS,A,Net (Surplus) / Deficit of Trading Operations,CALDER SECURITY,Building Materials,Revenue,160759,893,23/09/2015,12.69,Nil,HARDWARE STORES,GPC,Not Yet Available
Wakefield MDC,E08000036,30/09/2015,BUSINESS,A,Net (Surplus) / Deficit of Trading Operations,CALDER SECURITY,Building Materials,Revenue,160766,434,02/10/2015,27.81,Nil,HARDWARE STORES,GPC,Not Yet Available
Wakefield MDC,E08000036,30/09/2015,BUSINESS,A,Net (Surplus) / Deficit of Trading Operations,CARPET & FLOORING,Building Materials,Revenue,160757,208,17/09/2015,1377.00,Nil,INDUSTRIAL SUPPLIES NOT ELSEWHERE CLASSIFIED,GPC,Not Yet Available
Wakefield MDC,E08000036,30/09/2015,BUSINESS,A,Net (Surplus) / Deficit of Trading Operations,CASTLE CERAMICS & STONE,Building Materials,Revenue,160766,819,02/10/2015,95.40,Nil,FLOOR COVERING STORES,GPC,Not Yet Available
Wakefield MDC,E08000036,30/09/2015,BUSINESS,A,Net (Surplus) / Deficit of Trading Operations,CASTLE CERAMICS & STONE,Building Materials,Revenue,160752,182,09/09/2015,107.50,Nil,FLOOR COVERING STORES,GPC,Not Yet Available
Wakefield MDC,E08000036,30/09/2015,BUSINESS,A,Net (Surplus) / Deficit of Trading Operations,CLARKES SAFETY MIRROR,Building Materials,Revenue,160744,4074,16/07/2015,61.40,Nil,GLASS/PAINT/WALLPAPER STORES,GPC,Not Yet Available
Wakefield MDC,E08000036,30/09/2015,BUSINESS,A,Net (Surplus) / Deficit of Trading Operations,COMBINED PRECISION,Building Materials,Revenue,160755,255,16/09/2015,46.07,Nil,ELECTRICAL PARTS AND EQUIPMENT,GPC,Not Yet Available
Wakefield MDC,E08000036,30/09/2015,BUSINESS,A,Net (Surplus) / Deficit of Trading Operations,COMBINED PRECISION,Building Materials,Revenue,160755,257,16/09/2015,89.76,Nil,ELECTRICAL PARTS AND EQUIPMENT,GPC,Not Yet Available
Wakefield MDC,E08000036,30/09/2015,BUSINESS,A,Net (Surplus) / Deficit of Trading Operations,CONSTRUCTION MATERIALS,Building Materials,Revenue,160766,804,02/10/2015,187.85,Nil,BUILDING MATERIALS LUMBER STORES,GPC,Not Yet Available
Wakefield MDC,E08000036,30/09/2015,BUSINESS,A,Net (Surplus) / Deficit of Trading Operations,CONSTRUCTION MATERIALS,Building Materials,Revenue,160746,187,10/08/2015,295.00,Nil,LUMBER/BUILDING MATERIALS STORES,GPC,Not Yet Available
Wakefield MDC,E08000036,30/09/2015,BUSINESS,A,Net (Surplus) / Deficit of Trading Operations,CROSSLING BANCROFT,Building Materials,Revenue,160744,4932,16/07/2015,85.24,Nil,PLUMBING AND HEATING EQUIPMENT,GPC,Not Yet Available
Wakefield MDC,E08000036,30/09/2015,BUSINESS,A,Net (Surplus) / Deficit of Trading Operations,CROSSLING BANCROFT,Building Materials,Revenue,160752,380,09/09/2015,4.37,Nil,PLUMBING AND HEATING EQUIPMENT,GPC,Not Yet Available
Wakefield MDC,E08000036,30/09/2015,BUSINESS,A,Net (Surplus) / Deficit of Trading Operations,CROSSLING BANCROFT,Building Materials,Revenue,160759,711,23/09/2015,6.74,Nil,PLUMBING AND HEATING EQUIPMENT,GPC,Not Yet Available
Wakefield MDC,E08000036,30/09/2015,BUSINESS,A,Net (Surplus) / Deficit of Trading Operations,CROSSLING BANCROFT,Building Materials,Revenue,160744,4888,16/07/2015,7.93,Nil,PLUMBING AND HEATING EQUIPMENT,GPC,Not Yet Available
Wakefield MDC,E08000036,30/09/2015,BUSINESS,A,Net (Surplus) / Deficit of Trading Operations,CROSSLING BANCROFT,Building Materials,Revenue,160752,266,09/09/2015,11.03,Nil,PLUMBING AND HEATING EQUIPMENT,GPC,Not Yet Available
Wakefield MDC,E08000036,30/09/2015,BUSINESS,A,Net (Surplus) / Deficit of Trading Operations,CROSSLING BANCROFT,Building Materials,Revenue,160752,323,09/09/2015,13.61,Nil,PLUMBING AND HEATING EQUIPMENT,GPC,Not Yet Available
Wakefield MDC,E08000036,30/09/2015,BUSINESS,A,Net (Surplus) / Deficit of Trading Operations,CROSSLING BANCROFT,Building Materials,Revenue,160746,866,10/08/2015,15.74,Nil,PLUMBING AND HEATING EQUIPMENT,GPC,Not Yet Available
Wakefield MDC,E08000036,30/09/2015,BUSINESS,A,Net (Surplus) / Deficit of Trading Operations,CROSSLING BANCROFT,Building Materials,Revenue,160745,849,29/07/2015,19.12,Nil,PLUMBING AND HEATING EQUIPMENT,GPC,Not Yet Available
Wakefield MDC,E08000036,30/09/2015,BUSINESS,A,Net (Surplus) / Deficit of Trading Operations,CROSSLING BANCROFT,Building Materials,Revenue,160745,860,29/07/2015,23.13,Nil,PLUMBING AND HEATING EQUIPMENT,GPC,Not Yet Available
Wakefield MDC,E08000036,30/09/2015,BUSINESS,A,Net (Surplus) / Deficit of Trading Operations,CROSSLING BANCROFT,Building Materials,Revenue,160745,836,29/07/2015,36.09,Nil,PLUMBING AND HEATING EQUIPMENT,GPC,Not Yet Available
Wakefield MDC,E08000036,30/09/2015,BUSINESS,A,Net (Surplus) / Deficit of Trading Operations,CROSSLING BANCROFT,Building Materials,Revenue,160748,573,18/08/2015,42.41,Nil,PLUMBING AND HEATING EQUIPMENT,GPC,Not Yet Available
Wakefield MDC,E08000036,30/09/2015,BUSINESS,A,Net (Surplus) / Deficit of Trading Operations,CROSSLING BANCROFT,Building Materials,Revenue,160745,838,29/07/2015,43.72,Nil,PLUMBING AND HEATING EQUIPMENT,GPC,Not Yet Available
Wakefield MDC,E08000036,30/09/2015,BUSINESS,A,Net (Surplus) / Deficit of Trading Operations,CROSSLING BANCROFT,Building Materials,Revenue,160752,179,09/09/2015,45.36,Nil,PLUMBING AND HEATING EQUIPMENT,GPC,Not Yet Available
Wakefield MDC,E08000036,30/09/2015,BUSINESS,A,Net (Surplus) / Deficit of Trading Operations,CROSSLING BANCROFT,Building Materials,Revenue,160745,862,29/07/2015,63.96,Nil,PLUMBING AND HEATING EQUIPMENT,GPC,Not Yet Available
Wakefield MDC,E08000036,30/09/2015,BUSINESS,A,Net (Surplus) / Deficit of Trading Operations,CROSSLING BANCROFT,Building Materials,Revenue,160744,4949,16/07/2015,116.28,Nil,PLUMBING AND HEATING EQUIPMENT,GPC,Not Yet Available
Wakefield MDC,E08000036,30/09/2015,BUSINESS,A,Net (Surplus) / Deficit of Trading Operations,CROSSLING BANCROFT,Building Materials,Revenue,160744,4886,16/07/2015,183.93,Nil,PLUMBING AND HEATING EQUIPMENT,GPC,Not Yet Available
Wakefield MDC,E08000036,30/09/2015,BUSINESS,A,Net (Surplus) / Deficit of Trading Operations,DIRECT EQUIP,Building Materials,Revenue,160744,656,16/07/2015,181.65,Nil,HOUSEHOLD APPLIANCE STORES,GPC,Not Yet Available
Wakefield MDC,E08000036,30/09/2015,BUSINESS,A,Net (Surplus) / Deficit of Trading Operations,DISCOUNTED HEATING,Building Materials,Revenue,160752,328,09/09/2015,25.95,Nil,HEATING/PLUMBING/AIR CONDITIONING CONTRACTORS,GPC,Not Yet Available
Wakefield MDC,E08000036,30/09/2015,BUSINESS,A,Net (Surplus) / Deficit of Trading Operations,DIXON HALL AND CO,Building Materials,Revenue,160752,310,09/09/2015,5.19,Nil,HARDWARE EQUIPMENT AND SUPPLIES,GPC,Not Yet Available
Wakefield MDC,E08000036,30/09/2015,BUSINESS,A,Net (Surplus) / Deficit of Trading Operations,DIXON HALL AND CO,Building Materials,Revenue,160759,854,23/09/2015,3.36,Nil,HARDWARE EQUIPMENT AND SUPPLIES,GPC,Not Yet Available
Wakefield MDC,E08000036,30/09/2015,BUSINESS,A,Net (Surplus) / Deficit of Trading Operations,DIXON HALL AND CO,Building Materials,Revenue,160759,855,23/09/2015,20.77,Nil,HARDWARE EQUIPMENT AND SUPPLIES,GPC,Not Yet Available
Wakefield MDC,E08000036,30/09/2015,BUSINESS,A,Net (Surplus) / Deficit of Trading Operations,DIXON HALL AND CO,Building Materials,Revenue,160752,124,09/09/2015,39.92,Nil,HARDWARE EQUIPMENT AND SUPPLIES,GPC,Not Yet Available
Wakefield MDC,E08000036,30/09/2015,BUSINESS,A,Net (Surplus) / Deficit of Trading Operations,DIXON HALL AND CO,Building Materials,Revenue,160766,465,02/10/2015,43.35,Nil,HARDWARE EQUIPMENT AND SUPPLIES,GPC,Not Yet Available
Wakefield MDC,E08000036,30/09/2015,BUSINESS,A,Net (Surplus) / Deficit of Trading Operations,DOOR FURNITURE DIRECT,Building Materials,Revenue,160759,990,23/09/2015,162.90,Nil,HARDWARE STORES,GPC,Not Yet Available
Wakefield MDC,E08000036,30/09/2015,BUSINESS,A,Net (Surplus) / Deficit of Trading Operations,DOOR FURNITURE DIRECT,Building Materials,Revenue,160746,65,10/08/2015,325.80,Nil,HARDWARE STORES,GPC,Not Yet Available
Wakefield MDC,E08000036,30/09/2015,BUSINESS,A,Net (Surplus) / Deficit of Trading Operations,DOOR FURNITURE DIRECT,Building Materials,Revenue,160759,367,23/09/2015,325.80,Nil,HARDWARE STORES,GPC,Not Yet Available
Wakefield MDC,E08000036,30/09/2015,BUSINESS,A,Net (Surplus) / Deficit of Trading Operations,DOOR FURNITURE DIRECT,Building Materials,Revenue,160746,246,10/08/2015,434.40,Nil,HARDWARE STORES,GPC,Not Yet Available
Wakefield MDC,E08000036,30/09/2015,BUSINESS,A,Net (Surplus) / Deficit of Trading Operations,DOUBLE D DECOR CTR,Building Materials,Revenue,160744,40,16/07/2015,2.62,Nil,GLASS/PAINT/WALLPAPER STORES,GPC,Not Yet Available
Wakefield MDC,E08000036,30/09/2015,BUSINESS,A,Net (Surplus) / Deficit of Trading Operations,DRAIN CENTER,Building Materials,Revenue,160752,137,09/09/2015,-9.98,Nil,HEATING/PLUMBING/AIR CONDITIONING CONTRACTORS,GPC,Not Yet Available
Wakefield MDC,E08000036,30/09/2015,BUSINESS,A,Net (Surplus) / Deficit of Trading Operations,DRAIN CENTER,Building Materials,Revenue,160752,145,09/09/2015,-7.49,Nil,HEATING/PLUMBING/AIR CONDITIONING CONTRACTORS,GPC,Not Yet Available
Wakefield MDC,E08000036,30/09/2015,BUSINESS,A,Net (Surplus) / Deficit of Trading Operations,DRAIN CENTER,Building Materials,Revenue,160752,141,09/09/2015,-5.76,Nil,HEATING/PLUMBING/AIR CONDITIONING CONTRACTORS,GPC,Not Yet Available
Wakefield MDC,E08000036,30/09/2015,BUSINESS,A,Net (Surplus) / Deficit of Trading Operations,DRAIN CENTER,Building Materials,Revenue,160752,144,09/09/2015,-4.45,Nil,HEATING/PLUMBING/AIR CONDITIONING CONTRACTORS,GPC,Not Yet Available
Wakefield MDC,E08000036,30/09/2015,BUSINESS,A,Net (Surplus) / Deficit of Trading Operations,DRAIN CENTER,Building Materials,Revenue,160752,149,09/09/2015,-3.18,Nil,HEATING/PLUMBING/AIR CONDITIONING CONTRACTORS,GPC,Not Yet Available
Wakefield MDC,E08000036,30/09/2015,BUSINESS,A,Net (Surplus) / Deficit of Trading Operations,DRAIN CENTER,Building Materials,Revenue,160752,140,09/09/2015,-2.99,Nil,HEATING/PLUMBING/AIR CONDITIONING CONTRACTORS,GPC,Not Yet Available
Wakefield MDC,E08000036,30/09/2015,BUSINESS,A,Net (Surplus) / Deficit of Trading Operations,DRAIN CENTER,Building Materials,Revenue,160752,142,09/09/2015,-2.72,Nil,HEATING/PLUMBING/AIR CONDITIONING CONTRACTORS,GPC,Not Yet Available
Wakefield MDC,E08000036,30/09/2015,BUSINESS,A,Net (Surplus) / Deficit of Trading Operations,DRAIN CENTER,Building Materials,Revenue,160752,143,09/09/2015,-1.77,Nil,HEATING/PLUMBING/AIR CONDITIONING CONTRACTORS,GPC,Not Yet Available
Wakefield MDC,E08000036,30/09/2015,BUSINESS,A,Net (Surplus) / Deficit of Trading Operations,DRAIN CENTER,Building Materials,Revenue,160752,148,09/09/2015,-1.71,Nil,HEATING/PLUMBING/AIR CONDITIONING CONTRACTORS,GPC,Not Yet Available
Wakefield MDC,E08000036,30/09/2015,BUSINESS,A,Net (Surplus) / Deficit of Trading Operations,DRAIN CENTER,Building Materials,Revenue,160752,153,09/09/2015,-1.71,Nil,HEATING/PLUMBING/AIR CONDITIONING CONTRACTORS,GPC,Not Yet Available
Wakefield MDC,E08000036,30/09/2015,BUSINESS,A,Net (Surplus) / Deficit of Trading Operations,DRAIN CENTER,Building Materials,Revenue,160752,147,09/09/2015,-1.71,Nil,HEATING/PLUMBING/AIR CONDITIONING CONTRACTORS,GPC,Not Yet Available
Wakefield MDC,E08000036,30/09/2015,BUSINESS,A,Net (Surplus) / Deficit of Trading Operations,DRAIN CENTER,Building Materials,Revenue,160752,151,09/09/2015,-1.64,Nil,HEATING/PLUMBING/AIR CONDITIONING CONTRACTORS,GPC,Not Yet Available
Wakefield MDC,E08000036,30/09/2015,BUSINESS,A,Net (Surplus) / Deficit of Trading Operations,DRAIN CENTER,Building Materials,Revenue,160752,146,09/09/2015,-1.60,Nil,HEATING/PLUMBING/AIR CONDITIONING CONTRACTORS,GPC,Not Yet Available
Wakefield MDC,E08000036,30/09/2015,BUSINESS,A,Net (Surplus) / Deficit of Trading Operations,DRAIN CENTER,Building Materials,Revenue,160752,139,09/09/2015,-1.49,Nil,HEATING/PLUMBING/AIR CONDITIONING CONTRACTORS,GPC,Not Yet Available
Wakefield MDC,E08000036,30/09/2015,BUSINESS,A,Net (Surplus) / Deficit of Trading Operations,DRAIN CENTER,Building Materials,Revenue,160752,150,09/09/2015,-1.39,Nil,HEATING/PLUMBING/AIR CONDITIONING CONTRACTORS,GPC,Not Yet Available
Wakefield MDC,E08000036,30/09/2015,BUSINESS,A,Net (Surplus) / Deficit of Trading Operations,DRAIN CENTER,Building Materials,Revenue,160752,138,09/09/2015,-0.89,Nil,HEATING/PLUMBING/AIR CONDITIONING CONTRACTORS,GPC,Not Yet Available
Wakefield MDC,E08000036,30/09/2015,BUSINESS,A,Net (Surplus) / Deficit of Trading Operations,DRAIN CENTER,Building Materials,Revenue,160752,152,09/09/2015,-0.87,Nil,HEATING/PLUMBING/AIR CONDITIONING CONTRACTORS,GPC,Not Yet Available
Wakefield MDC,E08000036,30/09/2015,BUSINESS,A,Net (Surplus) / Deficit of Trading Operations,DRAIN CENTER,Building Materials,Revenue,160752,155,09/09/2015,0.02,Nil,HEATING/PLUMBING/AIR CONDITIONING CONTRACTORS,GPC,Not Yet Available
Wakefield MDC,E08000036,30/09/2015,BUSINESS,A,Net (Surplus) / Deficit of Trading Operations,DRAIN CENTER,Building Materials,Revenue,160745,1828,29/07/2015,2.48,Nil,HEATING/PLUMBING/AIR CONDITIONING CONTRACTORS,GPC,Not Yet Available
Wakefield MDC,E08000036,30/09/2015,BUSINESS,A,Net (Surplus) / Deficit of Trading Operations,DRAIN CENTER,Building Materials,Revenue,160745,1852,29/07/2015,4.80,Nil,HEATING/PLUMBING/AIR CONDITIONING CONTRACTORS,GPC,Not Yet Available
Wakefield MDC,E08000036,30/09/2015,BUSINESS,A,Net (Surplus) / Deficit of Trading Operations,DRAIN CENTER,Building Materials,Revenue,160745,1839,29/07/2015,4.97,Nil,HEATING/PLUMBING/AIR CONDITIONING CONTRACTORS,GPC,Not Yet Available
Wakefield MDC,E08000036,30/09/2015,BUSINESS,A,Net (Surplus) / Deficit of Trading Operations,DRAIN CENTER,Building Materials,Revenue,160745,1865,29/07/2015,6.67,Nil,HEATING/PLUMBING/AIR CONDITIONING CONTRACTORS,GPC,Not Yet Available
Wakefield MDC,E08000036,30/09/2015,BUSINESS,A,Net (Surplus) / Deficit of Trading Operations,DRAIN CENTER,Building Materials,Revenue,160745,1817,29/07/2015,8.32,Nil,HEATING/PLUMBING/AIR CONDITIONING CONTRACTORS,GPC,Not Yet Available
Wakefield MDC,E08000036,30/09/2015,BUSINESS,A,Net (Surplus) / Deficit of Trading Operations,DRAIN CENTER,Building Materials,Revenue,160745,1841,29/07/2015,8.53,Nil,HEATING/PLUMBING/AIR CONDITIONING CONTRACTORS,GPC,Not Yet Available
Wakefield MDC,E08000036,30/09/2015,BUSINESS,A,Net (Surplus) / Deficit of Trading Operations,DRAIN CENTER,Building Materials,Revenue,160745,1876,29/07/2015,9.25,Nil,HEATING/PLUMBING/AIR CONDITIONING CONTRACTORS,GPC,Not Yet Available
Wakefield MDC,E08000036,30/09/2015,BUSINESS,A,Net (Surplus) / Deficit of Trading Operations,DRAIN CENTER,Building Materials,Revenue,160745,1863,29/07/2015,12.48,Nil,HEATING/PLUMBING/AIR CONDITIONING CONTRACTORS,GPC,Not Yet Available
Wakefield MDC,E08000036,30/09/2015,BUSINESS,A,Net (Surplus) / Deficit of Trading Operations,DRAIN CENTER,Building Materials,Revenue,160752,364,09/09/2015,94.65,Nil,HEATING/PLUMBING/AIR CONDITIONING CONTRACTORS,GPC,Not Yet Available
Wakefield MDC,E08000036,30/09/2015,BUSINESS,A,Net (Surplus) / Deficit of Trading Operations,DRAIN CENTER,Building Materials,Revenue,160752,154,09/09/2015,307.99,Nil,HEATING/PLUMBING/AIR CONDITIONING CONTRACTORS,GPC,Not Yet Available
Wakefield MDC,E08000036,30/09/2015,BUSINESS,A,Net (Surplus) / Deficit of Trading Operations,DRAIN CENTER,Building Materials,Revenue,160752,119,09/09/2015,-1.77,Nil,HEATING/PLUMBING/AIR CONDITIONING CONTRACTORS,GPC,Not Yet Available
Wakefield MDC,E08000036,30/09/2015,BUSINESS,A,Net (Surplus) / Deficit of Trading Operations,DRAIN CENTER,Building Materials,Revenue,160752,120,09/09/2015,-0.99,Nil,HEATING/PLUMBING/AIR CONDITIONING CONTRACTORS,GPC,Not Yet Available
Wakefield MDC,E08000036,30/09/2015,BUSINESS,A,Net (Surplus) / Deficit of Trading Operations,DRAIN CENTER,Building Materials,Revenue,160752,118,09/09/2015,-0.96,Nil,HEATING/PLUMBING/AIR CONDITIONING CONTRACTORS,GPC,Not Yet Available
Wakefield MDC,E08000036,30/09/2015,BUSINESS,A,Net (Surplus) / Deficit of Trading Operations,DRAIN CENTER,Building Materials,Revenue,160752,122,09/09/2015,-0.01,Nil,HEATING/PLUMBING/AIR CONDITIONING CONTRACTORS,GPC,Not Yet Available
Wakefield MDC,E08000036,30/09/2015,BUSINESS,A,Net (Surplus) / Deficit of Trading Operations,DRAIN CENTER,Building Materials,Revenue,160752,121,09/09/2015,22.36,Nil,HEATING/PLUMBING/AIR CONDITIONING CONTRACTORS,GPC,Not Yet Available
Wakefield MDC,E08000036,30/09/2015,BUSINESS,A,Net (Surplus) / Deficit of Trading Operations,DRAIN CENTER,Building Materials,Revenue,160746,1089,10/08/2015,1.71,Nil,HEATING/PLUMBING/AIR CONDITIONING CONTRACTORS,GPC,Not Yet Available
Wakefield MDC,E08000036,30/09/2015,BUSINESS,A,Net (Surplus) / Deficit of Trading Operations,DRAIN CENTER,Building Materials,Revenue,160746,1094,10/08/2015,2.48,Nil,HEATING/PLUMBING/AIR CONDITIONING CONTRACTORS,GPC,Not Yet Available
Wakefield MDC,E08000036,30/09/2015,BUSINESS,A,Net (Surplus) / Deficit of Trading Operations,DRAIN CENTER,Building Materials,Revenue,160746,1065,10/08/2015,3.56,Nil,HEATING/PLUMBING/AIR CONDITIONING CONTRACTORS,GPC,Not Yet Available
Wakefield MDC,E08000036,30/09/2015,BUSINESS,A,Net (Surplus) / Deficit of Trading Operations,DRAIN CENTER,Building Materials,Revenue,160746,1087,10/08/2015,4.00,Nil,HEATING/PLUMBING/AIR CONDITIONING CONTRACTORS,GPC,Not Yet Available
Wakefield MDC,E08000036,30/09/2015,BUSINESS,A,Net (Surplus) / Deficit of Trading Operations,DRAIN CENTER,Building Materials,Revenue,160746,1082,10/08/2015,7.45,Nil,HEATING/PLUMBING/AIR CONDITIONING CONTRACTORS,GPC,Not Yet Available
Wakefield MDC,E08000036,30/09/2015,BUSINESS,A,Net (Surplus) / Deficit of Trading Operations,DRAIN CENTER,Building Materials,Revenue,160746,1077,10/08/2015,8.90,Nil,HEATING/PLUMBING/AIR CONDITIONING CONTRACTORS,GPC,Not Yet Available
Wakefield MDC,E08000036,30/09/2015,BUSINESS,A,Net (Surplus) / Deficit of Trading Operations,DRAIN CENTER,Building Materials,Revenue,160746,1070,10/08/2015,12.47,Nil,HEATING/PLUMBING/AIR CONDITIONING CONTRACTORS,GPC,Not Yet Available
Wakefield MDC,E08000036,30/09/2015,BUSINESS,A,Net (Surplus) / Deficit of Trading Operations,DRAIN CENTER,Building Materials,Revenue,160746,1075,10/08/2015,12.48,Nil,HEATING/PLUMBING/AIR CONDITIONING CONTRACTORS,GPC,Not Yet Available
Wakefield MDC,E08000036,30/09/2015,BUSINESS,A,Net (Surplus) / Deficit of Trading Operations,DULUX DECORATOR CENTRE,Building Materials,Revenue,160752,379,09/09/2015,7.53,Nil,PAINTS/VARNISHES AND SUPPLIES,GPC,Not Yet Available
Wakefield MDC,E08000036,30/09/2015,BUSINESS,A,Net (Surplus) / Deficit of Trading Operations,DULUX DECORATOR CENTRE,Building Materials,Revenue,160747,98,10/08/2015,11.39,Nil,PAINTS/VARNISHES AND SUPPLIES,GPC,Not Yet Available
Wakefield MDC,E08000036,30/09/2015,BUSINESS,A,Net (Surplus) / Deficit of Trading Operations,DULUX DECORATOR CENTRE,Building Materials,Revenue,160757,186,17/09/2015,16.95,Nil,PAINTS/VARNISHES AND SUPPLIES,GPC,Not Yet Available
Wakefield MDC,E08000036,30/09/2015,BUSINESS,A,Net (Surplus) / Deficit of Trading Operations,DULUX DECORATOR CENTRE,Building Materials,Revenue,160745,248,29/07/2015,20.95,Nil,PAINTS/VARNISHES AND SUPPLIES,GPC,Not Yet Available
Wakefield MDC,E08000036,30/09/2015,BUSINESS,A,Net (Surplus) / Deficit of Trading Operations,DULUX DECORATOR CENTRE,Building Materials,Revenue,160747,539,10/08/2015,22.90,Nil,PAINTS/VARNISHES AND SUPPLIES,GPC,Not Yet Available
Wakefield MDC,E08000036,30/09/2015,BUSINESS,A,Net (Surplus) / Deficit of Trading Operations,DULUX DECORATOR CENTRE,Building Materials,Revenue,160757,187,17/09/2015,29.13,Nil,PAINTS/VARNISHES AND SUPPLIES,GPC,Not Yet Available
Wakefield MDC,E08000036,30/09/2015,BUSINESS,A,Net (Surplus) / Deficit of Trading Operations,DULUX DECORATOR CENTRE,Building Materials,Revenue,160759,37,23/09/2015,30.99,Nil,PAINTS/VARNISHES AND SUPPLIES,GPC,Not Yet Available
Wakefield MDC,E08000036,30/09/2015,BUSINESS,A,Net (Surplus) / Deficit of Trading Operations,DULUX DECORATOR CENTRE,Building Materials,Revenue,160752,375,09/09/2015,37.50,Nil,PAINTS/VARNISHES AND SUPPLIES,GPC,Not Yet Available
Wakefield MDC,E08000036,30/09/2015,BUSINESS,A,Net (Surplus) / Deficit of Trading Operations,DULUX DECORATOR CENTRE,Building Materials,Revenue,160752,399,09/09/2015,37.50,Nil,PAINTS/VARNISHES AND SUPPLIES,GPC,Not Yet Available
Wakefield MDC,E08000036,30/09/2015,BUSINESS,A,Net (Surplus) / Deficit of Trading Operations,DULUX DECORATOR CENTRE,Building Materials,Revenue,160757,235,17/09/2015,46.48,Nil,PAINTS/VARNISHES AND SUPPLIES,GPC,Not Yet Available
Wakefield MDC,E08000036,30/09/2015,BUSINESS,A,Net (Surplus) / Deficit of Trading Operations,DULUX DECORATOR CENTRE,Building Materials,Revenue,160745,194,29/07/2015,60.29,Nil,PAINTS/VARNISHES AND SUPPLIES,GPC,Not Yet Available
Wakefield MDC,E08000036,30/09/2015,BUSINESS,A,Net (Surplus) / Deficit of Trading Operations,DULUX DECORATOR CENTRE,Building Materials,Revenue,160759,263,23/09/2015,61.97,Nil,PAINTS/VARNISHES AND SUPPLIES,GPC,Not Yet Available
Wakefield MDC,E08000036,30/09/2015,BUSINESS,A,Net (Surplus) / Deficit of Trading Operations,DULUX DECORATOR CENTRE,Building Materials,Revenue,160766,788,02/10/2015,66.34,Nil,PAINTS/VARNISHES AND SUPPLIES,GPC,Not Yet Available
Wakefield MDC,E08000036,30/09/2015,BUSINESS,A,Net (Surplus) / Deficit of Trading Operations,DULUX DECORATOR CENTRE,Building Materials,Revenue,160752,339,09/09/2015,69.76,Nil,PAINTS/VARNISHES AND SUPPLIES,GPC,Not Yet Available
Wakefield MDC,E08000036,30/09/2015,BUSINESS,A,Net (Surplus) / Deficit of Trading Operations,DULUX DECORATOR CENTRE,Building Materials,Revenue,160745,250,29/07/2015,72.55,Nil,PAINTS/VARNISHES AND SUPPLIES,GPC,Not Yet Available
Wakefield MDC,E08000036,30/09/2015,BUSINESS,A,Net (Surplus) / Deficit of Trading Operations,DULUX DECORATOR CENTRE,Building Materials,Revenue,160752,115,09/09/2015,82.61,Nil,PAINTS/VARNISHES AND SUPPLIES,GPC,Not Yet Available
Wakefield MDC,E08000036,30/09/2015,BUSINESS,A,Net (Surplus) / Deficit of Trading Operations,DULUX DECORATOR CENTRE,Building Materials,Revenue,160759,736,23/09/2015,84.97,Nil,PAINTS/VARNISHES AND SUPPLIES,GPC,Not Yet Available
Wakefield MDC,E08000036,30/09/2015,BUSINESS,A,Net (Surplus) / Deficit of Trading Operations,DULUX DECORATOR CENTRE,Building Materials,Revenue,160746,896,10/08/2015,8.84,Nil,PAINTS/VARNISHES AND SUPPLIES,GPC,Not Yet Available
Wakefield MDC,E08000036,30/09/2015,BUSINESS,A,Net (Surplus) / Deficit of Trading Operations,DULUX DECORATOR CENTRE,Building Materials,Revenue,160754,406,11/09/2015,-12.37,Nil,PAINTS/VARNISHES AND SUPPLIES,GPC,Not Yet Available
Wakefield MDC,E08000036,30/09/2015,BUSINESS,A,Net (Surplus) / Deficit of Trading Operations,DULUX DECORATOR CENTRE,Building Materials,Revenue,160752,92,09/09/2015,4.52,Nil,PAINTS/VARNISHES AND SUPPLIES,GPC,Not Yet Available
Wakefield MDC,E08000036,30/09/2015,BUSINESS,A,Net (Surplus) / Deficit of Trading Operations,DULUX DECORATOR CENTRE,Building Materials,Revenue,160752,373,09/09/2015,4.86,Nil,PAINTS/VARNISHES AND SUPPLIES,GPC,Not Yet Available
Wakefield MDC,E08000036,30/09/2015,BUSINESS,A,Net (Surplus) / Deficit of Trading Operations,DULUX DECORATOR CENTRE,Building Materials,Revenue,160752,312,09/09/2015,4.88,Nil,PAINTS/VARNISHES AND SUPPLIES,GPC,Not Yet Available
Wakefield MDC,E08000036,30/09/2015,BUSINESS,A,Net (Surplus) / Deficit of Trading Operations,DULUX DECORATOR CENTRE,Building Materials,Revenue,160752,51,09/09/2015,5.62,Nil,PAINTS/VARNISHES AND SUPPLIES,GPC,Not Yet Available
Wakefield MDC,E08000036,30/09/2015,BUSINESS,A,Net (Surplus) / Deficit of Trading Operations,DULUX DECORATOR CENTRE,Building Materials,Revenue,160759,749,23/09/2015,7.11,Nil,PAINTS/VARNISHES AND SUPPLIES,GPC,Not Yet Available
Wakefield MDC,E08000036,30/09/2015,BUSINESS,A,Net (Surplus) / Deficit of Trading Operations,DULUX DECORATOR CENTRE,Building Materials,Revenue,160752,353,09/09/2015,7.50,Nil,PAINTS/VARNISHES AND SUPPLIES,GPC,Not Yet Available
Wakefield MDC,E08000036,30/09/2015,BUSINESS,A,Net (Surplus) / Deficit of Trading Operations,DULUX DECORATOR CENTRE,Building Materials,Revenue,160766,787,02/10/2015,8.60,Nil,PAINTS/VARNISHES AND SUPPLIES,GPC,Not Yet Available
Wakefield MDC,E08000036,30/09/2015,BUSINESS,A,Net (Surplus) / Deficit of Trading Operations,DULUX DECORATOR CENTRE,Building Materials,Revenue,160754,404,11/09/2015,8.70,Nil,PAINTS/VARNISHES AND SUPPLIES,GPC,Not Yet Available
Wakefield MDC,E08000036,30/09/2015,BUSINESS,A,Net (Surplus) / Deficit of Trading Operations,DULUX DECORATOR CENTRE,Building Materials,Revenue,160745,219,29/07/2015,9.04,Nil,PAINTS/VARNISHES AND SUPPLIES,GPC,Not Yet Available
Wakefield MDC,E08000036,30/09/2015,BUSINESS,A,Net (Surplus) / Deficit of Trading Operations,DULUX DECORATOR CENTRE,Building Materials,Revenue,160752,340,09/09/2015,10.72,Nil,PAINTS/VARNISHES AND SUPPLIES,GPC,Not Yet Available
Wakefield MDC,E08000036,30/09/2015,BUSINESS,A,Net (Surplus) / Deficit of Trading Operations,DULUX DECORATOR CENTRE,Building Materials,Revenue,160759,210,23/09/2015,12.52,Nil,PAINTS/VARNISHES AND SUPPLIES,GPC,Not Yet Available
Wakefield MDC,E08000036,30/09/2015,BUSINESS,A,Net (Surplus) / Deficit of Trading Operations,DULUX DECORATOR CENTRE,Building Materials,Revenue,160746,842,10/08/2015,13.92,Nil,PAINTS/VARNISHES AND SUPPLIES,GPC,Not Yet Available
Wakefield MDC,E08000036,30/09/2015,BUSINESS,A,Net (Surplus) / Deficit of Trading Operations,DULUX DECORATOR CENTRE,Building Materials,Revenue,160752,319,09/09/2015,15.57,Nil,PAINTS/VARNISHES AND SUPPLIES,GPC,Not Yet Available
Wakefield MDC,E08000036,30/09/2015,BUSINESS,A,Net (Surplus) / Deficit of Trading Operations,DULUX DECORATOR CENTRE,Building Materials,Revenue,160759,746,23/09/2015,16.96,Nil,PAINTS/VARNISHES AND SUPPLIES,GPC,Not Yet Available
Wakefield MDC,E08000036,30/09/2015,BUSINESS,A,Net (Surplus) / Deficit of Trading Operations,DULUX DECORATOR CENTRE,Building Materials,Revenue,160747,374,10/08/2015,19.94,Nil,PAINTS/VARNISHES AND SUPPLIES,GPC,Not Yet Available
Wakefield MDC,E08000036,30/09/2015,BUSINESS,A,Net (Surplus) / Deficit of Trading Operations,DULUX DECORATOR CENTRE,Building Materials,Revenue,160747,526,10/08/2015,22.89,Nil,PAINTS/VARNISHES AND SUPPLIES,GPC,Not Yet Available
Wakefield MDC,E08000036,30/09/2015,BUSINESS,A,Net (Surplus) / Deficit of Trading Operations,DULUX DECORATOR CENTRE,Building Materials,Revenue,160747,540,10/08/2015,22.90,Nil,PAINTS/VARNISHES AND SUPPLIES,GPC,Not Yet Available
Wakefield MDC,E08000036,30/09/2015,BUSINESS,A,Net (Surplus) / Deficit of Trading Operations,DULUX DECORATOR CENTRE,Building Materials,Revenue,160744,41,16/07/2015,23.25,Nil,PAINTS/VARNISHES AND SUPPLIES,GPC,Not Yet Available
Wakefield MDC,E08000036,30/09/2015,BUSINESS,A,Net (Surplus) / Deficit of Trading Operations,DULUX DECORATOR CENTRE,Building Materials,Revenue,160747,375,10/08/2015,32.52,Nil,PAINTS/VARNISHES AND SUPPLIES,GPC,Not Yet Available
Wakefield MDC,E08000036,30/09/2015,BUSINESS,A,Net (Surplus) / Deficit of Trading Operations,DULUX DECORATOR CENTRE,Building Materials,Revenue,160759,159,23/09/2015,33.54,Nil,PAINTS/VARNISHES AND SUPPLIES,GPC,Not Yet Available
Wakefield MDC,E08000036,30/09/2015,BUSINESS,A,Net (Surplus) / Deficit of Trading Operations,DULUX DECORATOR CENTRE,Building Materials,Revenue,160747,244,10/08/2015,33.90,Nil,PAINTS/VARNISHES AND SUPPLIES,GPC,Not Yet Available
Wakefield MDC,E08000036,30/09/2015,BUSINESS,A,Net (Surplus) / Deficit of Trading Operations,DULUX DECORATOR CENTRE,Building Materials,Revenue,160747,1113,10/08/2015,34.00,Nil,PAINTS/VARNISHES AND SUPPLIES,GPC,Not Yet Available
Wakefield MDC,E08000036,30/09/2015,BUSINESS,A,Net (Surplus) / Deficit of Trading Operations,DULUX DECORATOR CENTRE,Building Materials,Revenue,160759,38,23/09/2015,40.67,Nil,PAINTS/VARNISHES AND SUPPLIES,GPC,Not Yet Available
Wakefield MDC,E08000036,30/09/2015,BUSINESS,A,Net (Surplus) / Deficit of Trading Operations,DULUX DECORATOR CENTRE,Building Materials,Revenue,160752,48,09/09/2015,42.79,Nil,PAINTS/VARNISHES AND SUPPLIES,GPC,Not Yet Available
Wakefield MDC,E08000036,30/09/2015,BUSINESS,A,Net (Surplus) / Deficit of Trading Operations,DULUX DECORATOR CENTRE,Building Materials,Revenue,160759,747,23/09/2015,47.89,Nil,PAINTS/VARNISHES AND SUPPLIES,GPC,Not Yet Available
Wakefield MDC,E08000036,30/09/2015,BUSINESS,A,Net (Surplus) / Deficit of Trading Operations,DULUX DECORATOR CENTRE,Building Materials,Revenue,160757,224,17/09/2015,50.49,Nil,PAINTS/VARNISHES AND SUPPLIES,GPC,Not Yet Available
Wakefield MDC,E08000036,30/09/2015,BUSINESS,A,Net (Surplus) / Deficit of Trading Operations,DULUX DECORATOR CENTRE,Building Materials,Revenue,160752,40,09/09/2015,58.16,Nil,PAINTS/VARNISHES AND SUPPLIES,GPC,Not Yet Available
Wakefield MDC,E08000036,30/09/2015,BUSINESS,A,Net (Surplus) / Deficit of Trading Operations,DULUX DECORATOR CENTRE,Building Materials,Revenue,160752,52,09/09/2015,58.33,Nil,PAINTS/VARNISHES AND SUPPLIES,GPC,Not Yet Available
Wakefield MDC,E08000036,30/09/2015,BUSINESS,A,Net (Surplus) / Deficit of Trading Operations,DULUX DECORATOR CENTRE,Building Materials,Revenue,160759,234,23/09/2015,60.29,Nil,PAINTS/VARNISHES AND SUPPLIES,GPC,Not Yet Available
Wakefield MDC,E08000036,30/09/2015,BUSINESS,A,Net (Surplus) / Deficit of Trading Operations,DULUX DECORATOR CENTRE,Building Materials,Revenue,160745,261,29/07/2015,68.00,Nil,PAINTS/VARNISHES AND SUPPLIES,GPC,Not Yet Available
Wakefield MDC,E08000036,30/09/2015,BUSINESS,A,Net (Surplus) / Deficit of Trading Operations,DULUX DECORATOR CENTRE,Building Materials,Revenue,160744,43,16/07/2015,87.47,Nil,PAINTS/VARNISHES AND SUPPLIES,GPC,Not Yet Available
Wakefield MDC,E08000036,30/09/2015,BUSINESS,A,Net (Surplus) / Deficit of Trading Operations,DULUX DECORATOR CENTRE,Building Materials,Revenue,160746,832,10/08/2015,99.88,Nil,PAINTS/VARNISHES AND SUPPLIES,GPC,Not Yet Available
Wakefield MDC,E08000036,30/09/2015,BUSINESS,A,Net (Surplus) / Deficit of Trading Operations,DULUX DECORATOR CENTRE,Building Materials,Revenue,160759,748,23/09/2015,109.42,Nil,PAINTS/VARNISHES AND SUPPLIES,GPC,Not Yet Available
Wakefield MDC,E08000036,30/09/2015,BUSINESS,A,Net (Surplus) / Deficit of Trading Operations,DULUX DECORATOR CENTRE,Building Materials,Revenue,160754,402,11/09/2015,117.21,Nil,PAINTS/VARNISHES AND SUPPLIES,GPC,Not Yet Available
Wakefield MDC,E08000036,30/09/2015,BUSINESS,A,Net (Surplus) / Deficit of Trading Operations,DULUX DECORATOR CENTRE,Building Materials,Revenue,160747,403,10/08/2015,119.45,Nil,PAINTS/VARNISHES AND SUPPLIES,GPC,Not Yet Available
Wakefield MDC,E08000036,30/09/2015,BUSINESS,A,Net (Surplus) / Deficit of Trading Operations,DULUX DECORATOR CENTRE,Building Materials,Revenue,160752,114,09/09/2015,127.48,Nil,PAINTS/VARNISHES AND SUPPLIES,GPC,Not Yet Available
Wakefield MDC,E08000036,30/09/2015,BUSINESS,A,Net (Surplus) / Deficit of Trading Operations,DULUX DECORATOR CENTRE,Building Materials,Revenue,160752,195,09/09/2015,133.96,Nil,PAINTS/VARNISHES AND SUPPLIES,GPC,Not Yet Available
Wakefield MDC,E08000036,30/09/2015,BUSINESS,A,Net (Surplus) / Deficit of Trading Operations,DULUX DECORATOR CENTRE,Building Materials,Revenue,160746,837,10/08/2015,174.88,Nil,PAINTS/VARNISHES AND SUPPLIES,GPC,Not Yet Available
Wakefield MDC,E08000036,30/09/2015,BUSINESS,A,Net (Surplus) / Deficit of Trading Operations,DULUX DECORATOR CENTRE,Building Materials,Revenue,160747,1444,10/08/2015,256.32,Nil,PAINTS/VARNISHES AND SUPPLIES,GPC,Not Yet Available
Wakefield MDC,E08000036,30/09/2015,BUSINESS,A,Net (Surplus) / Deficit of Trading Operations,DULUX DECORATOR CENTRE,Building Materials,Revenue,160747,1153,10/08/2015,719.00,Nil,PAINTS/VARNISHES AND SUPPLIES,GPC,Not Yet Available
Wakefield MDC,E08000036,30/09/2015,BUSINESS,A,Net (Surplus) / Deficit of Trading Operations,DULUX DECORATOR CENTRE,Building Materials,Revenue,160747,1188,10/08/2015,880.00,Nil,PAINTS/VARNISHES AND SUPPLIES,GPC,Not Yet Available
Wakefield MDC,E08000036,30/09/2015,BUSINESS,A,Net (Surplus) / Deficit of Trading Operations,EDMUNDSON ELECTRICAL,Building Materials,Revenue,160759,956,23/09/2015,1.45,Nil,ELECTRICAL PARTS AND EQUIPMENT,GPC,Not Yet Available
Wakefield MDC,E08000036,30/09/2015,BUSINESS,A,Net (Surplus) / Deficit of Trading Operations,EDMUNDSON ELECTRICAL,Building Materials,Revenue,160759,320,23/09/2015,2.88,Nil,ELECTRICAL PARTS AND EQUIPMENT,GPC,Not Yet Available
Wakefield MDC,E08000036,30/09/2015,BUSINESS,A,Net (Surplus) / Deficit of Trading Operations,EDMUNDSON ELECTRICAL,Building Materials,Revenue,160759,896,23/09/2015,2.88,Nil,ELECTRICAL PARTS AND EQUIPMENT,GPC,Not Yet Available
Wakefield MDC,E08000036,30/09/2015,BUSINESS,A,Net (Surplus) / Deficit of Trading Operations,EDMUNDSON ELECTRICAL,Building Materials,Revenue,160759,879,23/09/2015,3.25,Nil,ELECTRICAL PARTS AND EQUIPMENT,GPC,Not Yet Available
Wakefield MDC,E08000036,30/09/2015,BUSINESS,A,Net (Surplus) / Deficit of Trading Operations,EDMUNDSON ELECTRICAL,Building Materials,Revenue,160766,763,02/10/2015,3.26,Nil,ELECTRICAL PARTS AND EQUIPMENT,GPC,Not Yet Available
Wakefield MDC,E08000036,30/09/2015,BUSINESS,A,Net (Surplus) / Deficit of Trading Operations,EDMUNDSON ELECTRICAL,Building Materials,Revenue,160759,676,23/09/2015,3.90,Nil,ELECTRICAL PARTS AND EQUIPMENT,GPC,Not Yet Available
Wakefield MDC,E08000036,30/09/2015,BUSINESS,A,Net (Surplus) / Deficit of Trading Operations,EDMUNDSON ELECTRICAL,Building Materials,Revenue,160759,840,23/09/2015,4.65,Nil,ELECTRICAL PARTS AND EQUIPMENT,GPC,Not Yet Available
Wakefield MDC,E08000036,30/09/2015,BUSINESS,A,Net (Surplus) / Deficit of Trading Operations,EDMUNDSON ELECTRICAL,Building Materials,Revenue,160746,974,10/08/2015,4.72,Nil,ELECTRICAL PARTS AND EQUIPMENT,GPC,Not Yet Available
Wakefield MDC,E08000036,30/09/2015,BUSINESS,A,Net (Surplus) / Deficit of Trading Operations,EDMUNDSON ELECTRICAL,Building Materials,Revenue,160746,932,10/08/2015,5.31,Nil,ELECTRICAL PARTS AND EQUIPMENT,GPC,Not Yet Available
Wakefield MDC,E08000036,30/09/2015,BUSINESS,A,Net (Surplus) / Deficit of Trading Operations,EDMUNDSON ELECTRICAL,Building Materials,Revenue,160759,918,23/09/2015,5.43,Nil,ELECTRICAL PARTS AND EQUIPMENT,GPC,Not Yet Available
Wakefield MDC,E08000036,30/09/2015,BUSINESS,A,Net (Surplus) / Deficit of Trading Operations,EDMUNDSON ELECTRICAL,Building Materials,Revenue,160746,939,10/08/2015,8.18,Nil,ELECTRICAL PARTS AND EQUIPMENT,GPC,Not Yet Available
Wakefield MDC,E08000036,30/09/2015,BUSINESS,A,Net (Surplus) / Deficit of Trading Operations,EDMUNDSON ELECTRICAL,Building Materials,Revenue,160766,822,02/10/2015,8.59,Nil,ELECTRICAL PARTS AND EQUIPMENT,GPC,Not Yet Available
Wakefield MDC,E08000036,30/09/2015,BUSINESS,A,Net (Surplus) / Deficit of Trading Operations,EDMUNDSON ELECTRICAL,Building Materials,Revenue,160766,755,02/10/2015,9.71,Nil,ELECTRICAL PARTS AND EQUIPMENT,GPC,Not Yet Available
Wakefield MDC,E08000036,30/09/2015,BUSINESS,A,Net (Surplus) / Deficit of Trading Operations,EDMUNDSON ELECTRICAL,Building Materials,Revenue,160746,964,10/08/2015,11.72,Nil,ELECTRICAL PARTS AND EQUIPMENT,GPC,Not Yet Available
Wakefield MDC,E08000036,30/09/2015,BUSINESS,A,Net (Surplus) / Deficit of Trading Operations,EDMUNDSON ELECTRICAL,Building Materials,Revenue,160759,912,23/09/2015,14.85,Nil,ELECTRICAL PARTS AND EQUIPMENT,GPC,Not Yet Available
Wakefield MDC,E08000036,30/09/2015,BUSINESS,A,Net (Surplus) / Deficit of Trading Operations,EDMUNDSON ELECTRICAL,Building Materials,Revenue,160759,765,23/09/2015,15.52,Nil,ELECTRICAL PARTS AND EQUIPMENT,GPC,Not Yet Available
Wakefield MDC,E08000036,30/09/2015,BUSINESS,A,Net (Surplus) / Deficit of Trading Operations,EDMUNDSON ELECTRICAL,Building Materials,Revenue,160759,885,23/09/2015,15.89,Nil,ELECTRICAL PARTS AND EQUIPMENT,GPC,Not Yet Available
Wakefield MDC,E08000036,30/09/2015,BUSINESS,A,Net (Surplus) / Deficit of Trading Operations,EDMUNDSON ELECTRICAL,Building Materials,Revenue,160744,323,16/07/2015,17.50,Nil,ELECTRICAL PARTS AND EQUIPMENT,GPC,Not Yet Available
Wakefield MDC,E08000036,30/09/2015,BUSINESS,A,Net (Surplus) / Deficit of Trading Operations,EDMUNDSON ELECTRICAL,Building Materials,Revenue,160759,871,23/09/2015,18.68,Nil,ELECTRICAL PARTS AND EQUIPMENT,GPC,Not Yet Available
Wakefield MDC,E08000036,30/09/2015,BUSINESS,A,Net (Surplus) / Deficit of Trading Operations,EDMUNDSON ELECTRICAL,Building Materials,Revenue,160746,962,10/08/2015,20.78,Nil,ELECTRICAL PARTS AND EQUIPMENT,GPC,Not Yet Available
Wakefield MDC,E08000036,30/09/2015,BUSINESS,A,Net (Surplus) / Deficit of Trading Operations,EDMUNDSON ELECTRICAL,Building Materials,Revenue,160746,891,10/08/2015,20.88,Nil,ELECTRICAL PARTS AND EQUIPMENT,GPC,Not Yet Available
Wakefield MDC,E08000036,30/09/2015,BUSINESS,A,Net (Surplus) / Deficit of Trading Operations,EDMUNDSON ELECTRICAL,Building Materials,Revenue,160746,922,10/08/2015,21.80,Nil,ELECTRICAL PARTS AND EQUIPMENT,GPC,Not Yet Available
Wakefield MDC,E08000036,30/09/2015,BUSINESS,A,Net (Surplus) / Deficit of Trading Operations,EDMUNDSON ELECTRICAL,Building Materials,Revenue,160745,886,29/07/2015,21.80,Nil,ELECTRICAL PARTS AND EQUIPMENT,GPC,Not Yet Available
Wakefield MDC,E08000036,30/09/2015,BUSINESS,A,Net (Surplus) / Deficit of Trading Operations,EDMUNDSON ELECTRICAL,Building Materials,Revenue,160759,114,23/09/2015,22.52,Nil,ELECTRICAL PARTS AND EQUIPMENT,GPC,Not Yet Available
Wakefield MDC,E08000036,30/09/2015,BUSINESS,A,Net (Surplus) / Deficit of Trading Operations,EDMUNDSON ELECTRICAL,Building Materials,Revenue,160766,761,02/10/2015,23.75,Nil,ELECTRICAL PARTS AND EQUIPMENT,GPC,Not Yet Available
Wakefield MDC,E08000036,30/09/2015,BUSINESS,A,Net (Surplus) / Deficit of Trading Operations,EDMUNDSON ELECTRICAL,Building Materials,Revenue,160757,,17/09/2015,29.23,Nil,ELECTRICAL PARTS AND EQUIPMENT,GPC,Not Yet Available
Wakefield MDC,E08000036,30/09/2015,BUSINESS,A,Net (Surplus) / Deficit of Trading Operations,EDMUNDSON ELECTRICAL,Building Materials,Revenue,160759,837,23/09/2015,33.86,Nil,ELECTRICAL PARTS AND EQUIPMENT,GPC,Not Yet Available
Wakefield MDC,E08000036,30/09/2015,BUSINESS,A,Net (Surplus) / Deficit of Trading Operations,EDMUNDSON ELECTRICAL,Building Materials,Revenue,160766,816,02/10/2015,35.00,Nil,ELECTRICAL PARTS AND EQUIPMENT,GPC,Not Yet Available
Wakefield MDC,E08000036,30/09/2015,BUSINESS,A,Net (Surplus) / Deficit of Trading Operations,EDMUNDSON ELECTRICAL,Building Materials,Revenue,160746,884,10/08/2015,35.79,Nil,ELECTRICAL PARTS AND EQUIPMENT,GPC,Not Yet Available
Wakefield MDC,E08000036,30/09/2015,BUSINESS,A,Net (Surplus) / Deficit of Trading Operations,EDMUNDSON ELECTRICAL,Building Materials,Revenue,160746,934,10/08/2015,36.78,Nil,ELECTRICAL PARTS AND EQUIPMENT,GPC,Not Yet Available
Wakefield MDC,E08000036,30/09/2015,BUSINESS,A,Net (Surplus) / Deficit of Trading Operations,EDMUNDSON ELECTRICAL,Building Materials,Revenue,160748,580,18/08/2015,36.78,Nil,ELECTRICAL PARTS AND EQUIPMENT,GPC,Not Yet Available
Wakefield MDC,E08000036,30/09/2015,BUSINESS,A,Net (Surplus) / Deficit of Trading Operations,EDMUNDSON ELECTRICAL,Building Materials,Revenue,160759,1092,23/09/2015,42.35,Nil,ELECTRICAL PARTS AND EQUIPMENT,GPC,Not Yet Available
Wakefield MDC,E08000036,30/09/2015,BUSINESS,A,Net (Surplus) / Deficit of Trading Operations,EDMUNDSON ELECTRICAL,Building Materials,Revenue,160746,969,10/08/2015,43.02,Nil,ELECTRICAL PARTS AND EQUIPMENT,GPC,Not Yet Available
Wakefield MDC,E08000036,30/09/2015,BUSINESS,A,Net (Surplus) / Deficit of Trading Operations,EDMUNDSON ELECTRICAL,Building Materials,Revenue,160748,578,18/08/2015,46.81,Nil,ELECTRICAL PARTS AND EQUIPMENT,GPC,Not Yet Available
Wakefield MDC,E08000036,30/09/2015,BUSINESS,A,Net (Surplus) / Deficit of Trading Operations,EDMUNDSON ELECTRICAL,Building Materials,Revenue,160745,884,29/07/2015,47.18,Nil,ELECTRICAL PARTS AND EQUIPMENT,GPC,Not Yet Available
Wakefield MDC,E08000036,30/09/2015,BUSINESS,A,Net (Surplus) / Deficit of Trading Operations,EDMUNDSON ELECTRICAL,Building Materials,Revenue,160759,98,23/09/2015,52.00,Nil,ELECTRICAL PARTS AND EQUIPMENT,GPC,Not Yet Available
Wakefield MDC,E08000036,30/09/2015,BUSINESS,A,Net (Surplus) / Deficit of Trading Operations,EDMUNDSON ELECTRICAL,Building Materials,Revenue,160755,253,16/09/2015,65.00,Nil,ELECTRICAL PARTS AND EQUIPMENT,GPC,Not Yet Available
Wakefield MDC,E08000036,30/09/2015,BUSINESS,A,Net (Surplus) / Deficit of Trading Operations,EDMUNDSON ELECTRICAL,Building Materials,Revenue,160759,269,23/09/2015,86.97,Nil,ELECTRICAL PARTS AND EQUIPMENT,GPC,Not Yet Available
Wakefield MDC,E08000036,30/09/2015,BUSINESS,A,Net (Surplus) / Deficit of Trading Operations,EDMUNDSON ELECTRICAL,Building Materials,Revenue,160746,886,10/08/2015,105.00,Nil,ELECTRICAL PARTS AND EQUIPMENT,GPC,Not Yet Available
Wakefield MDC,E08000036,30/09/2015,BUSINESS,A,Net (Surplus) / Deficit of Trading Operations,EDMUNDSON ELECTRICAL,Building Materials,Revenue,160759,1100,23/09/2015,107.55,Nil,ELECTRICAL PARTS AND EQUIPMENT,GPC,Not Yet Available
Wakefield MDC,E08000036,30/09/2015,BUSINESS,A,Net (Surplus) / Deficit of Trading Operations,EDMUNDSON ELECTRICAL,Building Materials,Revenue,160757,1,17/09/2015,122.73,Nil,ELECTRICAL PARTS AND EQUIPMENT,GPC,Not Yet Available
Wakefield MDC,E08000036,30/09/2015,BUSINESS,A,Net (Surplus) / Deficit of Trading Operations,EDMUNDSON ELECTRICAL,Building Materials,Revenue,160759,648,23/09/2015,161.33,Nil,ELECTRICAL PARTS AND EQUIPMENT,GPC,Not Yet Available
Wakefield MDC,E08000036,30/09/2015,BUSINESS,A,Net (Surplus) / Deficit of Trading Operations,EDMUNDSON ELECTRICAL,Building Materials,Revenue,160744,325,16/07/2015,99.00,Nil,ELECTRICAL PARTS AND EQUIPMENT,GPC,Not Yet Available
Wakefield MDC,E08000036,30/09/2015,BUSINESS,A,Net (Surplus) / Deficit of Trading Operations,EDMUNDSON ELECTRICAL,Building Materials,Revenue,160746,874,10/08/2015,396.00,Nil,ELECTRICAL PARTS AND EQUIPMENT,GPC,Not Yet Available
Wakefield MDC,E08000036,30/09/2015,BUSINESS,A,Net (Surplus) / Deficit of Trading Operations,EUROCELL,Building Materials,Revenue,160748,320,18/08/2015,25.31,Nil,LUMBER/BUILDING MATERIALS STORES,GPC,Not Yet Available
Wakefield MDC,E08000036,30/09/2015,BUSINESS,A,Net (Surplus) / Deficit of Trading Operations,FARNELL ELECTRONIC,Building Materials,Revenue,160744,893,16/07/2015,11.40,Nil,ELECTRICAL PARTS AND EQUIPMENT,GPC,Not Yet Available
Wakefield MDC,E08000036,30/09/2015,BUSINESS,A,Net (Surplus) / Deficit of Trading Operations,FIREPLACE PRODUCTS,Building Materials,Revenue,160752,65,09/09/2015,89.17,Nil,HARDWARE EQUIPMENT AND SUPPLIES,GPC,Not Yet Available
Wakefield MDC,E08000036,30/09/2015,BUSINESS,A,Net (Surplus) / Deficit of Trading Operations,FOREGALE LIMITED,Building Materials,Revenue,160746,1164,10/08/2015,222.87,Nil,COMMERCIAL EQUIPMENT NOT ELSEWHERE CLASSIFIED,GPC,Not Yet Available
Wakefield MDC,E08000036,30/09/2015,BUSINESS,A,Net (Surplus) / Deficit of Trading Operations,G AND S SMIRTHWAITE LTD,Building Materials,Revenue,160746,251,10/08/2015,2656.00,Nil,MEDICAL/DENTAL/OPTHALMIC/HOSPITAL EQUIPMENT & SUPPLIES,GPC,Not Yet Available
Wakefield MDC,E08000036,30/09/2015,BUSINESS,A,Net (Surplus) / Deficit of Trading Operations,GARAGE DOORS ONLINE LTD,Building Materials,Revenue,160757,9,17/09/2015,442.00,Nil,HOME SUPPLY WAREHOUSE STORES,GPC,Not Yet Available
Wakefield MDC,E08000036,30/09/2015,BUSINESS,A,Net (Surplus) / Deficit of Trading Operations,GIBBS & DANDY,Building Materials,Revenue,160752,161,09/09/2015,9.05,Nil,BUILDING MATERIALS LUMBER STORES,GPC,Not Yet Available
Wakefield MDC,E08000036,30/09/2015,BUSINESS,A,Net (Surplus) / Deficit of Trading Operations,GP SIGNS,Building Materials,Revenue,160744,882,16/07/2015,81.47,Nil,SPECIAL TRADE CONTRACTORS - NOT ELSEWHERE CLASSIFIED,GPC,Not Yet Available
Wakefield MDC,E08000036,30/09/2015,BUSINESS,A,Net (Surplus) / Deficit of Trading Operations,GP SIGNS,Building Materials,Revenue,160744,905,16/07/2015,244.48,Nil,SPECIAL TRADE CONTRACTORS - NOT ELSEWHERE CLASSIFIED,GPC,Not Yet Available
Wakefield MDC,E08000036,30/09/2015,BUSINESS,A,Net (Surplus) / Deficit of Trading Operations,GRAHAM,Building Materials,Revenue,160757,234,17/09/2015,16.40,Nil,BUILDING MATERIALS LUMBER STORES,GPC,Not Yet Available
Wakefield MDC,E08000036,30/09/2015,BUSINESS,A,Net (Surplus) / Deficit of Trading Operations,GRAHAM,Building Materials,Revenue,160748,326,18/08/2015,18.69,Nil,LUMBER/BUILDING MATERIALS STORES,GPC,Not Yet Available
Wakefield MDC,E08000036,30/09/2015,BUSINESS,A,Net (Surplus) / Deficit of Trading Operations,GRAHAM,Building Materials,Revenue,160752,249,09/09/2015,-0.51,Nil,BUILDING MATERIALS LUMBER STORES,GPC,Not Yet Available
Wakefield MDC,E08000036,30/09/2015,BUSINESS,A,Net (Surplus) / Deficit of Trading Operations,GRAHAM,Building Materials,Revenue,160752,250,09/09/2015,-0.26,Nil,BUILDING MATERIALS LUMBER STORES,GPC,Not Yet Available
Wakefield MDC,E08000036,30/09/2015,BUSINESS,A,Net (Surplus) / Deficit of Trading Operations,GRAHAM,Building Materials,Revenue,160752,251,09/09/2015,4.65,Nil,BUILDING MATERIALS LUMBER STORES,GPC,Not Yet Available
Wakefield MDC,E08000036,30/09/2015,BUSINESS,A,Net (Surplus) / Deficit of Trading Operations,GRAHAM,Building Materials,Revenue,160746,1063,10/08/2015,8.41,Nil,LUMBER/BUILDING MATERIALS STORES,GPC,Not Yet Available
Wakefield MDC,E08000036,30/09/2015,BUSINESS,A,Net (Surplus) / Deficit of Trading Operations,GRAHAM,Building Materials,Revenue,160759,779,23/09/2015,12.00,Nil,BUILDING MATERIALS LUMBER STORES,GPC,Not Yet Available
Wakefield MDC,E08000036,30/09/2015,BUSINESS,A,Net (Surplus) / Deficit of Trading Operations,GRAHAM,Building Materials,Revenue,160759,720,23/09/2015,12.69,Nil,BUILDING MATERIALS LUMBER STORES,GPC,Not Yet Available
Wakefield MDC,E08000036,30/09/2015,BUSINESS,A,Net (Surplus) / Deficit of Trading Operations,GRAHAM,Building Materials,Revenue,160744,2127,16/07/2015,15.00,Nil,LUMBER/BUILDING MATERIALS STORES,GPC,Not Yet Available
Wakefield MDC,E08000036,30/09/2015,BUSINESS,A,Net (Surplus) / Deficit of Trading Operations,GRAHAM,Building Materials,Revenue,160759,566,23/09/2015,17.82,Nil,BUILDING MATERIALS LUMBER STORES,GPC,Not Yet Available
Wakefield MDC,E08000036,30/09/2015,BUSINESS,A,Net (Surplus) / Deficit of Trading Operations,GRAHAM,Building Materials,Revenue,160744,2162,16/07/2015,21.19,Nil,LUMBER/BUILDING MATERIALS STORES,GPC,Not Yet Available
Wakefield MDC,E08000036,30/09/2015,BUSINESS,A,Net (Surplus) / Deficit of Trading Operations,GRAHAM,Building Materials,Revenue,160759,478,23/09/2015,24.00,Nil,BUILDING MATERIALS LUMBER STORES,GPC,Not Yet Available
Wakefield MDC,E08000036,30/09/2015,BUSINESS,A,Net (Surplus) / Deficit of Trading Operations,GRAHAM,Building Materials,Revenue,160752,320,09/09/2015,27.98,Nil,BUILDING MATERIALS LUMBER STORES,GPC,Not Yet Available
Wakefield MDC,E08000036,30/09/2015,BUSINESS,A,Net (Surplus) / Deficit of Trading Operations,GRAHAM,Building Materials,Revenue,160744,2203,16/07/2015,30.22,Nil,LUMBER/BUILDING MATERIALS STORES,GPC,Not Yet Available
Wakefield MDC,E08000036,30/09/2015,BUSINESS,A,Net (Surplus) / Deficit of Trading Operations,GRAHAM,Building Materials,Revenue,160746,1059,10/08/2015,42.16,Nil,LUMBER/BUILDING MATERIALS STORES,GPC,Not Yet Available
Wakefield MDC,E08000036,30/09/2015,BUSINESS,A,Net (Surplus) / Deficit of Trading Operations,GRAHAM,Building Materials,Revenue,160752,230,09/09/2015,48.93,Nil,BUILDING MATERIALS LUMBER STORES,GPC,Not Yet Available
Wakefield MDC,E08000036,30/09/2015,BUSINESS,A,Net (Surplus) / Deficit of Trading Operations,GRAHAM,Building Materials,Revenue,160748,625,18/08/2015,3.80,Nil,LUMBER/BUILDING MATERIALS STORES,GPC,Not Yet Available
Wakefield MDC,E08000036,30/09/2015,BUSINESS,A,Net (Surplus) / Deficit of Trading Operations,GRAHAM,Building Materials,Revenue,160748,627,18/08/2015,3.80,Nil,LUMBER/BUILDING MATERIALS STORES,GPC,Not Yet Available
Wakefield MDC,E08000036,30/09/2015,BUSINESS,A,Net (Surplus) / Deficit of Trading Operations,GRAHAM,Building Materials,Revenue,160752,127,09/09/2015,9.75,Nil,BUILDING MATERIALS LUMBER STORES,GPC,Not Yet Available
Wakefield MDC,E08000036,30/09/2015,BUSINESS,A,Net (Surplus) / Deficit of Trading Operations,H DOCHERTY LTD - LEEDS,Building Materials,Revenue,160744,2431,16/07/2015,14.10,Nil,LUMBER/BUILDING MATERIALS STORES,GPC,Not Yet Available
Wakefield MDC,E08000036,30/09/2015,BUSINESS,A,Net (Surplus) / Deficit of Trading Operations,H DOCHERTY LTD - LEEDS,Building Materials,Revenue,160745,721,29/07/2015,19.44,Nil,LUMBER/BUILDING MATERIALS STORES,GPC,Not Yet Available
Wakefield MDC,E08000036,30/09/2015,BUSINESS,A,Net (Surplus) / Deficit of Trading Operations,H DOCHERTY LTD - LEEDS,Building Materials,Revenue,160759,1104,23/09/2015,44.45,Nil,BUILDING MATERIALS LUMBER STORES,GPC,Not Yet Available
Wakefield MDC,E08000036,30/09/2015,BUSINESS,A,Net (Surplus) / Deficit of Trading Operations,H DOCHERTY LTD - LEEDS,Building Materials,Revenue,160759,1016,23/09/2015,167.03,Nil,BUILDING MATERIALS LUMBER STORES,GPC,Not Yet Available
Wakefield MDC,E08000036,30/09/2015,BUSINESS,A,Net (Surplus) / Deficit of Trading Operations,HARGREAVES DUCTWORK LTD,Building Materials,Revenue,160759,290,23/09/2015,277.26,Nil,HARDWARE EQUIPMENT AND SUPPLIES,GPC,Not Yet Available
Wakefield MDC,E08000036,30/09/2015,BUSINESS,A,Net (Surplus) / Deficit of Trading Operations,HEXAGON DRAWING SERVICE,Building Materials,Revenue,160752,125,09/09/2015,340.50,Nil,BUILDING MATERIALS LUMBER STORES,GPC,Not Yet Available
Wakefield MDC,E08000036,30/09/2015,BUSINESS,A,Net (Surplus) / Deficit of Trading Operations,HFD LTD,Building Materials,Revenue,160748,668,18/08/2015,2682.24,Nil,FLOOR COVERING STORES,GPC,Not Yet Available
Wakefield MDC,E08000036,30/09/2015,BUSINESS,A,Net (Surplus) / Deficit of Trading Operations,HOWARTH TIMBER MERCHANT,Building Materials,Revenue,160752,169,09/09/2015,-42.60,Nil,BUILDING MATERIALS LUMBER STORES,GPC,Not Yet Available
Wakefield MDC,E08000036,30/09/2015,BUSINESS,A,Net (Surplus) / Deficit of Trading Operations,HOWARTH TIMBER MERCHANT,Building Materials,Revenue,160747,1226,10/08/2015,9.44,Nil,BUILDING MATERIALS LUMBER STORES,GPC,Not Yet Available
Wakefield MDC,E08000036,30/09/2015,BUSINESS,A,Net (Surplus) / Deficit of Trading Operations,HOWARTH TIMBER MERCHANT,Building Materials,Revenue,160757,108,17/09/2015,12.04,Nil,BUILDING MATERIALS LUMBER STORES,GPC,Not Yet Available
Wakefield MDC,E08000036,30/09/2015,BUSINESS,A,Net (Surplus) / Deficit of Trading Operations,HOWARTH TIMBER MERCHANT,Building Materials,Revenue,160747,438,10/08/2015,13.44,Nil,BUILDING MATERIALS LUMBER STORES,GPC,Not Yet Available
Wakefield MDC,E08000036,30/09/2015,BUSINESS,A,Net (Surplus) / Deficit of Trading Operations,HOWARTH TIMBER MERCHANT,Building Materials,Revenue,160766,829,02/10/2015,14.04,Nil,BUILDING MATERIALS LUMBER STORES,GPC,Not Yet Available
Wakefield MDC,E08000036,30/09/2015,BUSINESS,A,Net (Surplus) / Deficit of Trading Operations,HOWARTH TIMBER MERCHANT,Building Materials,Revenue,160746,381,10/08/2015,14.11,Nil,LUMBER/BUILDING MATERIALS STORES,GPC,Not Yet Available
Wakefield MDC,E08000036,30/09/2015,BUSINESS,A,Net (Surplus) / Deficit of Trading Operations,HOWARTH TIMBER MERCHANT,Building Materials,Revenue,160766,861,02/10/2015,15.70,Nil,BUILDING MATERIALS LUMBER STORES,GPC,Not Yet Available
Wakefield MDC,E08000036,30/09/2015,BUSINESS,A,Net (Surplus) / Deficit of Trading Operations,HOWARTH TIMBER MERCHANT,Building Materials,Revenue,160745,1929,29/07/2015,17.30,Nil,LUMBER/BUILDING MATERIALS STORES,GPC,Not Yet Available
Wakefield MDC,E08000036,30/09/2015,BUSINESS,A,Net (Surplus) / Deficit of Trading Operations,HOWARTH TIMBER MERCHANT,Building Materials,Revenue,160754,400,11/09/2015,18.36,Nil,LUMBER/BUILDING MATERIALS STORES,GPC,Not Yet Available
Wakefield MDC,E08000036,30/09/2015,BUSINESS,A,Net (Surplus) / Deficit of Trading Operations,HOWARTH TIMBER MERCHANT,Building Materials,Revenue,160759,756,23/09/2015,19.62,Nil,BUILDING MATERIALS LUMBER STORES,GPC,Not Yet Available
Wakefield MDC,E08000036,30/09/2015,BUSINESS,A,Net (Surplus) / Deficit of Trading Operations,HOWARTH TIMBER MERCHANT,Building Materials,Revenue,160746,849,10/08/2015,35.65,Nil,LUMBER/BUILDING MATERIALS STORES,GPC,Not Yet Available
Wakefield MDC,E08000036,30/09/2015,BUSINESS,A,Net (Surplus) / Deficit of Trading Operations,HOWARTH TIMBER MERCHANT,Building Materials,Revenue,160744,3087,16/07/2015,36.30,Nil,LUMBER/BUILDING MATERIALS STORES,GPC,Not Yet Available
Wakefield MDC,E08000036,30/09/2015,BUSINESS,A,Net (Surplus) / Deficit of Trading Operations,HOWARTH TIMBER MERCHANT,Building Materials,Revenue,160744,3027,16/07/2015,36.75,Nil,LUMBER/BUILDING MATERIALS STORES,GPC,Not Yet Available
Wakefield MDC,E08000036,30/09/2015,BUSINESS,A,Net (Surplus) / Deficit of Trading Operations,HOWARTH TIMBER MERCHANT,Building Materials,Revenue,160744,3025,16/07/2015,37.58,Nil,LUMBER/BUILDING MATERIALS STORES,GPC,Not Yet Available
Wakefield MDC,E08000036,30/09/2015,BUSINESS,A,Net (Surplus) / Deficit of Trading Operations,HOWARTH TIMBER MERCHANT,Building Materials,Revenue,160744,3002,16/07/2015,49.56,Nil,LUMBER/BUILDING MATERIALS STORES,GPC,Not Yet Available
Wakefield MDC,E08000036,30/09/2015,BUSINESS,A,Net (Surplus) / Deficit of Trading Operations,HOWARTH TIMBER MERCHANT,Building Materials,Revenue,160754,,11/09/2015,49.76,Nil,LUMBER/BUILDING MATERIALS STORES,GPC,Not Yet Available
Wakefield MDC,E08000036,30/09/2015,BUSINESS,A,Net (Surplus) / Deficit of Trading Operations,HOWARTH TIMBER MERCHANT,Building Materials,Revenue,160752,288,09/09/2015,50.49,Nil,BUILDING MATERIALS LUMBER STORES,GPC,Not Yet Available
Wakefield MDC,E08000036,30/09/2015,BUSINESS,A,Net (Surplus) / Deficit of Trading Operations,HOWARTH TIMBER MERCHANT,Building Materials,Revenue,160755,2,16/09/2015,50.49,Nil,LUMBER/BUILDING MATERIALS STORES,GPC,Not Yet Available
Wakefield MDC,E08000036,30/09/2015,BUSINESS,A,Net (Surplus) / Deficit of Trading Operations,HOWARTH TIMBER MERCHANT,Building Materials,Revenue,160744,3107,16/07/2015,52.20,Nil,LUMBER/BUILDING MATERIALS STORES,GPC,Not Yet Available
Wakefield MDC,E08000036,30/09/2015,BUSINESS,A,Net (Surplus) / Deficit of Trading Operations,HOWARTH TIMBER MERCHANT,Building Materials,Revenue,160752,196,09/09/2015,59.66,Nil,BUILDING MATERIALS LUMBER STORES,GPC,Not Yet Available
Wakefield MDC,E08000036,30/09/2015,BUSINESS,A,Net (Surplus) / Deficit of Trading Operations,HOWARTH TIMBER MERCHANT,Building Materials,Revenue,160745,238,29/07/2015,71.38,Nil,LUMBER/BUILDING MATERIALS STORES,GPC,Not Yet Available
Wakefield MDC,E08000036,30/09/2015,BUSINESS,A,Net (Surplus) / Deficit of Trading Operations,HOWARTH TIMBER MERCHANT,Building Materials,Revenue,160744,3085,16/07/2015,72.01,Nil,LUMBER/BUILDING MATERIALS STORES,GPC,Not Yet Available
Wakefield MDC,E08000036,30/09/2015,BUSINESS,A,Net (Surplus) / Deficit of Trading Operations,HOWARTH TIMBER MERCHANT,Building Materials,Revenue,160759,549,23/09/2015,83.06,Nil,BUILDING MATERIALS LUMBER STORES,GPC,Not Yet Available
Wakefield MDC,E08000036,30/09/2015,BUSINESS,A,Net (Surplus) / Deficit of Trading Operations,HOWARTH TIMBER MERCHANT,Building Materials,Revenue,160759,752,23/09/2015,86.39,Nil,BUILDING MATERIALS LUMBER STORES,GPC,Not Yet Available
Wakefield MDC,E08000036,30/09/2015,BUSINESS,A,Net (Surplus) / Deficit of Trading Operations,HOWARTH TIMBER MERCHANT,Building Materials,Revenue,160745,1904,29/07/2015,88.84,Nil,LUMBER/BUILDING MATERIALS STORES,GPC,Not Yet Available
Wakefield MDC,E08000036,30/09/2015,BUSINESS,A,Net (Surplus) / Deficit of Trading Operations,HOWARTH TIMBER MERCHANT,Building Materials,Revenue,160746,820,10/08/2015,89.24,Nil,LUMBER/BUILDING MATERIALS STORES,GPC,Not Yet Available
Wakefield MDC,E08000036,30/09/2015,BUSINESS,A,Net (Surplus) / Deficit of Trading Operations,HOWARTH TIMBER MERCHANT,Building Materials,Revenue,160759,706,23/09/2015,90.61,Nil,BUILDING MATERIALS LUMBER STORES,GPC,Not Yet Available
Wakefield MDC,E08000036,30/09/2015,BUSINESS,A,Net (Surplus) / Deficit of Trading Operations,HOWARTH TIMBER MERCHANT,Building Materials,Revenue,160744,3133,16/07/2015,115.62,Nil,LUMBER/BUILDING MATERIALS STORES,GPC,Not Yet Available
Wakefield MDC,E08000036,30/09/2015,BUSINESS,A,Net (Surplus) / Deficit of Trading Operations,HOWARTH TIMBER MERCHANT,Building Materials,Revenue,160745,1885,29/07/2015,115.82,Nil,LUMBER/BUILDING MATERIALS STORES,GPC,Not Yet Available
Wakefield MDC,E08000036,30/09/2015,BUSINESS,A,Net (Surplus) / Deficit of Trading Operations,HOWARTH TIMBER MERCHANT,Building Materials,Revenue,160759,1009,23/09/2015,126.36,Nil,BUILDING MATERIALS LUMBER STORES,GPC,Not Yet Available
Wakefield MDC,E08000036,30/09/2015,BUSINESS,A,Net (Surplus) / Deficit of Trading Operations,HOWARTH TIMBER MERCHANT,Building Materials,Revenue,160759,172,23/09/2015,127.56,Nil,BUILDING MATERIALS LUMBER STORES,GPC,Not Yet Available
Wakefield MDC,E08000036,30/09/2015,BUSINESS,A,Net (Surplus) / Deficit of Trading Operations,HOWARTH TIMBER MERCHANT,Building Materials,Revenue,160745,236,29/07/2015,134.22,Nil,LUMBER/BUILDING MATERIALS STORES,GPC,Not Yet Available
Wakefield MDC,E08000036,30/09/2015,BUSINESS,A,Net (Surplus) / Deficit of Trading Operations,HOWARTH TIMBER MERCHANT,Building Materials,Revenue,160766,803,02/10/2015,151.00,Nil,BUILDING MATERIALS LUMBER STORES,GPC,Not Yet Available
Wakefield MDC,E08000036,30/09/2015,BUSINESS,A,Net (Surplus) / Deficit of Trading Operations,HOWARTH TIMBER MERCHANT,Building Materials,Revenue,160747,521,10/08/2015,152.35,Nil,BUILDING MATERIALS LUMBER STORES,GPC,Not Yet Available
Wakefield MDC,E08000036,30/09/2015,BUSINESS,A,Net (Surplus) / Deficit of Trading Operations,HOWARTH TIMBER MERCHANT,Building Materials,Revenue,160744,2991,16/07/2015,168.06,Nil,LUMBER/BUILDING MATERIALS STORES,GPC,Not Yet Available
Wakefield MDC,E08000036,30/09/2015,BUSINESS,A,Net (Surplus) / Deficit of Trading Operations,HOWARTH TIMBER MERCHANT,Building Materials,Revenue,160766,483,02/10/2015,173.16,Nil,BUILDING MATERIALS LUMBER STORES,GPC,Not Yet Available
Wakefield MDC,E08000036,30/09/2015,BUSINESS,A,Net (Surplus) / Deficit of Trading Operations,HOWARTH TIMBER MERCHANT,Building Materials,Revenue,160759,710,23/09/2015,196.98,Nil,BUILDING MATERIALS LUMBER STORES,GPC,Not Yet Available
Wakefield MDC,E08000036,30/09/2015,BUSINESS,A,Net (Surplus) / Deficit of Trading Operations,HOWARTH TIMBER MERCHANT,Building Materials,Revenue,160766,833,02/10/2015,218.16,Nil,BUILDING MATERIALS LUMBER STORES,GPC,Not Yet Available
Wakefield MDC,E08000036,30/09/2015,BUSINESS,A,Net (Surplus) / Deficit of Trading Operations,HOWARTH TIMBER MERCHANT,Building Materials,Revenue,160759,1083,23/09/2015,243.24,Nil,BUILDING MATERIALS LUMBER STORES,GPC,Not Yet Available
Wakefield MDC,E08000036,30/09/2015,BUSINESS,A,Net (Surplus) / Deficit of Trading Operations,HOWARTH TIMBER MERCHANT,Building Materials,Revenue,160759,1045,23/09/2015,245.25,Nil,BUILDING MATERIALS LUMBER STORES,GPC,Not Yet Available
Wakefield MDC,E08000036,30/09/2015,BUSINESS,A,Net (Surplus) / Deficit of Trading Operations,HOWARTH TIMBER MERCHANT,Building Materials,Revenue,160766,812,02/10/2015,250.00,Nil,BUILDING MATERIALS LUMBER STORES,GPC,Not Yet Available
Wakefield MDC,E08000036,30/09/2015,BUSINESS,A,Net (Surplus) / Deficit of Trading Operations,HOWARTH TIMBER MERCHANT,Building Materials,Revenue,160759,408,23/09/2015,254.80,Nil,BUILDING MATERIALS LUMBER STORES,GPC,Not Yet Available
Wakefield MDC,E08000036,30/09/2015,BUSINESS,A,Net (Surplus) / Deficit of Trading Operations,HOWARTH TIMBER MERCHANT,Building Materials,Revenue,160752,184,09/09/2015,254.92,Nil,BUILDING MATERIALS LUMBER STORES,GPC,Not Yet Available
Wakefield MDC,E08000036,30/09/2015,BUSINESS,A,Net (Surplus) / Deficit of Trading Operations,HOWARTH TIMBER MERCHANT,Building Materials,Revenue,160745,196,29/07/2015,274.13,Nil,LUMBER/BUILDING MATERIALS STORES,GPC,Not Yet Available
Wakefield MDC,E08000036,30/09/2015,BUSINESS,A,Net (Surplus) / Deficit of Trading Operations,HOWARTH TIMBER MERCHANT,Building Materials,Revenue,160759,1022,23/09/2015,311.11,Nil,BUILDING MATERIALS LUMBER STORES,GPC,Not Yet Available
Wakefield MDC,E08000036,30/09/2015,BUSINESS,A,Net (Surplus) / Deficit of Trading Operations,HOWARTH TIMBER MERCHANT,Building Materials,Revenue,160746,594,10/08/2015,45.20,Nil,LUMBER/BUILDING MATERIALS STORES,GPC,Not Yet Available
Wakefield MDC,E08000036,30/09/2015,BUSINESS,A,Net (Surplus) / Deficit of Trading Operations,HOWARTH TIMBER MERCHANT,Building Materials,Revenue,160755,196,16/09/2015,15.98,Nil,LUMBER/BUILDING MATERIALS STORES,GPC,Not Yet Available
Wakefield MDC,E08000036,30/09/2015,BUSINESS,A,Net (Surplus) / Deficit of Trading Operations,HOWARTH TIMBER MERCHANT,Building Materials,Revenue,160759,224,23/09/2015,35.20,Nil,BUILDING MATERIALS LUMBER STORES,GPC,Not Yet Available
Wakefield MDC,E08000036,30/09/2015,BUSINESS,A,Net (Surplus) / Deficit of Trading Operations,HOWARTH TIMBER MERCHANT,Building Materials,Revenue,160744,3044,16/07/2015,51.78,Nil,LUMBER/BUILDING MATERIALS STORES,GPC,Not Yet Available
Wakefield MDC,E08000036,30/09/2015,BUSINESS,A,Net (Surplus) / Deficit of Trading Operations,HOWDEN JOINERY,Building Materials,Revenue,160744,3808,16/07/2015,2.10,Nil,CONSTRUCTION MATERIALS NOT ELSEWHERE CLASSIFIED,GPC,Not Yet Available
Wakefield MDC,E08000036,30/09/2015,BUSINESS,A,Net (Surplus) / Deficit of Trading Operations,HOWDEN JOINERY,Building Materials,Revenue,160744,3559,16/07/2015,2.10,Nil,CONSTRUCTION MATERIALS NOT ELSEWHERE CLASSIFIED,GPC,Not Yet Available
Wakefield MDC,E08000036,30/09/2015,BUSINESS,A,Net (Surplus) / Deficit of Trading Operations,HOWDEN JOINERY,Building Materials,Revenue,160744,3246,16/07/2015,2.77,Nil,CONSTRUCTION MATERIALS NOT ELSEWHERE CLASSIFIED,GPC,Not Yet Available
Wakefield MDC,E08000036,30/09/2015,BUSINESS,A,Net (Surplus) / Deficit of Trading Operations,HOWDEN JOINERY,Building Materials,Revenue,160744,4160,16/07/2015,4.20,Nil,CONSTRUCTION MATERIALS NOT ELSEWHERE CLASSIFIED,GPC,Not Yet Available
Wakefield MDC,E08000036,30/09/2015,BUSINESS,A,Net (Surplus) / Deficit of Trading Operations,HOWDEN JOINERY,Building Materials,Revenue,160744,3986,16/07/2015,4.90,Nil,CONSTRUCTION MATERIALS NOT ELSEWHERE CLASSIFIED,GPC,Not Yet Available
Wakefield MDC,E08000036,30/09/2015,BUSINESS,A,Net (Surplus) / Deficit of Trading Operations,HOWDEN JOINERY,Building Materials,Revenue,160744,3346,16/07/2015,5.00,Nil,CONSTRUCTION MATERIALS NOT ELSEWHERE CLASSIFIED,GPC,Not Yet Available
Wakefield MDC,E08000036,30/09/2015,BUSINESS,A,Net (Surplus) / Deficit of Trading Operations,HOWDEN JOINERY,Building Materials,Revenue,160744,3758,16/07/2015,6.54,Nil,CONSTRUCTION MATERIALS NOT ELSEWHERE CLASSIFIED,GPC,Not Yet Available
Wakefield MDC,E08000036,30/09/2015,BUSINESS,A,Net (Surplus) / Deficit of Trading Operations,HOWDEN JOINERY,Building Materials,Revenue,160744,4117,16/07/2015,6.54,Nil,CONSTRUCTION MATERIALS NOT ELSEWHERE CLASSIFIED,GPC,Not Yet Available
Wakefield MDC,E08000036,30/09/2015,BUSINESS,A,Net (Surplus) / Deficit of Trading Operations,HOWDEN JOINERY,Building Materials,Revenue,160744,3536,16/07/2015,6.54,Nil,CONSTRUCTION MATERIALS NOT ELSEWHERE CLASSIFIED,GPC,Not Yet Available
Wakefield MDC,E08000036,30/09/2015,BUSINESS,A,Net (Surplus) / Deficit of Trading Operations,HOWDEN JOINERY,Building Materials,Revenue,160744,4077,16/07/2015,7.44,Nil,CONSTRUCTION MATERIALS NOT ELSEWHERE CLASSIFIED,GPC,Not Yet Available
Wakefield MDC,E08000036,30/09/2015,BUSINESS,A,Net (Surplus) / Deficit of Trading Operations,HOWDEN JOINERY,Building Materials,Revenue,160744,3400,16/07/2015,7.75,Nil,CONSTRUCTION MATERIALS NOT ELSEWHERE CLASSIFIED,GPC,Not Yet Available
Wakefield MDC,E08000036,30/09/2015,BUSINESS,A,Net (Surplus) / Deficit of Trading Operations,HOWDEN JOINERY,Building Materials,Revenue,160744,3615,16/07/2015,7.75,Nil,CONSTRUCTION MATERIALS NOT ELSEWHERE CLASSIFIED,GPC,Not Yet Available
Wakefield MDC,E08000036,30/09/2015,BUSINESS,A,Net (Surplus) / Deficit of Trading Operations,HOWDEN JOINERY,Building Materials,Revenue,160744,3932,16/07/2015,7.75,Nil,CONSTRUCTION MATERIALS NOT ELSEWHERE CLASSIFIED,GPC,Not Yet Available
Wakefield MDC,E08000036,30/09/2015,BUSINESS,A,Net (Surplus) / Deficit of Trading Operations,HOWDEN JOINERY,Building Materials,Revenue,160744,3244,16/07/2015,8.60,Nil,CONSTRUCTION MATERIALS NOT ELSEWHERE CLASSIFIED,GPC,Not Yet Available
Wakefield MDC,E08000036,30/09/2015,BUSINESS,A,Net (Surplus) / Deficit of Trading Operations,HOWDEN JOINERY,Building Materials,Revenue,160752,324,09/09/2015,9.24,Nil,CONSTRUCTION MATERIALS NOT ELSEWHERE CLASSIFIED,GPC,Not Yet Available
Wakefield MDC,E08000036,30/09/2015,BUSINESS,A,Net (Surplus) / Deficit of Trading Operations,HOWDEN JOINERY,Building Materials,Revenue,160752,187,09/09/2015,13.32,Nil,CONSTRUCTION MATERIALS NOT ELSEWHERE CLASSIFIED,GPC,Not Yet Available
Wakefield MDC,E08000036,30/09/2015,BUSINESS,A,Net (Surplus) / Deficit of Trading Operations,HOWDEN JOINERY,Building Materials,Revenue,160744,3295,16/07/2015,15.20,Nil,CONSTRUCTION MATERIALS NOT ELSEWHERE CLASSIFIED,GPC,Not Yet Available
Wakefield MDC,E08000036,30/09/2015,BUSINESS,A,Net (Surplus) / Deficit of Trading Operations,HOWDEN JOINERY,Building Materials,Revenue,160744,4299,16/07/2015,15.75,Nil,CONSTRUCTION MATERIALS NOT ELSEWHERE CLASSIFIED,GPC,Not Yet Available
Wakefield MDC,E08000036,30/09/2015,BUSINESS,A,Net (Surplus) / Deficit of Trading Operations,HOWDEN JOINERY,Building Materials,Revenue,160744,3508,16/07/2015,15.75,Nil,CONSTRUCTION MATERIALS NOT ELSEWHERE CLASSIFIED,GPC,Not Yet Available
Wakefield MDC,E08000036,30/09/2015,BUSINESS,A,Net (Surplus) / Deficit of Trading Operations,HOWDEN JOINERY,Building Materials,Revenue,160744,3866,16/07/2015,15.75,Nil,CONSTRUCTION MATERIALS NOT ELSEWHERE CLASSIFIED,GPC,Not Yet Available
Wakefield MDC,E08000036,30/09/2015,BUSINESS,A,Net (Surplus) / Deficit of Trading Operations,HOWDEN JOINERY,Building Materials,Revenue,160744,3221,16/07/2015,20.20,Nil,CONSTRUCTION MATERIALS NOT ELSEWHERE CLASSIFIED,GPC,Not Yet Available
Wakefield MDC,E08000036,30/09/2015,BUSINESS,A,Net (Surplus) / Deficit of Trading Operations,HOWDEN JOINERY,Building Materials,Revenue,160744,3907,16/07/2015,24.15,Nil,CONSTRUCTION MATERIALS NOT ELSEWHERE CLASSIFIED,GPC,Not Yet Available
Wakefield MDC,E08000036,30/09/2015,BUSINESS,A,Net (Surplus) / Deficit of Trading Operations,HOWDEN JOINERY,Building Materials,Revenue,160744,4119,16/07/2015,24.15,Nil,CONSTRUCTION MATERIALS NOT ELSEWHERE CLASSIFIED,GPC,Not Yet Available
Wakefield MDC,E08000036,30/09/2015,BUSINESS,A,Net (Surplus) / Deficit of Trading Operations,HOWDEN JOINERY,Building Materials,Revenue,160744,3297,16/07/2015,36.60,Nil,CONSTRUCTION MATERIALS NOT ELSEWHERE CLASSIFIED,GPC,Not Yet Available
Wakefield MDC,E08000036,30/09/2015,BUSINESS,A,Net (Surplus) / Deficit of Trading Operations,HOWDEN JOINERY,Building Materials,Revenue,160746,475,10/08/2015,38.00,Nil,CONSTRUCTION MATERIALS NOT ELSEWHERE CLASSIFIED,GPC,Not Yet Available
Wakefield MDC,E08000036,30/09/2015,BUSINESS,A,Net (Surplus) / Deficit of Trading Operations,HOWDEN JOINERY,Building Materials,Revenue,160744,3730,16/07/2015,38.00,Nil,CONSTRUCTION MATERIALS NOT ELSEWHERE CLASSIFIED,GPC,Not Yet Available
Wakefield MDC,E08000036,30/09/2015,BUSINESS,A,Net (Surplus) / Deficit of Trading Operations,HOWDEN JOINERY,Building Materials,Revenue,160746,10,10/08/2015,40.32,Nil,CONSTRUCTION MATERIALS NOT ELSEWHERE CLASSIFIED,GPC,Not Yet Available
Wakefield MDC,E08000036,30/09/2015,BUSINESS,A,Net (Surplus) / Deficit of Trading Operations,HOWDEN JOINERY,Building Materials,Revenue,160744,3269,16/07/2015,48.25,Nil,CONSTRUCTION MATERIALS NOT ELSEWHERE CLASSIFIED,GPC,Not Yet Available
Wakefield MDC,E08000036,30/09/2015,BUSINESS,A,Net (Surplus) / Deficit of Trading Operations,HOWDEN JOINERY,Building Materials,Revenue,160744,3320,16/07/2015,48.94,Nil,CONSTRUCTION MATERIALS NOT ELSEWHERE CLASSIFIED,GPC,Not Yet Available
Wakefield MDC,E08000036,30/09/2015,BUSINESS,A,Net (Surplus) / Deficit of Trading Operations,HOWDEN JOINERY,Building Materials,Revenue,160744,3810,16/07/2015,50.40,Nil,CONSTRUCTION MATERIALS NOT ELSEWHERE CLASSIFIED,GPC,Not Yet Available
Wakefield MDC,E08000036,30/09/2015,BUSINESS,A,Net (Surplus) / Deficit of Trading Operations,HOWDEN JOINERY,Building Materials,Revenue,160744,3466,16/07/2015,57.00,Nil,CONSTRUCTION MATERIALS NOT ELSEWHERE CLASSIFIED,GPC,Not Yet Available
Wakefield MDC,E08000036,30/09/2015,BUSINESS,A,Net (Surplus) / Deficit of Trading Operations,HOWDEN JOINERY,Building Materials,Revenue,160746,480,10/08/2015,63.00,Nil,CONSTRUCTION MATERIALS NOT ELSEWHERE CLASSIFIED,GPC,Not Yet Available
Wakefield MDC,E08000036,30/09/2015,BUSINESS,A,Net (Surplus) / Deficit of Trading Operations,HOWDEN JOINERY,Building Materials,Revenue,160744,3847,16/07/2015,63.00,Nil,CONSTRUCTION MATERIALS NOT ELSEWHERE CLASSIFIED,GPC,Not Yet Available
Wakefield MDC,E08000036,30/09/2015,BUSINESS,A,Net (Surplus) / Deficit of Trading Operations,HOWDEN JOINERY,Building Materials,Revenue,160744,4220,16/07/2015,65.00,Nil,CONSTRUCTION MATERIALS NOT ELSEWHERE CLASSIFIED,GPC,Not Yet Available
Wakefield MDC,E08000036,30/09/2015,BUSINESS,A,Net (Surplus) / Deficit of Trading Operations,HOWDEN JOINERY,Building Materials,Revenue,160744,3187,16/07/2015,65.16,Nil,CONSTRUCTION MATERIALS NOT ELSEWHERE CLASSIFIED,GPC,Not Yet Available
Wakefield MDC,E08000036,30/09/2015,BUSINESS,A,Net (Surplus) / Deficit of Trading Operations,HOWDEN JOINERY,Building Materials,Revenue,160744,4258,16/07/2015,65.52,Nil,CONSTRUCTION MATERIALS NOT ELSEWHERE CLASSIFIED,GPC,Not Yet Available
Wakefield MDC,E08000036,30/09/2015,BUSINESS,A,Net (Surplus) / Deficit of Trading Operations,HOWDEN JOINERY,Building Materials,Revenue,160744,4179,16/07/2015,68.40,Nil,CONSTRUCTION MATERIALS NOT ELSEWHERE CLASSIFIED,GPC,Not Yet Available
Wakefield MDC,E08000036,30/09/2015,BUSINESS,A,Net (Surplus) / Deficit of Trading Operations,HOWDEN JOINERY,Building Materials,Revenue,160744,4260,16/07/2015,76.00,Nil,CONSTRUCTION MATERIALS NOT ELSEWHERE CLASSIFIED,GPC,Not Yet Available
Wakefield MDC,E08000036,30/09/2015,BUSINESS,A,Net (Surplus) / Deficit of Trading Operations,HOWDEN JOINERY,Building Materials,Revenue,160744,3189,16/07/2015,76.75,Nil,CONSTRUCTION MATERIALS NOT ELSEWHERE CLASSIFIED,GPC,Not Yet Available
Wakefield MDC,E08000036,30/09/2015,BUSINESS,A,Net (Surplus) / Deficit of Trading Operations,HOWDEN JOINERY,Building Materials,Revenue,160744,4280,16/07/2015,81.60,Nil,CONSTRUCTION MATERIALS NOT ELSEWHERE CLASSIFIED,GPC,Not Yet Available
Wakefield MDC,E08000036,30/09/2015,BUSINESS,A,Net (Surplus) / Deficit of Trading Operations,HOWDEN JOINERY,Building Materials,Revenue,160744,3468,16/07/2015,81.60,Nil,CONSTRUCTION MATERIALS NOT ELSEWHERE CLASSIFIED,GPC,Not Yet Available
Wakefield MDC,E08000036,30/09/2015,BUSINESS,A,Net (Surplus) / Deficit of Trading Operations,HOWDEN JOINERY,Building Materials,Revenue,160744,3707,16/07/2015,81.60,Nil,CONSTRUCTION MATERIALS NOT ELSEWHERE CLASSIFIED,GPC,Not Yet Available
Wakefield MDC,E08000036,30/09/2015,BUSINESS,A,Net (Surplus) / Deficit of Trading Operations,HOWDEN JOINERY,Building Materials,Revenue,160744,4075,16/07/2015,90.75,Nil,CONSTRUCTION MATERIALS NOT ELSEWHERE CLASSIFIED,GPC,Not Yet Available
Wakefield MDC,E08000036,30/09/2015,BUSINESS,A,Net (Surplus) / Deficit of Trading Operations,HOWDEN JOINERY,Building Materials,Revenue,160766,865,02/10/2015,115.80,Nil,CONSTRUCTION MATERIALS NOT ELSEWHERE CLASSIFIED,GPC,Not Yet Available
Wakefield MDC,E08000036,30/09/2015,BUSINESS,A,Net (Surplus) / Deficit of Trading Operations,HOWDEN JOINERY,Building Materials,Revenue,160744,3955,16/07/2015,121.50,Nil,CONSTRUCTION MATERIALS NOT ELSEWHERE CLASSIFIED,GPC,Not Yet Available
Wakefield MDC,E08000036,30/09/2015,BUSINESS,A,Net (Surplus) / Deficit of Trading Operations,HOWDEN JOINERY,Building Materials,Revenue,160744,3561,16/07/2015,121.50,Nil,CONSTRUCTION MATERIALS NOT ELSEWHERE CLASSIFIED,GPC,Not Yet Available
Wakefield MDC,E08000036,30/09/2015,BUSINESS,A,Net (Surplus) / Deficit of Trading Operations,HOWDEN JOINERY,Building Materials,Revenue,160744,3510,16/07/2015,122.85,Nil,CONSTRUCTION MATERIALS NOT ELSEWHERE CLASSIFIED,GPC,Not Yet Available
Wakefield MDC,E08000036,30/09/2015,BUSINESS,A,Net (Surplus) / Deficit of Trading Operations,HOWDEN JOINERY,Building Materials,Revenue,160744,3827,16/07/2015,122.85,Nil,CONSTRUCTION MATERIALS NOT ELSEWHERE CLASSIFIED,GPC,Not Yet Available
Wakefield MDC,E08000036,30/09/2015,BUSINESS,A,Net (Surplus) / Deficit of Trading Operations,HOWDEN JOINERY,Building Materials,Revenue,160744,3425,16/07/2015,131.75,Nil,CONSTRUCTION MATERIALS NOT ELSEWHERE CLASSIFIED,GPC,Not Yet Available
Wakefield MDC,E08000036,30/09/2015,BUSINESS,A,Net (Surplus) / Deficit of Trading Operations,HOWDEN JOINERY,Building Materials,Revenue,160744,3644,16/07/2015,131.75,Nil,CONSTRUCTION MATERIALS NOT ELSEWHERE CLASSIFIED,GPC,Not Yet Available
Wakefield MDC,E08000036,30/09/2015,BUSINESS,A,Net (Surplus) / Deficit of Trading Operations,HOWDEN JOINERY,Building Materials,Revenue,160744,3402,16/07/2015,131.75,Nil,CONSTRUCTION MATERIALS NOT ELSEWHERE CLASSIFIED,GPC,Not Yet Available
Wakefield MDC,E08000036,30/09/2015,BUSINESS,A,Net (Surplus) / Deficit of Trading Operations,HOWDEN JOINERY,Building Materials,Revenue,160744,3670,16/07/2015,131.75,Nil,CONSTRUCTION MATERIALS NOT ELSEWHERE CLASSIFIED,GPC,Not Yet Available
Wakefield MDC,E08000036,30/09/2015,BUSINESS,A,Net (Surplus) / Deficit of Trading Operations,HOWDEN JOINERY,Building Materials,Revenue,160744,3672,16/07/2015,131.75,Nil,CONSTRUCTION MATERIALS NOT ELSEWHERE CLASSIFIED,GPC,Not Yet Available
Wakefield MDC,E08000036,30/09/2015,BUSINESS,A,Net (Surplus) / Deficit of Trading Operations,HOWDEN JOINERY,Building Materials,Revenue,160748,670,18/08/2015,136.80,Nil,CONSTRUCTION MATERIALS NOT ELSEWHERE CLASSIFIED,GPC,Not Yet Available
Wakefield MDC,E08000036,30/09/2015,BUSINESS,A,Net (Surplus) / Deficit of Trading Operations,HOWDEN JOINERY,Building Materials,Revenue,160744,3957,16/07/2015,151.50,Nil,CONSTRUCTION MATERIALS NOT ELSEWHERE CLASSIFIED,GPC,Not Yet Available
Wakefield MDC,E08000036,30/09/2015,BUSINESS,A,Net (Surplus) / Deficit of Trading Operations,HOWDEN JOINERY,Building Materials,Revenue,160744,4046,16/07/2015,170.25,Nil,CONSTRUCTION MATERIALS NOT ELSEWHERE CLASSIFIED,GPC,Not Yet Available
Wakefield MDC,E08000036,30/09/2015,BUSINESS,A,Net (Surplus) / Deficit of Trading Operations,HOWDEN JOINERY,Building Materials,Revenue,160744,3590,16/07/2015,174.00,Nil,CONSTRUCTION MATERIALS NOT ELSEWHERE CLASSIFIED,GPC,Not Yet Available
Wakefield MDC,E08000036,30/09/2015,BUSINESS,A,Net (Surplus) / Deficit of Trading Operations,HOWDEN JOINERY,Building Materials,Revenue,160744,4003,16/07/2015,174.00,Nil,CONSTRUCTION MATERIALS NOT ELSEWHERE CLASSIFIED,GPC,Not Yet Available
Wakefield MDC,E08000036,30/09/2015,BUSINESS,A,Net (Surplus) / Deficit of Trading Operations,HOWDEN JOINERY,Building Materials,Revenue,160744,4005,16/07/2015,174.00,Nil,CONSTRUCTION MATERIALS NOT ELSEWHERE CLASSIFIED,GPC,Not Yet Available
Wakefield MDC,E08000036,30/09/2015,BUSINESS,A,Net (Surplus) / Deficit of Trading Operations,HOWDEN JOINERY,Building Materials,Revenue,160744,3348,16/07/2015,174.00,Nil,CONSTRUCTION MATERIALS NOT ELSEWHERE CLASSIFIED,GPC,Not Yet Available
Wakefield MDC,E08000036,30/09/2015,BUSINESS,A,Net (Surplus) / Deficit of Trading Operations,HOWDEN JOINERY,Building Materials,Revenue,160744,4177,16/07/2015,180.25,Nil,CONSTRUCTION MATERIALS NOT ELSEWHERE CLASSIFIED,GPC,Not Yet Available
Wakefield MDC,E08000036,30/09/2015,BUSINESS,A,Net (Surplus) / Deficit of Trading Operations,HOWDEN JOINERY,Building Materials,Revenue,160744,4297,16/07/2015,203.00,Nil,CONSTRUCTION MATERIALS NOT ELSEWHERE CLASSIFIED,GPC,Not Yet Available
Wakefield MDC,E08000036,30/09/2015,BUSINESS,A,Net (Surplus) / Deficit of Trading Operations,HOWDEN JOINERY,Building Materials,Revenue,160744,3479,16/07/2015,203.00,Nil,CONSTRUCTION MATERIALS NOT ELSEWHERE CLASSIFIED,GPC,Not Yet Available
Wakefield MDC,E08000036,30/09/2015,BUSINESS,A,Net (Surplus) / Deficit of Trading Operations,HOWDEN JOINERY,Building Materials,Revenue,160744,3849,16/07/2015,203.00,Nil,CONSTRUCTION MATERIALS NOT ELSEWHERE CLASSIFIED,GPC,Not Yet Available
Wakefield MDC,E08000036,30/09/2015,BUSINESS,A,Net (Surplus) / Deficit of Trading Operations,HOWDEN JOINERY,Building Materials,Revenue,160744,4100,16/07/2015,245.70,Nil,CONSTRUCTION MATERIALS NOT ELSEWHERE CLASSIFIED,GPC,Not Yet Available
Wakefield MDC,E08000036,30/09/2015,BUSINESS,A,Net (Surplus) / Deficit of Trading Operations,HOWDEN JOINERY,Building Materials,Revenue,160744,3732,16/07/2015,245.70,Nil,CONSTRUCTION MATERIALS NOT ELSEWHERE CLASSIFIED,GPC,Not Yet Available
Wakefield MDC,E08000036,30/09/2015,BUSINESS,A,Net (Surplus) / Deficit of Trading Operations,HOWDEN JOINERY,Building Materials,Revenue,160744,3371,16/07/2015,335.50,Nil,CONSTRUCTION MATERIALS NOT ELSEWHERE CLASSIFIED,GPC,Not Yet Available
Wakefield MDC,E08000036,30/09/2015,BUSINESS,A,Net (Surplus) / Deficit of Trading Operations,HOWDEN JOINERY,Building Materials,Revenue,160744,3909,16/07/2015,335.50,Nil,CONSTRUCTION MATERIALS NOT ELSEWHERE CLASSIFIED,GPC,Not Yet Available
Wakefield MDC,E08000036,30/09/2015,BUSINESS,A,Net (Surplus) / Deficit of Trading Operations,HOWDEN JOINERY,Building Materials,Revenue,160744,3613,16/07/2015,335.50,Nil,CONSTRUCTION MATERIALS NOT ELSEWHERE CLASSIFIED,GPC,Not Yet Available
Wakefield MDC,E08000036,30/09/2015,BUSINESS,A,Net (Surplus) / Deficit of Trading Operations,HSS HIRE,Building Materials,Revenue,160752,162,09/09/2015,-84.02,Nil,EQUIPMENT RENTAL&LEASING SVS FURNTURE/TOOL RENTAL,GPC,Not Yet Available
Wakefield MDC,E08000036,30/09/2015,BUSINESS,A,Net (Surplus) / Deficit of Trading Operations,HSS HIRE,Building Materials,Revenue,160752,134,09/09/2015,208.33,Nil,EQUIPMENT RENTAL&LEASING SVS FURNTURE/TOOL RENTAL,GPC,Not Yet Available
Wakefield MDC,E08000036,30/09/2015,BUSINESS,A,Net (Surplus) / Deficit of Trading Operations,IN BRASS,Building Materials,Revenue,160752,156,09/09/2015,88.67,Nil,INDUSTRIAL SUPPLIES NOT ELSEWHERE CLASSIFIED,GPC,Not Yet Available
Wakefield MDC,E08000036,30/09/2015,BUSINESS,A,Net (Surplus) / Deficit of Trading Operations,IPC FIXINGS LTD,Building Materials,Revenue,160746,944,10/08/2015,25.07,Nil,LUMBER/BUILDING MATERIALS STORES,GPC,Not Yet Available
Wakefield MDC,E08000036,30/09/2015,BUSINESS,A,Net (Surplus) / Deficit of Trading Operations,IRONMONGERY DIRECT,Building Materials,Revenue,160752,73,09/09/2015,18.05,Nil,GLASS/PAINT/WALLPAPER STORES,GPC,Not Yet Available
Wakefield MDC,E08000036,30/09/2015,BUSINESS,A,Net (Surplus) / Deficit of Trading Operations,IRONMONGERY DIRECT,Building Materials,Revenue,160746,1132,10/08/2015,31.15,Nil,GLASS/PAINT/WALLPAPER STORES,GPC,Not Yet Available
Wakefield MDC,E08000036,30/09/2015,BUSINESS,A,Net (Surplus) / Deficit of Trading Operations,IRONMONGERY DIRECT,Building Materials,Revenue,160752,282,09/09/2015,47.81,Nil,GLASS/PAINT/WALLPAPER STORES,GPC,Not Yet Available
Wakefield MDC,E08000036,30/09/2015,BUSINESS,A,Net (Surplus) / Deficit of Trading Operations,IRONMONGERY DIRECT,Building Materials,Revenue,160746,16,10/08/2015,49.90,Nil,GLASS/PAINT/WALLPAPER STORES,GPC,Not Yet Available
Wakefield MDC,E08000036,30/09/2015,BUSINESS,A,Net (Surplus) / Deficit of Trading Operations,IRONMONGERY DIRECT,Building Materials,Revenue,160752,72,09/09/2015,50.45,Nil,GLASS/PAINT/WALLPAPER STORES,GPC,Not Yet Available
Wakefield MDC,E08000036,30/09/2015,BUSINESS,A,Net (Surplus) / Deficit of Trading Operations,IRONMONGERY DIRECT,Building Materials,Revenue,160752,177,09/09/2015,57.30,Nil,GLASS/PAINT/WALLPAPER STORES,GPC,Not Yet Available
Wakefield MDC,E08000036,30/09/2015,BUSINESS,A,Net (Surplus) / Deficit of Trading Operations,IRONMONGERY DIRECT,Building Materials,Revenue,160752,281,09/09/2015,68.10,Nil,GLASS/PAINT/WALLPAPER STORES,GPC,Not Yet Available
Wakefield MDC,E08000036,30/09/2015,BUSINESS,A,Net (Surplus) / Deficit of Trading Operations,IRONMONGERY DIRECT,Building Materials,Revenue,160759,778,23/09/2015,71.10,Nil,GLASS/PAINT/WALLPAPER STORES,GPC,Not Yet Available
Wakefield MDC,E08000036,30/09/2015,BUSINESS,A,Net (Surplus) / Deficit of Trading Operations,IRONMONGERY DIRECT,Building Materials,Revenue,160744,1338,16/07/2015,86.50,Nil,GLASS/PAINT/WALLPAPER STORES,GPC,Not Yet Available
Wakefield MDC,E08000036,30/09/2015,BUSINESS,A,Net (Surplus) / Deficit of Trading Operations,IRONMONGERY DIRECT,Building Materials,Revenue,160766,800,02/10/2015,91.30,Nil,GLASS/PAINT/WALLPAPER STORES,GPC,Not Yet Available
Wakefield MDC,E08000036,30/09/2015,BUSINESS,A,Net (Surplus) / Deficit of Trading Operations,IRONMONGERY DIRECT,Building Materials,Revenue,160746,23,10/08/2015,95.50,Nil,GLASS/PAINT/WALLPAPER STORES,GPC,Not Yet Available
Wakefield MDC,E08000036,30/09/2015,BUSINESS,A,Net (Surplus) / Deficit of Trading Operations,IRONMONGERY DIRECT,Building Materials,Revenue,160759,332,23/09/2015,101.50,Nil,GLASS/PAINT/WALLPAPER STORES,GPC,Not Yet Available
Wakefield MDC,E08000036,30/09/2015,BUSINESS,A,Net (Surplus) / Deficit of Trading Operations,J DAVIDSON PIPES,Building Materials,Revenue,160759,396,23/09/2015,12.50,Nil,CONSTRUCTION MATERIALS NOT ELSEWHERE CLASSIFIED,GPC,Not Yet Available
Wakefield MDC,E08000036,30/09/2015,BUSINESS,A,Net (Surplus) / Deficit of Trading Operations,J DAVIDSON PIPES,Building Materials,Revenue,160755,306,16/09/2015,97.00,Nil,CONSTRUCTION MATERIALS NOT ELSEWHERE CLASSIFIED,GPC,Not Yet Available
Wakefield MDC,E08000036,30/09/2015,BUSINESS,A,Net (Surplus) / Deficit of Trading Operations,J M HUNT & CO,Building Materials,Revenue,160744,213,16/07/2015,13.74,Nil,PLUMBING AND HEATING EQUIPMENT,GPC,Not Yet Available
Wakefield MDC,E08000036,30/09/2015,BUSINESS,A,Net (Surplus) / Deficit of Trading Operations,J M HUNT & CO,Building Materials,Revenue,160745,1663,29/07/2015,6.20,Nil,PLUMBING AND HEATING EQUIPMENT,GPC,Not Yet Available
Wakefield MDC,E08000036,30/09/2015,BUSINESS,A,Net (Surplus) / Deficit of Trading Operations,J M HUNT & CO,Building Materials,Revenue,160752,106,09/09/2015,7.86,Nil,PLUMBING AND HEATING EQUIPMENT,GPC,Not Yet Available
Wakefield MDC,E08000036,30/09/2015,BUSINESS,A,Net (Surplus) / Deficit of Trading Operations,J M HUNT & CO,Building Materials,Revenue,160752,371,09/09/2015,31.64,Nil,PLUMBING AND HEATING EQUIPMENT,GPC,Not Yet Available
Wakefield MDC,E08000036,30/09/2015,BUSINESS,A,Net (Surplus) / Deficit of Trading Operations,J M HUNT & CO,Building Materials,Revenue,160744,257,16/07/2015,31.71,Nil,PLUMBING AND HEATING EQUIPMENT,GPC,Not Yet Available
Wakefield MDC,E08000036,30/09/2015,BUSINESS,A,Net (Surplus) / Deficit of Trading Operations,JACK HINTON,Building Materials,Revenue,160759,238,23/09/2015,6.24,Nil,ELECTRICAL PARTS AND EQUIPMENT,GPC,Not Yet Available
Wakefield MDC,E08000036,30/09/2015,BUSINESS,A,Net (Surplus) / Deficit of Trading Operations,JAMES BURRELL LTD,Building Materials,Revenue,160744,259,16/07/2015,106.70,Nil,LUMBER/BUILDING MATERIALS STORES,GPC,Not Yet Available
Wakefield MDC,E08000036,30/09/2015,BUSINESS,A,Net (Surplus) / Deficit of Trading Operations,JEWSON LTD,Building Materials,Revenue,160746,580,10/08/2015,4.41,Nil,LUMBER/BUILDING MATERIALS STORES,GPC,Not Yet Available
Wakefield MDC,E08000036,30/09/2015,BUSINESS,A,Net (Surplus) / Deficit of Trading Operations,JOHN MONAGHAN LTD,Building Materials,Revenue,160747,1152,10/08/2015,4.24,Nil,HARDWARE EQUIPMENT AND SUPPLIES,GPC,Not Yet Available
Wakefield MDC,E08000036,30/09/2015,BUSINESS,A,Net (Surplus) / Deficit of Trading Operations,JOHN MONAGHAN LTD,Building Materials,Revenue,160744,342,16/07/2015,23.60,Nil,HARDWARE EQUIPMENT AND SUPPLIES,GPC,Not Yet Available
Wakefield MDC,E08000036,30/09/2015,BUSINESS,A,Net (Surplus) / Deficit of Trading Operations,JOHN MONAGHAN LTD,Building Materials,Revenue,160748,569,18/08/2015,38.52,Nil,HARDWARE EQUIPMENT AND SUPPLIES,GPC,Not Yet Available
Wakefield MDC,E08000036,30/09/2015,BUSINESS,A,Net (Surplus) / Deficit of Trading Operations,JOHNSON NORMANTON LTD,Building Materials,Revenue,160752,350,09/09/2015,35.00,Nil,BUILDING MATERIALS LUMBER STORES,GPC,Not Yet Available
Wakefield MDC,E08000036,30/09/2015,BUSINESS,A,Net (Surplus) / Deficit of Trading Operations,JOHNSTONES DEC CENTRE,Building Materials,Revenue,160747,1116,10/08/2015,10.08,Nil,GLASS/PAINT/WALLPAPER STORES,GPC,Not Yet Available
Wakefield MDC,E08000036,30/09/2015,BUSINESS,A,Net (Surplus) / Deficit of Trading Operations,KAYS FASTENERS,Building Materials,Revenue,160759,865,23/09/2015,16.87,Nil,HARDWARE STORES,GPC,Not Yet Available
Wakefield MDC,E08000036,30/09/2015,BUSINESS,A,Net (Surplus) / Deficit of Trading Operations,KAYS FASTENERS,Building Materials,Revenue,160766,779,02/10/2015,20.74,Nil,HARDWARE STORES,GPC,Not Yet Available
Wakefield MDC,E08000036,30/09/2015,BUSINESS,A,Net (Surplus) / Deficit of Trading Operations,KEENCOST,Building Materials,Revenue,160745,873,29/07/2015,11.67,Nil,HOME SUPPLY WAREHOUSE STORES,GPC,Not Yet Available
Wakefield MDC,E08000036,30/09/2015,BUSINESS,A,Net (Surplus) / Deficit of Trading Operations,KEENCOST,Building Materials,Revenue,160744,647,16/07/2015,78.83,Nil,HOME SUPPLY WAREHOUSE STORES,GPC,Not Yet Available
Wakefield MDC,E08000036,30/09/2015,BUSINESS,A,Net (Surplus) / Deficit of Trading Operations,LYNVALE,Building Materials,Revenue,160752,271,09/09/2015,30.96,Nil,COMMERCIAL EQUIPMENT NOT ELSEWHERE CLASSIFIED,GPC,Not Yet Available
Wakefield MDC,E08000036,30/09/2015,BUSINESS,A,Net (Surplus) / Deficit of Trading Operations,LYNVALE,Building Materials,Revenue,160746,48,10/08/2015,94.74,Nil,COMMERCIAL EQUIPMENT NOT ELSEWHERE CLASSIFIED,GPC,Not Yet Available
Wakefield MDC,E08000036,30/09/2015,BUSINESS,A,Net (Surplus) / Deficit of Trading Operations,MAPLIN,Building Materials,Revenue,160744,1603,16/07/2015,1.91,Nil,ELECTRONIC SALES,GPC,Not Yet Available
Wakefield MDC,E08000036,30/09/2015,BUSINESS,A,Net (Surplus) / Deficit of Trading Operations,MAPLIN,Building Materials,Revenue,160766,413,02/10/2015,6.99,Nil,ELECTRONIC SALES,GPC,Not Yet Available
Wakefield MDC,E08000036,30/09/2015,BUSINESS,A,Net (Surplus) / Deficit of Trading Operations,MAPLIN,Building Materials,Revenue,160766,412,02/10/2015,7.07,Nil,ELECTRONIC SALES,GPC,Not Yet Available
Wakefield MDC,E08000036,30/09/2015,BUSINESS,A,Net (Surplus) / Deficit of Trading Operations,MAPLIN,Building Materials,Revenue,160759,836,23/09/2015,33.32,Nil,ELECTRONIC SALES,GPC,Not Yet Available
Wakefield MDC,E08000036,30/09/2015,BUSINESS,A,Net (Surplus) / Deficit of Trading Operations,MEYER TIMBER LTD,Building Materials,Revenue,160759,1001,23/09/2015,53.60,Nil,BUILDING MATERIALS LUMBER STORES,GPC,Not Yet Available
Wakefield MDC,E08000036,30/09/2015,BUSINESS,A,Net (Surplus) / Deficit of Trading Operations,MEYER TIMBER LTD,Building Materials,Revenue,160759,680,23/09/2015,163.50,Nil,BUILDING MATERIALS LUMBER STORES,GPC,Not Yet Available
Wakefield MDC,E08000036,30/09/2015,BUSINESS,A,Net (Surplus) / Deficit of Trading Operations,MEYER TIMBER LTD,Building Materials,Revenue,160759,266,23/09/2015,268.00,Nil,BUILDING MATERIALS LUMBER STORES,GPC,Not Yet Available
Wakefield MDC,E08000036,30/09/2015,BUSINESS,A,Net (Surplus) / Deficit of Trading Operations,MEYER TIMBER LTD,Building Materials,Revenue,160759,282,23/09/2015,321.60,Nil,BUILDING MATERIALS LUMBER STORES,GPC,Not Yet Available
Wakefield MDC,E08000036,30/09/2015,BUSINESS,A,Net (Surplus) / Deficit of Trading Operations,MOSS EXPRESS STOURBRIDGE,Building Materials,Revenue,160752,238,09/09/2015,43.94,Nil,INDUSTRIAL SUPPLIES NOT ELSEWHERE CLASSIFIED,GPC,Not Yet Available
Wakefield MDC,E08000036,30/09/2015,BUSINESS,A,Net (Surplus) / Deficit of Trading Operations,MY TOOL SHED,Building Materials,Revenue,160746,67,10/08/2015,39.00,Nil,HARDWARE EQUIPMENT AND SUPPLIES,GPC,Not Yet Available
Wakefield MDC,E08000036,30/09/2015,BUSINESS,A,Net (Surplus) / Deficit of Trading Operations,MY TOOL SHED,Building Materials,Revenue,160752,203,09/09/2015,35.55,Nil,HARDWARE EQUIPMENT AND SUPPLIES,GPC,Not Yet Available
Wakefield MDC,E08000036,30/09/2015,BUSINESS,A,Net (Surplus) / Deficit of Trading Operations,MY TOOL SHED,Building Materials,Revenue,160746,41,10/08/2015,95.40,Nil,HARDWARE EQUIPMENT AND SUPPLIES,GPC,Not Yet Available
Wakefield MDC,E08000036,30/09/2015,BUSINESS,A,Net (Surplus) / Deficit of Trading Operations,NEWEY & EYRE,Building Materials,Revenue,160744,3273,16/07/2015,7.27,Nil,ELECTRICAL PARTS AND EQUIPMENT,GPC,Not Yet Available
Wakefield MDC,E08000036,30/09/2015,BUSINESS,A,Net (Surplus) / Deficit of Trading Operations,NEWEY & EYRE,Building Materials,Revenue,160759,841,23/09/2015,11.56,Nil,ELECTRICAL PARTS AND EQUIPMENT,GPC,Not Yet Available
Wakefield MDC,E08000036,30/09/2015,BUSINESS,A,Net (Surplus) / Deficit of Trading Operations,NORTHERN POWERGRID,Building Materials,Revenue,160766,691,02/10/2015,131.30,Nil,UTILITIES - ELEC/GAS/HEATING OIL/WATER/SANITARY,GPC,Not Yet Available
Wakefield MDC,E08000036,30/09/2015,BUSINESS,A,Net (Surplus) / Deficit of Trading Operations,PLUMB CENTER,Building Materials,Revenue,160752,258,09/09/2015,-5.38,Nil,HEATING/PLUMBING/AIR CONDITIONING CONTRACTORS,GPC,Not Yet Available
Wakefield MDC,E08000036,30/09/2015,BUSINESS,A,Net (Surplus) / Deficit of Trading Operations,PLUMB CENTER,Building Materials,Revenue,160752,261,09/09/2015,-0.36,Nil,HEATING/PLUMBING/AIR CONDITIONING CONTRACTORS,GPC,Not Yet Available
Wakefield MDC,E08000036,30/09/2015,BUSINESS,A,Net (Surplus) / Deficit of Trading Operations,PLUMB CENTER,Building Materials,Revenue,160752,259,09/09/2015,-0.31,Nil,HEATING/PLUMBING/AIR CONDITIONING CONTRACTORS,GPC,Not Yet Available
Wakefield MDC,E08000036,30/09/2015,BUSINESS,A,Net (Surplus) / Deficit of Trading Operations,PLUMB CENTER,Building Materials,Revenue,160752,260,09/09/2015,-0.30,Nil,HEATING/PLUMBING/AIR CONDITIONING CONTRACTORS,GPC,Not Yet Available
Wakefield MDC,E08000036,30/09/2015,BUSINESS,A,Net (Surplus) / Deficit of Trading Operations,PLUMB CENTER,Building Materials,Revenue,160759,673,23/09/2015,20.17,Nil,HEATING/PLUMBING/AIR CONDITIONING CONTRACTORS,GPC,Not Yet Available
Wakefield MDC,E08000036,30/09/2015,BUSINESS,A,Net (Surplus) / Deficit of Trading Operations,PLUMB CENTER,Building Materials,Revenue,160756,34,16/09/2015,28.72,Nil,HEATING/PLUMBING/AIR CONDITIONING CONTRACTORS,GPC,Not Yet Available
Wakefield MDC,E08000036,30/09/2015,BUSINESS,A,Net (Surplus) / Deficit of Trading Operations,PLUMB CENTER,Building Materials,Revenue,160752,262,09/09/2015,38.11,Nil,HEATING/PLUMBING/AIR CONDITIONING CONTRACTORS,GPC,Not Yet Available
Wakefield MDC,E08000036,30/09/2015,BUSINESS,A,Net (Surplus) / Deficit of Trading Operations,PLUMB CENTER,Building Materials,Revenue,160752,274,09/09/2015,-1.94,Nil,HEATING/PLUMBING/AIR CONDITIONING CONTRACTORS,GPC,Not Yet Available
Wakefield MDC,E08000036,30/09/2015,BUSINESS,A,Net (Surplus) / Deficit of Trading Operations,PLUMB CENTER,Building Materials,Revenue,160752,273,09/09/2015,-1.30,Nil,HEATING/PLUMBING/AIR CONDITIONING CONTRACTORS,GPC,Not Yet Available
Wakefield MDC,E08000036,30/09/2015,BUSINESS,A,Net (Surplus) / Deficit of Trading Operations,PLUMB CENTER,Building Materials,Revenue,160752,272,09/09/2015,-0.61,Nil,HEATING/PLUMBING/AIR CONDITIONING CONTRACTORS,GPC,Not Yet Available
Wakefield MDC,E08000036,30/09/2015,BUSINESS,A,Net (Surplus) / Deficit of Trading Operations,PLUMB CENTER,Building Materials,Revenue,160744,4472,16/07/2015,2.29,Nil,HEATING/PLUMBING/AIR CONDITIONING CONTRACTORS,GPC,Not Yet Available
Wakefield MDC,E08000036,30/09/2015,BUSINESS,A,Net (Surplus) / Deficit of Trading Operations,PLUMB CENTER,Building Materials,Revenue,160744,4434,16/07/2015,9.94,Nil,HEATING/PLUMBING/AIR CONDITIONING CONTRACTORS,GPC,Not Yet Available
Wakefield MDC,E08000036,30/09/2015,BUSINESS,A,Net (Surplus) / Deficit of Trading Operations,PLUMB CENTER,Building Materials,Revenue,160752,275,09/09/2015,23.09,Nil,HEATING/PLUMBING/AIR CONDITIONING CONTRACTORS,GPC,Not Yet Available
Wakefield MDC,E08000036,30/09/2015,BUSINESS,A,Net (Surplus) / Deficit of Trading Operations,PLUMB CENTER,Building Materials,Revenue,160759,467,23/09/2015,27.81,Nil,HEATING/PLUMBING/AIR CONDITIONING CONTRACTORS,GPC,Not Yet Available
Wakefield MDC,E08000036,30/09/2015,BUSINESS,A,Net (Surplus) / Deficit of Trading Operations,PLUMB CENTER,Building Materials,Revenue,160752,305,09/09/2015,111.21,Nil,HEATING/PLUMBING/AIR CONDITIONING CONTRACTORS,GPC,Not Yet Available
Wakefield MDC,E08000036,30/09/2015,BUSINESS,A,Net (Surplus) / Deficit of Trading Operations,PLUMB WORLD,Building Materials,Revenue,160766,796,02/10/2015,149.38,Nil,BUILDING MATERIALS LUMBER STORES,GPC,Not Yet Available
Wakefield MDC,E08000036,30/09/2015,BUSINESS,A,Net (Surplus) / Deficit of Trading Operations,PLUMBING TRADE SUPPLIES,Building Materials,Revenue,160766,860,02/10/2015,29.42,Nil,PLUMBING AND HEATING EQUIPMENT,GPC,Not Yet Available
Wakefield MDC,E08000036,30/09/2015,BUSINESS,A,Net (Surplus) / Deficit of Trading Operations,RADPID TOOLS DIRECT,Building Materials,Revenue,160744,2003,16/07/2015,115.00,Nil,HARDWARE STORES,GPC,Not Yet Available
Wakefield MDC,E08000036,30/09/2015,BUSINESS,A,Net (Surplus) / Deficit of Trading Operations,REX CRYSTAL FIXINGS LTD,Building Materials,Revenue,160759,88,23/09/2015,158.76,Nil,ELECTRICAL PARTS AND EQUIPMENT,GPC,Not Yet Available
Wakefield MDC,E08000036,30/09/2015,BUSINESS,A,Net (Surplus) / Deficit of Trading Operations,RGB DIRECT,Building Materials,Revenue,160752,66,09/09/2015,495.82,Nil,ELECTRONIC SALES,GPC,Not Yet Available
Wakefield MDC,E08000036,30/09/2015,BUSINESS,A,Net (Surplus) / Deficit of Trading Operations,RGB DIRECT,Building Materials,Revenue,160746,1119,10/08/2015,495.82,Nil,ELECTRONIC SALES,GPC,Not Yet Available
Wakefield MDC,E08000036,30/09/2015,BUSINESS,A,Net (Surplus) / Deficit of Trading Operations,SAUNDERSON SECURITY,Building Materials,Revenue,160766,721,02/10/2015,19.91,Nil,DETECTVE/PROTECTVE AGNCY/SECURITY SRVS/ ARMOR CARS,GPC,Not Yet Available
Wakefield MDC,E08000036,30/09/2015,BUSINESS,A,Net (Surplus) / Deficit of Trading Operations,SCATTERGOOD  JOHNSON,Building Materials,Revenue,160744,1530,16/07/2015,27.66,Nil,ELECTRICAL PARTS AND EQUIPMENT,GPC,Not Yet Available
Wakefield MDC,E08000036,30/09/2015,BUSINESS,A,Net (Surplus) / Deficit of Trading Operations,SCATTERGOOD  JOHNSON,Building Materials,Revenue,160744,1553,16/07/2015,79.48,Nil,ELECTRICAL PARTS AND EQUIPMENT,GPC,Not Yet Available
Wakefield MDC,E08000036,30/09/2015,BUSINESS,A,Net (Surplus) / Deficit of Trading Operations,SCREWFIX,Building Materials,Revenue,160752,393,09/09/2015,3.32,Nil,BUILDING MATERIALS LUMBER STORES,GPC,Not Yet Available
Wakefield MDC,E08000036,30/09/2015,BUSINESS,A,Net (Surplus) / Deficit of Trading Operations,SCREWFIX,Building Materials,Revenue,160748,322,18/08/2015,3.32,Nil,LUMBER/BUILDING MATERIALS STORES,GPC,Not Yet Available
Wakefield MDC,E08000036,30/09/2015,BUSINESS,A,Net (Surplus) / Deficit of Trading Operations,SCREWFIX,Building Materials,Revenue,160754,398,11/09/2015,4.57,Nil,LUMBER/BUILDING MATERIALS STORES,GPC,Not Yet Available
Wakefield MDC,E08000036,30/09/2015,BUSINESS,A,Net (Surplus) / Deficit of Trading Operations,SCREWFIX,Building Materials,Revenue,160746,298,10/08/2015,4.62,Nil,LUMBER/BUILDING MATERIALS STORES,GPC,Not Yet Available
Wakefield MDC,E08000036,30/09/2015,BUSINESS,A,Net (Surplus) / Deficit of Trading Operations,SCREWFIX,Building Materials,Revenue,160748,63,18/08/2015,5.15,Nil,LUMBER/BUILDING MATERIALS STORES,GPC,Not Yet Available
Wakefield MDC,E08000036,30/09/2015,BUSINESS,A,Net (Surplus) / Deficit of Trading Operations,SCREWFIX,Building Materials,Revenue,160752,395,09/09/2015,5.24,Nil,BUILDING MATERIALS LUMBER STORES,GPC,Not Yet Available
Wakefield MDC,E08000036,30/09/2015,BUSINESS,A,Net (Surplus) / Deficit of Trading Operations,SCREWFIX,Building Materials,Revenue,160744,1752,16/07/2015,5.80,Nil,LUMBER/BUILDING MATERIALS STORES,GPC,Not Yet Available
Wakefield MDC,E08000036,30/09/2015,BUSINESS,A,Net (Surplus) / Deficit of Trading Operations,SCREWFIX,Building Materials,Revenue,160752,391,09/09/2015,6.64,Nil,BUILDING MATERIALS LUMBER STORES,GPC,Not Yet Available
Wakefield MDC,E08000036,30/09/2015,BUSINESS,A,Net (Surplus) / Deficit of Trading Operations,SCREWFIX,Building Materials,Revenue,160766,823,02/10/2015,8.74,Nil,BUILDING MATERIALS LUMBER STORES,GPC,Not Yet Available
Wakefield MDC,E08000036,30/09/2015,BUSINESS,A,Net (Surplus) / Deficit of Trading Operations,SCREWFIX,Building Materials,Revenue,160745,1155,29/07/2015,8.92,Nil,LUMBER/BUILDING MATERIALS STORES,GPC,Not Yet Available
Wakefield MDC,E08000036,30/09/2015,BUSINESS,A,Net (Surplus) / Deficit of Trading Operations,SCREWFIX,Building Materials,Revenue,160759,160,23/09/2015,11.66,Nil,BUILDING MATERIALS LUMBER STORES,GPC,Not Yet Available
Wakefield MDC,E08000036,30/09/2015,BUSINESS,A,Net (Surplus) / Deficit of Trading Operations,SCREWFIX,Building Materials,Revenue,160744,1822,16/07/2015,11.66,Nil,LUMBER/BUILDING MATERIALS STORES,GPC,Not Yet Available
Wakefield MDC,E08000036,30/09/2015,BUSINESS,A,Net (Surplus) / Deficit of Trading Operations,SCREWFIX,Building Materials,Revenue,160745,1915,29/07/2015,12.49,Nil,LUMBER/BUILDING MATERIALS STORES,GPC,Not Yet Available
Wakefield MDC,E08000036,30/09/2015,BUSINESS,A,Net (Surplus) / Deficit of Trading Operations,SCREWFIX,Building Materials,Revenue,160745,1157,29/07/2015,13.30,Nil,LUMBER/BUILDING MATERIALS STORES,GPC,Not Yet Available
Wakefield MDC,E08000036,30/09/2015,BUSINESS,A,Net (Surplus) / Deficit of Trading Operations,SCREWFIX,Building Materials,Revenue,160752,221,09/09/2015,13.32,Nil,BUILDING MATERIALS LUMBER STORES,GPC,Not Yet Available
Wakefield MDC,E08000036,30/09/2015,BUSINESS,A,Net (Surplus) / Deficit of Trading Operations,SCREWFIX,Building Materials,Revenue,160744,1824,16/07/2015,13.32,Nil,LUMBER/BUILDING MATERIALS STORES,GPC,Not Yet Available
Wakefield MDC,E08000036,30/09/2015,BUSINESS,A,Net (Surplus) / Deficit of Trading Operations,SCREWFIX,Building Materials,Revenue,160745,1168,29/07/2015,13.55,Nil,LUMBER/BUILDING MATERIALS STORES,GPC,Not Yet Available
Wakefield MDC,E08000036,30/09/2015,BUSINESS,A,Net (Surplus) / Deficit of Trading Operations,SCREWFIX,Building Materials,Revenue,160759,942,23/09/2015,14.27,Nil,BUILDING MATERIALS LUMBER STORES,GPC,Not Yet Available
Wakefield MDC,E08000036,30/09/2015,BUSINESS,A,Net (Surplus) / Deficit of Trading Operations,SCREWFIX,Building Materials,Revenue,160759,461,23/09/2015,14.99,Nil,BUILDING MATERIALS LUMBER STORES,GPC,Not Yet Available
Wakefield MDC,E08000036,30/09/2015,BUSINESS,A,Net (Surplus) / Deficit of Trading Operations,SCREWFIX,Building Materials,Revenue,160759,430,23/09/2015,16.66,Nil,BUILDING MATERIALS LUMBER STORES,GPC,Not Yet Available
Wakefield MDC,E08000036,30/09/2015,BUSINESS,A,Net (Surplus) / Deficit of Trading Operations,SCREWFIX,Building Materials,Revenue,160752,231,09/09/2015,18.11,Nil,BUILDING MATERIALS LUMBER STORES,GPC,Not Yet Available
Wakefield MDC,E08000036,30/09/2015,BUSINESS,A,Net (Surplus) / Deficit of Trading Operations,SCREWFIX,Building Materials,Revenue,160752,389,09/09/2015,19.98,Nil,BUILDING MATERIALS LUMBER STORES,GPC,Not Yet Available
Wakefield MDC,E08000036,30/09/2015,BUSINESS,A,Net (Surplus) / Deficit of Trading Operations,SCREWFIX,Building Materials,Revenue,160745,1902,29/07/2015,20.34,Nil,LUMBER/BUILDING MATERIALS STORES,GPC,Not Yet Available
Wakefield MDC,E08000036,30/09/2015,BUSINESS,A,Net (Surplus) / Deficit of Trading Operations,SCREWFIX,Building Materials,Revenue,160746,854,10/08/2015,28.32,Nil,LUMBER/BUILDING MATERIALS STORES,GPC,Not Yet Available
Wakefield MDC,E08000036,30/09/2015,BUSINESS,A,Net (Surplus) / Deficit of Trading Operations,SCREWFIX,Building Materials,Revenue,160745,2203,29/07/2015,31.82,Nil,LUMBER/BUILDING MATERIALS STORES,GPC,Not Yet Available
Wakefield MDC,E08000036,30/09/2015,BUSINESS,A,Net (Surplus) / Deficit of Trading Operations,SCREWFIX,Building Materials,Revenue,160759,745,23/09/2015,45.92,Nil,BUILDING MATERIALS LUMBER STORES,GPC,Not Yet Available
Wakefield MDC,E08000036,30/09/2015,BUSINESS,A,Net (Surplus) / Deficit of Trading Operations,SCREWFIX,Building Materials,Revenue,160745,228,29/07/2015,49.54,Nil,LUMBER/BUILDING MATERIALS STORES,GPC,Not Yet Available
Wakefield MDC,E08000036,30/09/2015,BUSINESS,A,Net (Surplus) / Deficit of Trading Operations,SCREWFIX,Building Materials,Revenue,160752,98,09/09/2015,71.21,Nil,BUILDING MATERIALS LUMBER STORES,GPC,Not Yet Available
Wakefield MDC,E08000036,30/09/2015,BUSINESS,A,Net (Surplus) / Deficit of Trading Operations,SCREWFIX,Building Materials,Revenue,160759,824,23/09/2015,3.32,Nil,BUILDING MATERIALS LUMBER STORES,GPC,Not Yet Available
Wakefield MDC,E08000036,30/09/2015,BUSINESS,A,Net (Surplus) / Deficit of Trading Operations,SCREWFIX,Building Materials,Revenue,160752,342,09/09/2015,2.49,Nil,BUILDING MATERIALS LUMBER STORES,GPC,Not Yet Available
Wakefield MDC,E08000036,30/09/2015,BUSINESS,A,Net (Surplus) / Deficit of Trading Operations,SCREWFIX,Building Materials,Revenue,160752,248,09/09/2015,7.91,Nil,BUILDING MATERIALS LUMBER STORES,GPC,Not Yet Available
Wakefield MDC,E08000036,30/09/2015,BUSINESS,A,Net (Surplus) / Deficit of Trading Operations,SCREWFIX,Building Materials,Revenue,160752,192,09/09/2015,9.16,Nil,BUILDING MATERIALS LUMBER STORES,GPC,Not Yet Available
Wakefield MDC,E08000036,30/09/2015,BUSINESS,A,Net (Surplus) / Deficit of Trading Operations,SCREWFIX,Building Materials,Revenue,160752,202,09/09/2015,13.32,Nil,BUILDING MATERIALS LUMBER STORES,GPC,Not Yet Available
Wakefield MDC,E08000036,30/09/2015,BUSINESS,A,Net (Surplus) / Deficit of Trading Operations,SCREWFIX,Building Materials,Revenue,160752,253,09/09/2015,36.39,Nil,BUILDING MATERIALS LUMBER STORES,GPC,Not Yet Available
Wakefield MDC,E08000036,30/09/2015,BUSINESS,A,Net (Surplus) / Deficit of Trading Operations,SCREWFIX,Building Materials,Revenue,160759,852,23/09/2015,9.97,Nil,BUILDING MATERIALS LUMBER STORES,GPC,Not Yet Available
Wakefield MDC,E08000036,30/09/2015,BUSINESS,A,Net (Surplus) / Deficit of Trading Operations,SCREWFIX,Building Materials,Revenue,160744,1844,16/07/2015,16.28,Nil,LUMBER/BUILDING MATERIALS STORES,GPC,Not Yet Available
Wakefield MDC,E08000036,30/09/2015,BUSINESS,A,Net (Surplus) / Deficit of Trading Operations,SHOWER SEAL,Building Materials,Revenue,160752,181,09/09/2015,20.33,Nil,MISCELLANEOUS HOUSE FURNISHING SPECIALTY SHOPS,GPC,Not Yet Available
Wakefield MDC,E08000036,30/09/2015,BUSINESS,A,Net (Surplus) / Deficit of Trading Operations,SIG,Building Materials,Revenue,160759,678,23/09/2015,220.23,Nil,INDUSTRIAL SUPPLIES NOT ELSEWHERE CLASSIFIED,GPC,Not Yet Available
Wakefield MDC,E08000036,30/09/2015,BUSINESS,A,Net (Surplus) / Deficit of Trading Operations,SIG,Building Materials,Revenue,160752,386,09/09/2015,418.25,Nil,INDUSTRIAL SUPPLIES NOT ELSEWHERE CLASSIFIED,GPC,Not Yet Available
Wakefield MDC,E08000036,30/09/2015,BUSINESS,A,Net (Surplus) / Deficit of Trading Operations,SIG,Building Materials,Revenue,160752,366,09/09/2015,829.44,Nil,INDUSTRIAL SUPPLIES NOT ELSEWHERE CLASSIFIED,GPC,Not Yet Available
Wakefield MDC,E08000036,30/09/2015,BUSINESS,A,Net (Surplus) / Deficit of Trading Operations,SIG,Building Materials,Revenue,160746,21,10/08/2015,1182.90,Nil,INDUSTRIAL SUPPLIES NOT ELSEWHERE CLASSIFIED,GPC,Not Yet Available
Wakefield MDC,E08000036,30/09/2015,BUSINESS,A,Net (Surplus) / Deficit of Trading Operations,SIG,Building Materials,Revenue,160744,1998,16/07/2015,2012.16,Nil,INDUSTRIAL SUPPLIES NOT ELSEWHERE CLASSIFIED,GPC,Not Yet Available
Wakefield MDC,E08000036,30/09/2015,BUSINESS,A,Net (Surplus) / Deficit of Trading Operations,SLINGSBY,Building Materials,Revenue,160744,2228,16/07/2015,359.00,Nil,INDUSTRIAL SUPPLIES NOT ELSEWHERE CLASSIFIED,GPC,Not Yet Available
Wakefield MDC,E08000036,30/09/2015,BUSINESS,A,Net (Surplus) / Deficit of Trading Operations,SPORTCLOX,Building Materials,Revenue,160748,576,18/08/2015,49.00,Nil,JEWELLERY/WATCH/CLOCK/SILVERWARE STORES,GPC,Not Yet Available
Wakefield MDC,E08000036,30/09/2015,BUSINESS,A,Net (Surplus) / Deficit of Trading Operations,STRONGBOYLT,Building Materials,Revenue,160746,43,10/08/2015,137.50,Nil,INDUSTRIAL SUPPLIES NOT ELSEWHERE CLASSIFIED,GPC,Not Yet Available
Wakefield MDC,E08000036,30/09/2015,BUSINESS,A,Net (Surplus) / Deficit of Trading Operations,TAPBOXES UK,Building Materials,Revenue,160744,3327,16/07/2015,521.59,Nil,HOME SUPPLY WAREHOUSE STORES,GPC,Not Yet Available
Wakefield MDC,E08000036,30/09/2015,BUSINESS,A,Net (Surplus) / Deficit of Trading Operations,THE SAFETY CENTRE,Building Materials,Revenue,160744,2337,16/07/2015,17.80,Nil,GLASS/PAINT/WALLPAPER STORES,GPC,Not Yet Available
Wakefield MDC,E08000036,30/09/2015,BUSINESS,A,Net (Surplus) / Deficit of Trading Operations,TILE INN,Building Materials,Revenue,160747,1117,10/08/2015,53.75,Nil,GLASS/PAINT/WALLPAPER STORES,GPC,Not Yet Available
Wakefield MDC,E08000036,30/09/2015,BUSINESS,A,Net (Surplus) / Deficit of Trading Operations,TILE INN,Building Materials,Revenue,160759,883,23/09/2015,33.82,Nil,GLASS/PAINT/WALLPAPER STORES,GPC,Not Yet Available
Wakefield MDC,E08000036,30/09/2015,BUSINESS,A,Net (Surplus) / Deficit of Trading Operations,TIMBER WORLD,Building Materials,Revenue,160745,189,29/07/2015,8.49,Nil,LUMBER/BUILDING MATERIALS STORES,GPC,Not Yet Available
Wakefield MDC,E08000036,30/09/2015,BUSINESS,A,Net (Surplus) / Deficit of Trading Operations,TIMBER WORLD,Building Materials,Revenue,160745,178,29/07/2015,81.86,Nil,LUMBER/BUILDING MATERIALS STORES,GPC,Not Yet Available
Wakefield MDC,E08000036,30/09/2015,BUSINESS,A,Net (Surplus) / Deficit of Trading Operations,TIMBER WORLD,Building Materials,Revenue,160744,4495,16/07/2015,105.11,Nil,LUMBER/BUILDING MATERIALS STORES,GPC,Not Yet Available
Wakefield MDC,E08000036,30/09/2015,BUSINESS,A,Net (Surplus) / Deficit of Trading Operations,TIMBER WORLD,Building Materials,Revenue,160746,830,10/08/2015,119.86,Nil,LUMBER/BUILDING MATERIALS STORES,GPC,Not Yet Available
Wakefield MDC,E08000036,30/09/2015,BUSINESS,A,Net (Surplus) / Deficit of Trading Operations,TIMBER WORLD,Building Materials,Revenue,160745,176,29/07/2015,169.75,Nil,LUMBER/BUILDING MATERIALS STORES,GPC,Not Yet Available
Wakefield MDC,E08000036,30/09/2015,BUSINESS,A,Net (Surplus) / Deficit of Trading Operations,TIMBER WORLD,Building Materials,Revenue,160746,825,10/08/2015,37.80,Nil,LUMBER/BUILDING MATERIALS STORES,GPC,Not Yet Available
Wakefield MDC,E08000036,30/09/2015,BUSINESS,A,Net (Surplus) / Deficit of Trading Operations,TOOL STATION LTD,Building Materials,Revenue,160746,165,10/08/2015,22.18,Nil,HARDWARE STORES,GPC,Not Yet Available
Wakefield MDC,E08000036,30/09/2015,BUSINESS,A,Net (Surplus) / Deficit of Trading Operations,TOOL STATION LTD,Building Materials,Revenue,160759,925,23/09/2015,0.69,Nil,HARDWARE STORES,GPC,Not Yet Available
Wakefield MDC,E08000036,30/09/2015,BUSINESS,A,Net (Surplus) / Deficit of Trading Operations,TOOL STATION LTD,Building Materials,Revenue,160744,4598,16/07/2015,33.20,Nil,HARDWARE STORES,GPC,Not Yet Available
Wakefield MDC,E08000036,30/09/2015,BUSINESS,A,Net (Surplus) / Deficit of Trading Operations,TOOL STATION LTD,Building Materials,Revenue,160759,435,23/09/2015,4.87,Nil,HARDWARE STORES,GPC,Not Yet Available
Wakefield MDC,E08000036,30/09/2015,BUSINESS,A,Net (Surplus) / Deficit of Trading Operations,TOOL STATION LTD,Building Materials,Revenue,160752,89,09/09/2015,28.42,Nil,HARDWARE STORES,GPC,Not Yet Available
Wakefield MDC,E08000036,30/09/2015,BUSINESS,A,Net (Surplus) / Deficit of Trading Operations,TOOL VENTURE,Building Materials,Revenue,160752,175,09/09/2015,59.50,Nil,GLASS/PAINT/WALLPAPER STORES,GPC,Not Yet Available
Wakefield MDC,E08000036,30/09/2015,BUSINESS,A,Net (Surplus) / Deficit of Trading Operations,TOOLED-UP,Building Materials,Revenue,160746,1152,10/08/2015,16.58,Nil,HARDWARE STORES,GPC,Not Yet Available
Wakefield MDC,E08000036,30/09/2015,BUSINESS,A,Net (Surplus) / Deficit of Trading Operations,TP PONTEFRACT,Building Materials,Revenue,160745,2152,29/07/2015,3.53,Nil,LUMBER/BUILDING MATERIALS STORES,GPC,Not Yet Available
Wakefield MDC,E08000036,30/09/2015,BUSINESS,A,Net (Surplus) / Deficit of Trading Operations,TP PONTEFRACT,Building Materials,Revenue,160744,4781,16/07/2015,11.97,Nil,LUMBER/BUILDING MATERIALS STORES,GPC,Not Yet Available
Wakefield MDC,E08000036,30/09/2015,BUSINESS,A,Net (Surplus) / Deficit of Trading Operations,TP PONTEFRACT,Building Materials,Revenue,160745,2141,29/07/2015,12.67,Nil,LUMBER/BUILDING MATERIALS STORES,GPC,Not Yet Available
Wakefield MDC,E08000036,30/09/2015,BUSINESS,A,Net (Surplus) / Deficit of Trading Operations,TP PONTEFRACT,Building Materials,Revenue,160744,4779,16/07/2015,26.52,Nil,LUMBER/BUILDING MATERIALS STORES,GPC,Not Yet Available
Wakefield MDC,E08000036,30/09/2015,BUSINESS,A,Net (Surplus) / Deficit of Trading Operations,TP PONTEFRACT,Building Materials,Revenue,160745,2134,29/07/2015,35.22,Nil,LUMBER/BUILDING MATERIALS STORES,GPC,Not Yet Available
Wakefield MDC,E08000036,30/09/2015,BUSINESS,A,Net (Surplus) / Deficit of Trading Operations,TP PONTEFRACT,Building Materials,Revenue,160746,1050,10/08/2015,38.78,Nil,LUMBER/BUILDING MATERIALS STORES,GPC,Not Yet Available
Wakefield MDC,E08000036,30/09/2015,BUSINESS,A,Net (Surplus) / Deficit of Trading Operations,TP PONTEFRACT,Building Materials,Revenue,160745,2136,29/07/2015,46.67,Nil,LUMBER/BUILDING MATERIALS STORES,GPC,Not Yet Available
Wakefield MDC,E08000036,30/09/2015,BUSINESS,A,Net (Surplus) / Deficit of Trading Operations,TP PONTEFRACT,Building Materials,Revenue,160744,4900,16/07/2015,10.90,Nil,LUMBER/BUILDING MATERIALS STORES,GPC,Not Yet Available
Wakefield MDC,E08000036,30/09/2015,BUSINESS,A,Net (Surplus) / Deficit of Trading Operations,TP PONTEFRACT,Building Materials,Revenue,160744,4854,16/07/2015,20.41,Nil,LUMBER/BUILDING MATERIALS STORES,GPC,Not Yet Available
Wakefield MDC,E08000036,30/09/2015,BUSINESS,A,Net (Surplus) / Deficit of Trading Operations,TP PONTEFRACT,Building Materials,Revenue,160744,4898,16/07/2015,20.41,Nil,LUMBER/BUILDING MATERIALS STORES,GPC,Not Yet Available
Wakefield MDC,E08000036,30/09/2015,BUSINESS,A,Net (Surplus) / Deficit of Trading Operations,TP WAKEFIELD,Building Materials,Revenue,160745,1179,29/07/2015,4.79,Nil,LUMBER/BUILDING MATERIALS STORES,GPC,Not Yet Available
Wakefield MDC,E08000036,30/09/2015,BUSINESS,A,Net (Surplus) / Deficit of Trading Operations,TP WAKEFIELD,Building Materials,Revenue,160744,4911,16/07/2015,20.03,Nil,LUMBER/BUILDING MATERIALS STORES,GPC,Not Yet Available
Wakefield MDC,E08000036,30/09/2015,BUSINESS,A,Net (Surplus) / Deficit of Trading Operations,TRADE COUNTER,Building Materials,Revenue,160752,168,09/09/2015,61.17,Nil,BUILDING MATERIALS LUMBER STORES,GPC,Not Yet Available
Wakefield MDC,E08000036,30/09/2015,BUSINESS,A,Net (Surplus) / Deficit of Trading Operations,TRADERS WAREHOUSE,Building Materials,Revenue,160766,464,02/10/2015,360.12,Nil,MISCELLANEOUS AND SPECIALTY RETAIL STORES,GPC,Not Yet Available
Wakefield MDC,E08000036,30/09/2015,BUSINESS,A,Net (Surplus) / Deficit of Trading Operations,TRAVIS PERKINS,Building Materials,Revenue,160752,132,09/09/2015,1.98,Nil,BUILDING MATERIALS LUMBER STORES,GPC,Not Yet Available
Wakefield MDC,E08000036,30/09/2015,BUSINESS,A,Net (Surplus) / Deficit of Trading Operations,TRAVIS PERKINS,Building Materials,Revenue,160759,431,23/09/2015,6.98,Nil,BUILDING MATERIALS LUMBER STORES,GPC,Not Yet Available
Wakefield MDC,E08000036,30/09/2015,BUSINESS,A,Net (Surplus) / Deficit of Trading Operations,TRAVIS PERKINS,Building Materials,Revenue,160752,387,09/09/2015,20.85,Nil,BUILDING MATERIALS LUMBER STORES,GPC,Not Yet Available
Wakefield MDC,E08000036,30/09/2015,BUSINESS,A,Net (Surplus) / Deficit of Trading Operations,TRAVIS PERKINS,Building Materials,Revenue,160752,74,09/09/2015,71.07,Nil,BUILDING MATERIALS LUMBER STORES,GPC,Not Yet Available
Wakefield MDC,E08000036,30/09/2015,BUSINESS,A,Net (Surplus) / Deficit of Trading Operations,TRAVIS PERKINS,Building Materials,Revenue,160759,506,23/09/2015,88.40,Nil,BUILDING MATERIALS LUMBER STORES,GPC,Not Yet Available
Wakefield MDC,E08000036,30/09/2015,BUSINESS,A,Net (Surplus) / Deficit of Trading Operations,TRAVIS PERKINS,Building Materials,Revenue,160752,302,09/09/2015,77.80,Nil,BUILDING MATERIALS LUMBER STORES,GPC,Not Yet Available
Wakefield MDC,E08000036,30/09/2015,BUSINESS,A,Net (Surplus) / Deficit of Trading Operations,TRAVIS PERKINS,Building Materials,Revenue,160759,880,23/09/2015,17.19,Nil,BUILDING MATERIALS LUMBER STORES,GPC,Not Yet Available
Wakefield MDC,E08000036,30/09/2015,BUSINESS,A,Net (Surplus) / Deficit of Trading Operations,UK PLUMBING,Building Materials,Revenue,160744,2519,16/07/2015,46.67,Nil,PLUMBING AND HEATING EQUIPMENT,GPC,Not Yet Available
Wakefield MDC,E08000036,30/09/2015,BUSINESS,A,Net (Surplus) / Deficit of Trading Operations,VICTORIAN PLUMBING,Building Materials,Revenue,160766,792,02/10/2015,375.08,Nil,MISCELLANEOUS HOUSE FURNISHING SPECIALTY SHOPS,GPC,Not Yet Available
Wakefield MDC,E08000036,30/09/2015,BUSINESS,A,Net (Surplus) / Deficit of Trading Operations,WAKEFIELD BUILDBASE,Building Materials,Revenue,160746,844,10/08/2015,2.40,Nil,LUMBER/BUILDING MATERIALS STORES,GPC,Not Yet Available
Wakefield MDC,E08000036,30/09/2015,BUSINESS,A,Net (Surplus) / Deficit of Trading Operations,WAKEFIELD BUILDBASE,Building Materials,Revenue,160746,1125,10/08/2015,5.26,Nil,LUMBER/BUILDING MATERIALS STORES,GPC,Not Yet Available
Wakefield MDC,E08000036,30/09/2015,BUSINESS,A,Net (Surplus) / Deficit of Trading Operations,WAKEFIELD BUILDBASE,Building Materials,Revenue,160744,2664,16/07/2015,20.70,Nil,LUMBER/BUILDING MATERIALS STORES,GPC,Not Yet Available
Wakefield MDC,E08000036,30/09/2015,BUSINESS,A,Net (Surplus) / Deficit of Trading Operations,WAKEFIELD BUILDBASE,Building Materials,Revenue,160745,2181,29/07/2015,36.99,Nil,LUMBER/BUILDING MATERIALS STORES,GPC,Not Yet Available
Wakefield MDC,E08000036,30/09/2015,BUSINESS,A,Net (Surplus) / Deficit of Trading Operations,WAKEFIELD BUILDBASE,Building Materials,Revenue,160744,2662,16/07/2015,41.65,Nil,LUMBER/BUILDING MATERIALS STORES,GPC,Not Yet Available
Wakefield MDC,E08000036,30/09/2015,BUSINESS,A,Net (Surplus) / Deficit of Trading Operations,WAKEFIELD BUILDBASE,Building Materials,Revenue,160744,2713,16/07/2015,48.34,Nil,LUMBER/BUILDING MATERIALS STORES,GPC,Not Yet Available
Wakefield MDC,E08000036,30/09/2015,BUSINESS,A,Net (Surplus) / Deficit of Trading Operations,WAKEFIELD BUILDBASE,Building Materials,Revenue,160746,578,10/08/2015,8.95,Nil,LUMBER/BUILDING MATERIALS STORES,GPC,Not Yet Available
Wakefield MDC,E08000036,30/09/2015,BUSINESS,A,Net (Surplus) / Deficit of Trading Operations,WAKEFIELD BUILDBASE,Building Materials,Revenue,160744,2690,16/07/2015,13.56,Nil,LUMBER/BUILDING MATERIALS STORES,GPC,Not Yet Available
Wakefield MDC,E08000036,30/09/2015,BUSINESS,A,Net (Surplus) / Deficit of Trading Operations,WAKEFIELD FLOORCARE,Building Materials,Revenue,160745,2224,29/07/2015,29.50,Nil,HOUSEHOLD APPLIANCE STORES,GPC,Not Yet Available
Wakefield MDC,E08000036,30/09/2015,BUSINESS,A,Net (Surplus) / Deficit of Trading Operations,WAKEFIELD TIMBER,Building Materials,Revenue,160752,180,09/09/2015,-23.74,Nil,BUILDING MATERIALS LUMBER STORES,GPC,Not Yet Available
Wakefield MDC,E08000036,30/09/2015,BUSINESS,A,Net (Surplus) / Deficit of Trading Operations,WAKEFIELD TIMBER,Building Materials,Revenue,160752,183,09/09/2015,32.00,Nil,BUILDING MATERIALS LUMBER STORES,GPC,Not Yet Available
Wakefield MDC,E08000036,30/09/2015,BUSINESS,A,Net (Surplus) / Deficit of Trading Operations,WASHWARE ESSENTIALS,Building Materials,Revenue,160754,28,11/09/2015,341.00,Nil,DISCOUNT STORES,GPC,Not Yet Available
Wakefield MDC,E08000036,30/09/2015,BUSINESS,A,Net (Surplus) / Deficit of Trading Operations,WICKES,Building Materials,Revenue,160747,1124,10/08/2015,2.49,Nil,BUILDING MATERIALS LUMBER STORES,GPC,Not Yet Available
Wakefield MDC,E08000036,30/09/2015,BUSINESS,A,Net (Surplus) / Deficit of Trading Operations,WICKES,Building Materials,Revenue,160747,46,10/08/2015,9.48,Nil,BUILDING MATERIALS LUMBER STORES,GPC,Not Yet Available
Wakefield MDC,E08000036,30/09/2015,BUSINESS,A,Net (Surplus) / Deficit of Trading Operations,WICKES,Building Materials,Revenue,160766,821,02/10/2015,24.47,Nil,HOME SUPPLY WAREHOUSE STORES,GPC,Not Yet Available
Wakefield MDC,E08000036,30/09/2015,BUSINESS,A,Net (Surplus) / Deficit of Trading Operations,WICKES,Building Materials,Revenue,160752,428,09/09/2015,5.82,Nil,HOME SUPPLY WAREHOUSE STORES,GPC,Not Yet Available
Wakefield MDC,E08000036,30/09/2015,BUSINESS,A,Net (Surplus) / Deficit of Trading Operations,WICKES,Building Materials,Revenue,160746,723,10/08/2015,39.95,Nil,HOME SUPPLY WAREHOUSE STORES,GPC,Not Yet Available
Wakefield MDC,E08000036,30/09/2015,BUSINESS,A,Net (Surplus) / Deficit of Trading Operations,WICKES,Building Materials,Revenue,160757,18,17/09/2015,24.07,Nil,BUILDING MATERIALS LUMBER STORES,GPC,Not Yet Available
Wakefield MDC,E08000036,30/09/2015,BUSINESS,A,Net (Surplus) / Deficit of Trading Operations,WILKO RETAIL LIMITED,Building Materials,Revenue,160744,3329,16/07/2015,5.67,Nil,HOUSEHOLD APPLIANCE STORES,GPC,Not Yet Available
Wakefield MDC,E08000036,30/09/2015,BUSINESS,A,Net (Surplus) / Deficit of Trading Operations,WILLROSE ELECTRICAL,Building Materials,Revenue,160746,872,10/08/2015,33.29,Nil,INDUSTRIAL SUPPLIES NOT ELSEWHERE CLASSIFIED,GPC,Not Yet Available
Wakefield MDC,E08000036,30/09/2015,BUSINESS,A,Net (Surplus) / Deficit of Trading Operations,YATES CONCRETE PRODUCT,Building Materials,Revenue,160744,2643,16/07/2015,8.04,Nil,LUMBER/BUILDING MATERIALS STORES,GPC,Not Yet Available
Wakefield MDC,E08000036,30/09/2015,BUSINESS,A,Net (Surplus) / Deficit of Trading Operations,YATES CONCRETE PRODUCT,Building Materials,Revenue,160744,2641,16/07/2015,250.48,Nil,LUMBER/BUILDING MATERIALS STORES,GPC,Not Yet Available
Wakefield MDC,E08000036,30/09/2015,REGENCULT,M,Environmental and Regulatory Services,B & Q,Bulbs / Plants / Trees,Revenue,160763,92,28/09/2015,3.33,Nil,LUMBER/BUILDING MATERIALS STORES,GPC,Not Yet Available
Wakefield MDC,E08000036,30/09/2015,REGENCULT,M,Environmental and Regulatory Services,B & Q,Bulbs / Plants / Trees,Revenue,160763,90,28/09/2015,3.33,Nil,LUMBER/BUILDING MATERIALS STORES,GPC,Not Yet Available
Wakefield MDC,E08000036,30/09/2015,REGENCULT,M,Environmental and Regulatory Services,B & Q,Bulbs / Plants / Trees,Revenue,160763,86,28/09/2015,3.34,Nil,LUMBER/BUILDING MATERIALS STORES,GPC,Not Yet Available
Wakefield MDC,E08000036,30/09/2015,REGENCULT,M,Environmental and Regulatory Services,B & Q,Bulbs / Plants / Trees,Revenue,160763,84,28/09/2015,4.18,Nil,LUMBER/BUILDING MATERIALS STORES,GPC,Not Yet Available
Wakefield MDC,E08000036,30/09/2015,REGENCULT,M,Environmental and Regulatory Services,B & Q,Bulbs / Plants / Trees,Revenue,160763,82,28/09/2015,4.18,Nil,LUMBER/BUILDING MATERIALS STORES,GPC,Not Yet Available
Wakefield MDC,E08000036,30/09/2015,REGENCULT,M,Environmental and Regulatory Services,B & Q,Bulbs / Plants / Trees,Revenue,160763,88,28/09/2015,5.23,Nil,LUMBER/BUILDING MATERIALS STORES,GPC,Not Yet Available
Wakefield MDC,E08000036,30/09/2015,BUSINESS,8,Corporate and Democratic Core,ALDI,Civic Gifts / Hospitality,Revenue,160744,3798,16/07/2015,121.64,Nil,GROCERY STORES/SUPERMARKETS,GPC,Not Yet Available
Wakefield MDC,E08000036,30/09/2015,BUSINESS,8,Corporate and Democratic Core,AMAZON,Civic Gifts / Hospitality,Revenue,160744,975,16/07/2015,6.94,Nil,MISCELLANEOUS AND SPECIALTY RETAIL STORES,GPC,Not Yet Available
Wakefield MDC,E08000036,30/09/2015,BUSINESS,8,Corporate and Democratic Core,CAROLINES FLOWER SHOP,Civic Gifts / Hospitality,Revenue,160744,3475,16/07/2015,715.00,Nil,FLORISTS,GPC,Not Yet Available
Wakefield MDC,E08000036,30/09/2015,BUSINESS,8,Corporate and Democratic Core,CATHEDRAL,Civic Gifts / Hospitality,Revenue,160744,3845,16/07/2015,15.00,Nil,BOOK STORES,GPC,Not Yet Available
Wakefield MDC,E08000036,30/09/2015,BUSINESS,8,Corporate and Democratic Core,ELITE SPECIALIST,Civic Gifts / Hospitality,Revenue,160744,411,16/07/2015,16.50,Nil,LAUNDRY/CLEANING/GARMENT SERVICES,GPC,Not Yet Available
Wakefield MDC,E08000036,30/09/2015,BUSINESS,8,Corporate and Democratic Core,FLOWER BARN,Civic Gifts / Hospitality,Revenue,160744,984,16/07/2015,44.00,Nil,FLORISTS,GPC,Not Yet Available
Wakefield MDC,E08000036,30/09/2015,BUSINESS,8,Corporate and Democratic Core,GO OUTDOORS LTD,Civic Gifts / Hospitality,Revenue,160744,1949,16/07/2015,18.67,Nil,SPORTS/RIDING APPAREL STORES,GPC,Not Yet Available
Wakefield MDC,E08000036,30/09/2015,BUSINESS,8,Corporate and Democratic Core,HOWCRAFT INDUSTRIAL,Civic Gifts / Hospitality,Revenue,160744,3135,16/07/2015,40.36,Nil,SPORTING GOODS STORES,GPC,Not Yet Available
Wakefield MDC,E08000036,30/09/2015,BUSINESS,8,Corporate and Democratic Core,ICO,Civic Gifts / Hospitality,Revenue,160744,1140,16/07/2015,35.00,Nil,GOVERNMENT SERVICES-NOT ELSEWHERE CLASSIFIED,GPC,Not Yet Available
Wakefield MDC,E08000036,30/09/2015,BUSINESS,8,Corporate and Democratic Core,J W PLANT  CO LIMITED,Civic Gifts / Hospitality,Revenue,160750,1,01/09/2015,36.02,Nil,BUSINESS SERVICES-NOT ELSEWHERE CLASSIFIED,GPC,Not Yet Available
Wakefield MDC,E08000036,30/09/2015,BUSINESS,8,Corporate and Democratic Core,SAINSBURYS ,Civic Gifts / Hospitality,Revenue,160744,1193,16/07/2015,12.40,Nil,GROCERY STORES/SUPERMARKETS,GPC,Not Yet Available
Wakefield MDC,E08000036,30/09/2015,BUSINESS,8,Corporate and Democratic Core,SAINSBURYS ,Civic Gifts / Hospitality,Revenue,160744,1111,16/07/2015,17.80,Nil,GROCERY STORES/SUPERMARKETS,GPC,Not Yet Available
Wakefield MDC,E08000036,30/09/2015,BUSINESS,8,Corporate and Democratic Core,SAINSBURYS ,Civic Gifts / Hospitality,Revenue,160744,1110,16/07/2015,38.50,Nil,GROCERY STORES/SUPERMARKETS,GPC,Not Yet Available
Wakefield MDC,E08000036,30/09/2015,BUSINESS,8,Corporate and Democratic Core,UNITY WORKS LTD,Civic Gifts / Hospitality,Revenue,160744,483,16/07/2015,2813.00,Nil,BANDS ORCHESTRAS & MISC ENTRTNRS-NOT ELSWHR CLAS,GPC,Not Yet Available
Wakefield MDC,E08000036,30/09/2015,BUSINESS,8,Corporate and Democratic Core,W M MORRISONS,Civic Gifts / Hospitality,Revenue,160744,3715,16/07/2015,15.69,Nil,GROCERY STORES/SUPERMARKETS,GPC,Not Yet Available
Wakefield MDC,E08000036,30/09/2015,BUSINESS,8,Corporate and Democratic Core,WILSON  PALMER LTD,Civic Gifts / Hospitality,Revenue,160750,4,01/09/2015,30.00,Nil,FLORISTS,GPC,Not Yet Available
Wakefield MDC,E08000036,30/09/2015,BUSINESS,8,Corporate and Democratic Core,WILSON  PALMER LTD,Civic Gifts / Hospitality,Revenue,160744,3654,16/07/2015,35.00,Nil,FLORISTS,GPC,Not Yet Available
Wakefield MDC,E08000036,30/09/2015,BUSINESS,8,Corporate and Democratic Core,WILSON  PALMER LTD,Civic Gifts / Hospitality,Revenue,160750,5,01/09/2015,160.00,Nil,FLORISTS,GPC,Not Yet Available
Wakefield MDC,E08000036,30/09/2015,ADULTS,7,Adult Social Care,ALEXANDRA,Clothing,Revenue,160744,4520,16/07/2015,35.98,Nil,UNIFORMS AND COMMERCIAL CLOTHING,GPC,Not Yet Available
Wakefield MDC,E08000036,30/09/2015,ADULTS,7,Adult Social Care,MARKS & SPENCER,Clothing,Revenue,160757,39,17/09/2015,4.17,Nil,GROCERY STORES/SUPERMARKETS,GPC,Not Yet Available
Wakefield MDC,E08000036,30/09/2015,BUSINESS,A,Net (Surplus) / Deficit of Trading Operations,AMAZON,Clothing,Revenue,160744,1346,16/07/2015,18.59,Nil,MISCELLANEOUS AND SPECIALTY RETAIL STORES,GPC,Not Yet Available
Wakefield MDC,E08000036,30/09/2015,BUSINESS,A,Net (Surplus) / Deficit of Trading Operations,ARCO LTD,Clothing,Revenue,160746,1150,10/08/2015,441.03,Nil,UNIFORMS AND COMMERCIAL CLOTHING,GPC,Not Yet Available
Wakefield MDC,E08000036,30/09/2015,BUSINESS,A,Net (Surplus) / Deficit of Trading Operations,BEST IN THE COUNTRY,Clothing,Revenue,160746,1145,10/08/2015,15.80,Nil,MEN�S AND WOMEN�S CLOTHING STORES,GPC,Not Yet Available
Wakefield MDC,E08000036,30/09/2015,BUSINESS,8,Corporate and Democratic Core,BROWNS DRY CLEANERS LTD,Clothing,Revenue,160744,3083,16/07/2015,23.90,Nil,DRY CLEANERS,GPC,Not Yet Available
Wakefield MDC,E08000036,30/09/2015,BUSINESS,A,Net (Surplus) / Deficit of Trading Operations,DUNLOP SPORT,Clothing,Revenue,160746,53,10/08/2015,19.99,Nil,SPORTING GOODS STORES,GPC,Not Yet Available
Wakefield MDC,E08000036,30/09/2015,BUSINESS,A,Net (Surplus) / Deficit of Trading Operations,NISBETS,Clothing,Revenue,160746,733,10/08/2015,107.12,Nil,DIRECT MARKETING - CATALOG MERCHANT,GPC,Not Yet Available
Wakefield MDC,E08000036,30/09/2015,BUSINESS,A,Net (Surplus) / Deficit of Trading Operations,PRIMARK,Clothing,Revenue,160746,822,10/08/2015,8.33,Nil,FAMILY CLOTHING STORES,GPC,Not Yet Available
Wakefield MDC,E08000036,30/09/2015,BUSINESS,A,Net (Surplus) / Deficit of Trading Operations,TT CARPETS LTD,Clothing,Revenue,160744,4223,16/07/2015,32.99,Nil,FLOOR COVERING STORES,GPC,Not Yet Available
Wakefield MDC,E08000036,30/09/2015,CHILDYOU,4,Children's and Education Services,H&M,Clothing,Revenue,160748,411,18/08/2015,14.00,Nil,MEN�S AND WOMEN�S CLOTHING STORES,GPC,Not Yet Available
Wakefield MDC,E08000036,30/09/2015,CHILDYOU,4,Children's and Education Services,JD SPORTS,Clothing,Revenue,160748,360,18/08/2015,43.99,Nil,FAMILY CLOTHING STORES,GPC,Not Yet Available
Wakefield MDC,E08000036,30/09/2015,CHILDYOU,4,Children's and Education Services,JD SPORTS,Clothing,Revenue,160748,457,18/08/2015,55.00,Nil,SPORTING GOODS STORES,GPC,Not Yet Available
Wakefield MDC,E08000036,30/09/2015,CHILDYOU,4,Children's and Education Services,JD SPORTS,Clothing,Revenue,160744,327,16/07/2015,10.00,Nil,SPORTING GOODS STORES,GPC,Not Yet Available
Wakefield MDC,E08000036,30/09/2015,CHILDYOU,4,Children's and Education Services,KAMIKAZE,Clothing,Revenue,160744,628,16/07/2015,25.00,Nil,MEN/BOYS CLOTHING/ACC STORES,GPC,Not Yet Available
Wakefield MDC,E08000036,30/09/2015,CHILDYOU,4,Children's and Education Services,KAMIKAZE,Clothing,Revenue,160748,820,18/08/2015,39.99,Nil,MEN/BOYS CLOTHING/ACC STORES,GPC,Not Yet Available
Wakefield MDC,E08000036,30/09/2015,CHILDYOU,4,Children's and Education Services,KAMIKAZE,Clothing,Revenue,160748,819,18/08/2015,59.98,Nil,MEN/BOYS CLOTHING/ACC STORES,GPC,Not Yet Available
Wakefield MDC,E08000036,30/09/2015,CHILDYOU,4,Children's and Education Services,NEW LOOK 2020,Clothing,Revenue,160748,414,18/08/2015,16.00,Nil,WOMENS READY TO WEAR STORES,GPC,Not Yet Available
Wakefield MDC,E08000036,30/09/2015,CHILDYOU,4,Children's and Education Services,OFFICERS CLUB,Clothing,Revenue,160745,1815,29/07/2015,19.99,Nil,MEN/BOYS CLOTHING/ACC STORES,GPC,Not Yet Available
Wakefield MDC,E08000036,30/09/2015,CHILDYOU,4,Children's and Education Services,PRIMARK,Clothing,Revenue,160748,352,18/08/2015,16.00,Nil,FAMILY CLOTHING STORES,GPC,Not Yet Available
Wakefield MDC,E08000036,30/09/2015,CHILDYOU,4,Children's and Education Services,PRIMARK,Clothing,Revenue,160744,425,16/07/2015,24.00,Nil,FAMILY CLOTHING STORES,GPC,Not Yet Available
Wakefield MDC,E08000036,30/09/2015,CHILDYOU,4,Children's and Education Services,PRIMARK,Clothing,Revenue,160745,1075,29/07/2015,52.30,Nil,FAMILY CLOTHING STORES,GPC,Not Yet Available
Wakefield MDC,E08000036,30/09/2015,CHILDYOU,4,Children's and Education Services,PRIMARK,Clothing,Revenue,160745,376,29/07/2015,56.00,Nil,FAMILY CLOTHING STORES,GPC,Not Yet Available
Wakefield MDC,E08000036,30/09/2015,CHILDYOU,4,Children's and Education Services,SELECT,Clothing,Revenue,160745,1065,29/07/2015,14.98,Nil,MEN�S AND WOMEN�S CLOTHING STORES,GPC,Not Yet Available
Wakefield MDC,E08000036,30/09/2015,CHILDYOU,4,Children's and Education Services,SPORTS DIRECT,Clothing,Revenue,160744,2514,16/07/2015,20.00,Nil,SPORTING GOODS STORES,GPC,Not Yet Available
Wakefield MDC,E08000036,30/09/2015,CHILDYOU,4,Children's and Education Services,SUGARSOLE,Clothing,Revenue,160748,349,18/08/2015,12.50,Nil,WOMENS READY TO WEAR STORES,GPC,Not Yet Available
Wakefield MDC,E08000036,30/09/2015,CHILDYOU,4,Children's and Education Services,T K MAXX,Clothing,Revenue,160745,1816,29/07/2015,15.00,Nil,VARIETY STORES,GPC,Not Yet Available
Wakefield MDC,E08000036,30/09/2015,CHILDYOU,4,Children's and Education Services,VICTORIAS SECRET,Clothing,Revenue,160748,416,18/08/2015,16.67,Nil,FAMILY CLOTHING STORES,GPC,Not Yet Available
Wakefield MDC,E08000036,30/09/2015,CHILDYOU,4,Children's and Education Services,ZARA SHEFFIELD,Clothing,Revenue,160748,412,18/08/2015,15.98,Nil,MEN�S AND WOMEN�S CLOTHING STORES,GPC,Not Yet Available
Wakefield MDC,E08000036,30/09/2015,REGENCULT,M,Environmental and Regulatory Services,ARCO LTD,Clothing,Revenue,160754,373,11/09/2015,30.00,Nil,UNIFORMS AND COMMERCIAL CLOTHING,GPC,Not Yet Available
Wakefield MDC,E08000036,30/09/2015,REGENCULT,5,Highways & Transport Services,ARCO LTD,Clothing,Revenue,160745,1443,29/07/2015,15.00,Nil,UNIFORMS AND COMMERCIAL CLOTHING,GPC,Not Yet Available
Wakefield MDC,E08000036,30/09/2015,REGENCULT,L,Cultural and Related Services,ARCO LTD,Clothing,Revenue,160744,4270,16/07/2015,289.43,Nil,UNIFORMS AND COMMERCIAL CLOTHING,GPC,Not Yet Available
Wakefield MDC,E08000036,30/09/2015,REGENCULT,M,Environmental and Regulatory Services,ARCO LTD,Clothing,Revenue,160764,8,01/10/2015,33.97,Nil,UNIFORMS AND COMMERCIAL CLOTHING,GPC,Not Yet Available
Wakefield MDC,E08000036,30/09/2015,REGENCULT,M,Environmental and Regulatory Services,ARCO LTD,Clothing,Revenue,160759,770,23/09/2015,41.67,Nil,UNIFORMS AND COMMERCIAL CLOTHING,GPC,Not Yet Available
Wakefield MDC,E08000036,30/09/2015,REGENCULT,M,Environmental and Regulatory Services,ARCO LTD,Clothing,Revenue,160744,4067,16/07/2015,48.00,Nil,UNIFORMS AND COMMERCIAL CLOTHING,GPC,Not Yet Available
Wakefield MDC,E08000036,30/09/2015,REGENCULT,M,Environmental and Regulatory Services,ARCO LTD,Clothing,Revenue,160744,287,16/07/2015,53.95,Nil,UNIFORMS AND COMMERCIAL CLOTHING,GPC,Not Yet Available
Wakefield MDC,E08000036,30/09/2015,REGENCULT,M,Environmental and Regulatory Services,ARCO LTD,Clothing,Revenue,160746,735,10/08/2015,83.30,Nil,UNIFORMS AND COMMERCIAL CLOTHING,GPC,Not Yet Available
Wakefield MDC,E08000036,30/09/2015,REGENCULT,M,Environmental and Regulatory Services,ARCO LTD,Clothing,Revenue,160744,4038,16/07/2015,23.00,Nil,UNIFORMS AND COMMERCIAL CLOTHING,GPC,Not Yet Available
Wakefield MDC,E08000036,30/09/2015,REGENCULT,L,Cultural and Related Services,ARCO LTD,Clothing,Revenue,160753,1366,09/09/2015,124.81,Nil,UNIFORMS AND COMMERCIAL CLOTHING,GPC,Not Yet Available
Wakefield MDC,E08000036,30/09/2015,REGENCULT,L,Cultural and Related Services,ARCO LTD,Clothing,Revenue,160744,4090,16/07/2015,20.82,Nil,UNIFORMS AND COMMERCIAL CLOTHING,GPC,Not Yet Available
Wakefield MDC,E08000036,30/09/2015,REGENCULT,M,Environmental and Regulatory Services,HAMPSONS PLANTWORLD LTD,Clothing,Revenue,160745,1445,29/07/2015,140.00,Nil,NURSERY/LAWN/GARDEN SUPPLY STORES,GPC,Not Yet Available
Wakefield MDC,E08000036,30/09/2015,REGENCULT,5,Highways & Transport Services,PEACOCK STORES LTD,Clothing,Revenue,160746,583,10/08/2015,25.20,Nil,VARIETY STORES,GPC,Not Yet Available
Wakefield MDC,E08000036,30/09/2015,REGENCULT,M,Environmental and Regulatory Services,SIZEDWELL CLOTHING LTD,Clothing,Revenue,160745,1467,29/07/2015,93.96,Nil,MEN/BOYS CLOTHING/ACC STORES,GPC,Not Yet Available
Wakefield MDC,E08000036,30/09/2015,ADULTS,7,Adult Social Care,AMAZON,Computer Equipment - Hardware,Revenue,160744,2858,16/07/2015,50.39,Nil,DIRECT MARKETING-OTHER DIRECT MARKETERS/NOT ELSEW.,GPC,Not Yet Available
Wakefield MDC,E08000036,30/09/2015,ADULTS,7,Adult Social Care,AMAZON,Computer Equipment - Hardware,Revenue,160759,1024,23/09/2015,17.15,Nil,BOOK STORES,GPC,Not Yet Available
Wakefield MDC,E08000036,30/09/2015,ADULTS,7,Adult Social Care,AMAZON,Computer Equipment - Hardware,Revenue,160759,413,23/09/2015,105.52,Nil,BOOK STORES,GPC,Not Yet Available
Wakefield MDC,E08000036,30/09/2015,ADULTS,7,Adult Social Care,AMAZON,Computer Equipment - Hardware,Revenue,160759,889,23/09/2015,139.72,Nil,BOOK STORES,GPC,Not Yet Available
Wakefield MDC,E08000036,30/09/2015,ADULTS,7,Adult Social Care,AMAZON,Computer Equipment - Hardware,Revenue,160750,88,01/09/2015,22.99,Nil,MISCELLANEOUS AND SPECIALTY RETAIL STORES,GPC,Not Yet Available
Wakefield MDC,E08000036,30/09/2015,ADULTS,7,Adult Social Care,EXTERA LTD,Computer Equipment - Hardware,Revenue,160759,872,23/09/2015,81.50,Nil,TELECOM INCL PREPAID/RECURRING PHONE SVCS,GPC,Not Yet Available
Wakefield MDC,E08000036,30/09/2015,ADULTS,7,Adult Social Care,POSTURITE (UK) LTD,Computer Equipment - Hardware,Revenue,160744,1921,16/07/2015,-166.80,Nil,OFFICE & COMMERCIAL FURNITURE,GPC,Not Yet Available
Wakefield MDC,E08000036,30/09/2015,ADULTS,7,Adult Social Care,POSTURITE (UK) LTD,Computer Equipment - Hardware,Revenue,160744,1904,16/07/2015,172.80,Nil,OFFICE & COMMERCIAL FURNITURE,GPC,Not Yet Available
Wakefield MDC,E08000036,30/09/2015,BUSINESS,A,Net (Surplus) / Deficit of Trading Operations,AMAZON,Computer Equipment - Hardware,Revenue,160746,985,10/08/2015,39.60,Nil,BOOK STORES,GPC,Not Yet Available
Wakefield MDC,E08000036,30/09/2015,BUSINESS,A,Net (Surplus) / Deficit of Trading Operations,AMAZON,Computer Equipment - Hardware,Revenue,160744,5062,16/07/2015,1.39,Nil,BOOK STORES,GPC,Not Yet Available
Wakefield MDC,E08000036,30/09/2015,BUSINESS,A,Net (Surplus) / Deficit of Trading Operations,AMAZON,Computer Equipment - Hardware,Revenue,160750,92,01/09/2015,1.43,Nil,BOOK STORES,GPC,Not Yet Available
Wakefield MDC,E08000036,30/09/2015,BUSINESS,A,Net (Surplus) / Deficit of Trading Operations,AMAZON,Computer Equipment - Hardware,Revenue,160744,3842,16/07/2015,2.85,Nil,BOOK STORES,GPC,Not Yet Available
Wakefield MDC,E08000036,30/09/2015,BUSINESS,A,Net (Surplus) / Deficit of Trading Operations,AMAZON,Computer Equipment - Hardware,Revenue,160744,1347,16/07/2015,2.99,Nil,BOOK STORES,GPC,Not Yet Available
Wakefield MDC,E08000036,30/09/2015,BUSINESS,A,Net (Surplus) / Deficit of Trading Operations,AMAZON,Computer Equipment - Hardware,Revenue,160744,5155,16/07/2015,5.58,Nil,BOOK STORES,GPC,Not Yet Available
Wakefield MDC,E08000036,30/09/2015,BUSINESS,A,Net (Surplus) / Deficit of Trading Operations,AMAZON,Computer Equipment - Hardware,Revenue,160746,984,10/08/2015,10.89,Nil,BOOK STORES,GPC,Not Yet Available
Wakefield MDC,E08000036,30/09/2015,BUSINESS,A,Net (Surplus) / Deficit of Trading Operations,AMAZON,Computer Equipment - Hardware,Revenue,160759,892,23/09/2015,19.79,Nil,BOOK STORES,GPC,Not Yet Available
Wakefield MDC,E08000036,30/09/2015,BUSINESS,A,Net (Surplus) / Deficit of Trading Operations,AMAZON,Computer Equipment - Hardware,Revenue,160744,5061,16/07/2015,26.00,Nil,BOOK STORES,GPC,Not Yet Available
Wakefield MDC,E08000036,30/09/2015,BUSINESS,A,Net (Surplus) / Deficit of Trading Operations,AMAZON,Computer Equipment - Hardware,Revenue,160751,329,04/09/2015,59.95,Nil,BOOK STORES,GPC,Not Yet Available
Wakefield MDC,E08000036,30/09/2015,BUSINESS,A,Net (Surplus) / Deficit of Trading Operations,AMAZON,Computer Equipment - Hardware,Revenue,160746,989,10/08/2015,64.75,Nil,MISCELLANEOUS AND SPECIALTY RETAIL STORES,GPC,Not Yet Available
Wakefield MDC,E08000036,30/09/2015,BUSINESS,A,Net (Surplus) / Deficit of Trading Operations,AMAZON,Computer Equipment - Hardware,Revenue,160759,870,23/09/2015,228.79,Nil,DIRECT MARKETING-OTHER DIRECT MARKETERS/NOT ELSEW.,GPC,Not Yet Available
Wakefield MDC,E08000036,30/09/2015,BUSINESS,8,Corporate and Democratic Core,AMAZON,Computer Equipment - Hardware,Revenue,160750,93,01/09/2015,10.89,Nil,BOOK STORES,GPC,Not Yet Available
Wakefield MDC,E08000036,30/09/2015,BUSINESS,A,Net (Surplus) / Deficit of Trading Operations,AMAZON,Computer Equipment - Hardware,Revenue,160759,671,23/09/2015,16.23,Nil,BOOK STORES,GPC,Not Yet Available
Wakefield MDC,E08000036,30/09/2015,BUSINESS,A,Net (Surplus) / Deficit of Trading Operations,MICROSOFT STORE,Computer Equipment - Hardware,Revenue,160759,859,23/09/2015,16.58,Nil,COMPUTER SOFTWARE STORES,GPC,Not Yet Available
Wakefield MDC,E08000036,30/09/2015,BUSINESS,A,Net (Surplus) / Deficit of Trading Operations,POSTURITE (UK) LTD,Computer Equipment - Hardware,Revenue,160751,330,04/09/2015,-59.94,Nil,OFFICE & COMMERCIAL FURNITURE,GPC,Not Yet Available
Wakefield MDC,E08000036,30/09/2015,BUSINESS,A,Net (Surplus) / Deficit of Trading Operations,POSTURITE (UK) LTD,Computer Equipment - Hardware,Revenue,160750,91,01/09/2015,125.88,Nil,OFFICE & COMMERCIAL FURNITURE,GPC,Not Yet Available
Wakefield MDC,E08000036,30/09/2015,BUSINESS,A,Net (Surplus) / Deficit of Trading Operations,VIDEK ONLINE,Computer Equipment - Hardware,Revenue,160759,884,23/09/2015,22.85,Nil,HOUSEHOLD APPLIANCE STORES,GPC,Not Yet Available
Wakefield MDC,E08000036,30/09/2015,BUSINESS,A,Net (Surplus) / Deficit of Trading Operations,WILKO RETAIL LIMITED,Computer Equipment - Hardware,Revenue,160759,404,23/09/2015,10.87,Nil,HOUSEHOLD APPLIANCE STORES,GPC,Not Yet Available
Wakefield MDC,E08000036,30/09/2015,CHILDYOU,4,Children's and Education Services,AMAZON,Computer Equipment - Hardware,Revenue,160746,990,10/08/2015,7.34,Nil,BOOK STORES,GPC,Not Yet Available
Wakefield MDC,E08000036,30/09/2015,CHILDYOU,4,Children's and Education Services,POSTURITE (UK) LTD,Computer Equipment - Hardware,Revenue,160744,1905,16/07/2015,65.94,Nil,OFFICE & COMMERCIAL FURNITURE,GPC,Not Yet Available
Wakefield MDC,E08000036,30/09/2015,REGENCULT,6,Housing Services,AMAZON,Computer Equipment - Hardware,Revenue,160744,5060,16/07/2015,4.49,Nil,BOOK STORES,GPC,Not Yet Available
Wakefield MDC,E08000036,30/09/2015,REGENCULT,L,Cultural and Related Services,AMAZON,Computer Equipment - Hardware,Revenue,160744,1348,16/07/2015,3.89,Nil,MISCELLANEOUS AND SPECIALTY RETAIL STORES,GPC,Not Yet Available
Wakefield MDC,E08000036,30/09/2015,REGENCULT,M,Environmental and Regulatory Services,AMAZON,Computer Equipment - Hardware,Revenue,160744,1358,16/07/2015,248.75,Nil,MISCELLANEOUS AND SPECIALTY RETAIL STORES,GPC,Not Yet Available
Wakefield MDC,E08000036,30/09/2015,REGENCULT,N,Planning Services,POSTURITE (UK) LTD,Computer Equipment - Hardware,Revenue,160746,983,10/08/2015,41.94,Nil,OFFICE & COMMERCIAL FURNITURE,GPC,Not Yet Available
Wakefield MDC,E08000036,30/09/2015,BUSINESS,A,Net (Surplus) / Deficit of Trading Operations,CLEVERBRIDGE,Computer Equipment - Maintenance,Revenue,160746,917,10/08/2015,600.00,Nil,COMPUTERS/PERIPHERALS/SOFTWARE,GPC,Not Yet Available
Wakefield MDC,E08000036,30/09/2015,BUSINESS,A,Net (Surplus) / Deficit of Trading Operations,STATIONERY U,Computer Equipment - Maintenance,Revenue,160744,4163,16/07/2015,76.25,Nil,CHEMICALS/ALLIED PRODUCTS - NOT ELSEWHERE CLASSIFIED,GPC,Not Yet Available
Wakefield MDC,E08000036,30/09/2015,ADULTS,6,Housing Services,OPEN DNS INC,Computer Equipment - Software,Revenue,160750,90,01/09/2015,330.00,Nil,COMPUTER PROGRAMMING/DATA PROCESSING/INTEGRATED SYSTEM DESIGN,GPC,Not Yet Available
Wakefield MDC,E08000036,30/09/2015,BUSINESS,A,Net (Surplus) / Deficit of Trading Operations,AMAZON,Computer Equipment - Software,Revenue,160744,2859,16/07/2015,24.57,Nil,DIRECT MARKETING-OTHER DIRECT MARKETERS/NOT ELSEW.,GPC,Not Yet Available
Wakefield MDC,E08000036,30/09/2015,CHILDYOU,4,Children's and Education Services,BULLGUARD,Computer Equipment - Software,Revenue,160745,1891,29/07/2015,75.93,Nil,MISC & SPECIALITY RETAIL STORES,GPC,Not Yet Available
Wakefield MDC,E08000036,30/09/2015,CHILDYOU,4,Children's and Education Services,R-COMP,Computer Equipment - Software,Revenue,160751,286,04/09/2015,38.50,Nil,COMPUTER SOFTWARE STORES,GPC,Not Yet Available
Wakefield MDC,E08000036,30/09/2015,ADULTS,P,Public Health,HILTON,Conference Expenses,Revenue,160759,440,23/09/2015,139.00,Nil,HOTELS & ACCOMMODATION,GPC,Not Yet Available
Wakefield MDC,E08000036,30/09/2015,ADULTS,P,Public Health,HOLIDAY INN,Conference Expenses,Revenue,160746,585,10/08/2015,301.00,Nil,HOTELS & ACCOMMODATION,GPC,Not Yet Available
Wakefield MDC,E08000036,30/09/2015,ADULTS,P,Public Health,HPA,Conference Expenses,Revenue,160758,245,21/09/2015,400.00,Nil,MISC PUBLISHING AND PRINTING,GPC,Not Yet Available
Wakefield MDC,E08000036,30/09/2015,ADULTS,P,Public Health,TRAVELODGE,Conference Expenses,Revenue,160759,878,23/09/2015,49.00,Nil,HOTELS & ACCOMMODATION,GPC,Not Yet Available
Wakefield MDC,E08000036,30/09/2015,BUSINESS,8,Corporate and Democratic Core,EXPEDIA,Conference Expenses,Revenue,160744,551,16/07/2015,318.00,Nil,TRAVEL AGENCIES AND TOUR OPERATORS,GPC,Not Yet Available
Wakefield MDC,E08000036,30/09/2015,BUSINESS,8,Corporate and Democratic Core,EXPEDIA,Conference Expenses,Revenue,160766,375,02/10/2015,-204.00,Nil,TRAVEL AGENCIES AND TOUR OPERATORS,GPC,Not Yet Available
Wakefield MDC,E08000036,30/09/2015,BUSINESS,8,Corporate and Democratic Core,EXPEDIA,Conference Expenses,Revenue,160744,552,16/07/2015,159.00,Nil,TRAVEL AGENCIES AND TOUR OPERATORS,GPC,Not Yet Available
Wakefield MDC,E08000036,30/09/2015,BUSINESS,8,Corporate and Democratic Core,EXPEDIA,Conference Expenses,Revenue,160744,553,16/07/2015,177.93,Nil,TRAVEL AGENCIES AND TOUR OPERATORS,GPC,Not Yet Available
Wakefield MDC,E08000036,30/09/2015,BUSINESS,8,Corporate and Democratic Core,EXPEDIA,Conference Expenses,Revenue,160766,377,02/10/2015,182.50,Nil,TRAVEL AGENCIES AND TOUR OPERATORS,GPC,Not Yet Available
Wakefield MDC,E08000036,30/09/2015,BUSINESS,8,Corporate and Democratic Core,QUEBECS,Conference Expenses,Revenue,160763,80,28/09/2015,95.00,Nil,HOTELS & ACCOMMODATION,GPC,Not Yet Available
Wakefield MDC,E08000036,30/09/2015,BUSINESS,8,Corporate and Democratic Core,SOLACE LTD,Conference Expenses,Revenue,160744,2059,16/07/2015,100.00,Nil,MEMBERSHIP ORGANISATIONS - NOT ELSEWHERE CLASSIFIED,GPC,Not Yet Available
Wakefield MDC,E08000036,30/09/2015,CHILDYOU,4,Children's and Education Services,DOUBLE TREE,Conference Expenses,Revenue,160745,1615,29/07/2015,15.00,Nil,HOTELS & ACCOMMODATION,GPC,Not Yet Available
Wakefield MDC,E08000036,30/09/2015,CHILDYOU,4,Children's and Education Services,DOUBLE TREE,Conference Expenses,Revenue,160750,223,01/09/2015,19.00,Nil,HOTELS & ACCOMMODATION,GPC,Not Yet Available
Wakefield MDC,E08000036,30/09/2015,CHILDYOU,4,Children's and Education Services,HILTON,Conference Expenses,Revenue,160745,2052,29/07/2015,110.96,Nil,HOTELS & ACCOMMODATION,GPC,Not Yet Available
Wakefield MDC,E08000036,30/09/2015,CHILDYOU,4,Children's and Education Services,HOLIDAY INN,Conference Expenses,Revenue,160748,663,18/08/2015,351.97,Nil,HOTELS & ACCOMMODATION,GPC,Not Yet Available
Wakefield MDC,E08000036,30/09/2015,CHILDYOU,4,Children's and Education Services,NCP LIMITED,Conference Expenses,Revenue,160750,222,01/09/2015,36.78,Nil,AUTOMOBILE PARKING LOTS AND GARAGES,GPC,Not Yet Available
Wakefield MDC,E08000036,30/09/2015,CHILDYOU,4,Children's and Education Services,PREMIER INN,Conference Expenses,Revenue,160745,1638,29/07/2015,184.00,Nil,HOTELS & ACCOMMODATION,GPC,Not Yet Available
Wakefield MDC,E08000036,30/09/2015,CHILDYOU,4,Children's and Education Services,PREMIER INN,Conference Expenses,Revenue,160745,1628,29/07/2015,184.00,Nil,HOTELS & ACCOMMODATION,GPC,Not Yet Available
Wakefield MDC,E08000036,30/09/2015,CHILDYOU,4,Children's and Education Services,PREMIER INN,Conference Expenses,Revenue,160745,1640,29/07/2015,184.00,Nil,HOTELS & ACCOMMODATION,GPC,Not Yet Available
Wakefield MDC,E08000036,30/09/2015,CHILDYOU,4,Children's and Education Services,PREMIER INN,Conference Expenses,Revenue,160745,1639,29/07/2015,184.00,Nil,HOTELS & ACCOMMODATION,GPC,Not Yet Available
Wakefield MDC,E08000036,30/09/2015,REGENCULT,N,Planning Services,AIRBNB,Conference Expenses,Revenue,160750,168,01/09/2015,899.00,Nil,HOTELS & ACCOMMODATION,GPC,Not Yet Available
Wakefield MDC,E08000036,30/09/2015,REGENCULT,N,Planning Services,EXPEDIA,Conference Expenses,Revenue,160746,863,10/08/2015,343.00,Nil,TRAVEL AGENCIES AND TOUR OPERATORS,GPC,Not Yet Available
Wakefield MDC,E08000036,30/09/2015,REGENCULT,5,Highways & Transport Services,HEMMING GROUP LTD,Conference Expenses,Revenue,160746,88,10/08/2015,620.00,Nil,BUSINESS SERVICES-NOT ELSEWHERE CLASSIFIED,GPC,Not Yet Available
Wakefield MDC,E08000036,30/09/2015,REGENCULT,N,Planning Services,HILTON,Conference Expenses,Revenue,160750,250,01/09/2015,48.00,Nil,HOTELS & ACCOMMODATION,GPC,Not Yet Available
Wakefield MDC,E08000036,30/09/2015,REGENCULT,5,Highways & Transport Services,IMPERIAL COLLEGE,Conference Expenses,Revenue,160746,731,10/08/2015,44.17,Nil,COLLEGES UNIV PRO SCHOOLS JUNIOR COLLEGES,GPC,Not Yet Available
Wakefield MDC,E08000036,30/09/2015,REGENCULT,N,Planning Services,PONTEFRACT PARK RACE COMPANY,Conference Expenses,Revenue,160745,1414,29/07/2015,242.00,Nil,COMMERCIAL SPORTS/PRO SPORTS CLUB/ATHLETIC FIELDS/SPORTS PROMOTERS,GPC,Not Yet Available
Wakefield MDC,E08000036,30/09/2015,ADULTS,7,Adult Social Care,AMAZON,Consumable Items,Revenue,160748,548,18/08/2015,25.90,Nil,BOOK STORES,GPC,Not Yet Available
Wakefield MDC,E08000036,30/09/2015,ADULTS,7,Adult Social Care,AMAZON,Consumable Items,Revenue,160748,547,18/08/2015,90.00,Nil,MISCELLANEOUS AND SPECIALTY RETAIL STORES,GPC,Not Yet Available
Wakefield MDC,E08000036,30/09/2015,ADULTS,7,Adult Social Care,B & Q,Consumable Items,Revenue,160748,549,18/08/2015,6.65,Nil,LUMBER/BUILDING MATERIALS STORES,GPC,Not Yet Available
Wakefield MDC,E08000036,30/09/2015,ADULTS,7,Adult Social Care,TESCO STORES,Consumable Items,Revenue,160744,3595,16/07/2015,3.00,Nil,GROCERY STORES/SUPERMARKETS,GPC,Not Yet Available
Wakefield MDC,E08000036,30/09/2015,ADULTS,7,Adult Social Care,TESCO STORES,Consumable Items,Revenue,160745,703,29/07/2015,7.46,Nil,GROCERY STORES/SUPERMARKETS,GPC,Not Yet Available
Wakefield MDC,E08000036,30/09/2015,BUSINESS,1,Central Services,AMAZON,Consumable Items,Revenue,160752,309,09/09/2015,15.94,Nil,BOOK STORES,GPC,Not Yet Available
Wakefield MDC,E08000036,30/09/2015,BUSINESS,1,Central Services,AMAZON,Consumable Items,Revenue,160744,3471,16/07/2015,17.23,Nil,DIRECT MARKETING-OTHER DIRECT MARKETERS/NOT ELSEW.,GPC,Not Yet Available
Wakefield MDC,E08000036,30/09/2015,BUSINESS,1,Central Services,AMAZON,Consumable Items,Revenue,160744,3499,16/07/2015,27.97,Nil,DIRECT MARKETING-OTHER DIRECT MARKETERS/NOT ELSEW.,GPC,Not Yet Available
Wakefield MDC,E08000036,30/09/2015,BUSINESS,1,Central Services,AMAZON,Consumable Items,Revenue,160744,666,16/07/2015,30.94,Nil,BOOK STORES,GPC,Not Yet Available
Wakefield MDC,E08000036,30/09/2015,BUSINESS,1,Central Services,AMAZON,Consumable Items,Revenue,160744,3470,16/07/2015,119.99,Nil,DIRECT MARKETING-OTHER DIRECT MARKETERS/NOT ELSEW.,GPC,Not Yet Available
Wakefield MDC,E08000036,30/09/2015,BUSINESS,6,Housing Services,AMAZON,Consumable Items,Revenue,160766,455,02/10/2015,5.98,Nil,BOOK STORES,GPC,Not Yet Available
Wakefield MDC,E08000036,30/09/2015,BUSINESS,A,Net (Surplus) / Deficit of Trading Operations,ARCTIC PRODUCTS LTD,Consumable Items,Revenue,160746,1134,10/08/2015,489.60,Nil,PLUMBING AND HEATING EQUIPMENT,GPC,Not Yet Available
Wakefield MDC,E08000036,30/09/2015,BUSINESS,1,Central Services,B & Q,Consumable Items,Revenue,160744,37,16/07/2015,7.45,Nil,LUMBER/BUILDING MATERIALS STORES,GPC,Not Yet Available
Wakefield MDC,E08000036,30/09/2015,BUSINESS,1,Central Services,B & Q,Consumable Items,Revenue,160744,54,16/07/2015,7.45,Nil,LUMBER/BUILDING MATERIALS STORES,GPC,Not Yet Available
Wakefield MDC,E08000036,30/09/2015,BUSINESS,1,Central Services,B & Q,Consumable Items,Revenue,160744,35,16/07/2015,12.49,Nil,LUMBER/BUILDING MATERIALS STORES,GPC,Not Yet Available
Wakefield MDC,E08000036,30/09/2015,BUSINESS,A,Net (Surplus) / Deficit of Trading Operations,COMBINED PRECISION,Consumable Items,Revenue,160755,259,16/09/2015,3.82,Nil,ELECTRICAL PARTS AND EQUIPMENT,GPC,Not Yet Available
Wakefield MDC,E08000036,30/09/2015,BUSINESS,A,Net (Surplus) / Deficit of Trading Operations,COMBINED PRECISION,Consumable Items,Revenue,160746,958,10/08/2015,17.93,Nil,ELECTRICAL PARTS AND EQUIPMENT,GPC,Not Yet Available
Wakefield MDC,E08000036,30/09/2015,BUSINESS,A,Net (Surplus) / Deficit of Trading Operations,DIXON HALL AND CO,Consumable Items,Revenue,160746,879,10/08/2015,14.65,Nil,HARDWARE EQUIPMENT AND SUPPLIES,GPC,Not Yet Available
Wakefield MDC,E08000036,30/09/2015,BUSINESS,A,Net (Surplus) / Deficit of Trading Operations,J DAVIDSON PIPES,Consumable Items,Revenue,160744,160,16/07/2015,114.60,Nil,CONSTRUCTION MATERIALS NOT ELSEWHERE CLASSIFIED,GPC,Not Yet Available
Wakefield MDC,E08000036,30/09/2015,BUSINESS,A,Net (Surplus) / Deficit of Trading Operations,LYNVALE,Consumable Items,Revenue,160752,290,09/09/2015,-18.29,Nil,COMMERCIAL EQUIPMENT NOT ELSEWHERE CLASSIFIED,GPC,Not Yet Available
